Date Incurred,Directorate,Beneficiary,Purpose,Amount,Non Recoverable VAT,Supplier Type
01/11/2019,Children and Young People Operations & Safeguarding,Redacted - Personal Data,CLIENT EXPENSES - THIRD PARTY,"2,000.00",0,Individuals
01/11/2019,Children and Young People Operations & Safeguarding,Redacted - Personal Data,CLIENT EXPENSES - THIRD PARTY,360.00,0,Individuals
01/11/2019,Children and Young People Operations & Safeguarding,Redacted - Personal Data,EQUIPMENT & ADAPTATION - PRIVATE CONTRACTORS PAYMENT,363.00,0,Individuals
01/11/2019,Housing Revenue Account HRA,2468 Group,CATERING AND VENDING SUPPLIES,"1,431.90",0,Commercial Supplier
01/11/2019,Environment and Sustainable Transport Licensing & Regulation,3B Training,STAFF DEVELOPMENT AND TRAINING,"1,250.00",0,Commercial Supplier
01/11/2019,"Environment and Sustainable Transport Recycling, Refuse and Street Cleansing",Ace Welding & Powder Coating Services Ltd,"MAINTENANCE - EQUIPMENT, FURNITURE AND MATERIALS",728.65,0,Commercial Supplier
01/11/2019,"Adults & Health Commissioning, Health & Social Care",Advance Housing & Support Ltd,HOME CARE - PRIVATE CONTRACTORS PAYMENT,594.00,0,Supplier
01/11/2019,"Adults & Health Commissioning, Health & Social Care",Advance Housing & Support Ltd,DAYCARE - PRIVATE CONTRACTORS PAYMENT,264.00,0,Supplier
01/11/2019,"Adults & Health Commissioning, Health & Social Care",Advance Housing & Support Ltd,DAYCARE - PRIVATE CONTRACTORS PAYMENT,660.00,0,Supplier
01/11/2019,"Adults & Health Commissioning, Health & Social Care",Advance Housing & Support Ltd,HOME CARE - PRIVATE CONTRACTORS PAYMENT,577.50,0,Supplier
01/11/2019,"Adults & Health Commissioning, Health & Social Care",Advance Housing & Support Ltd,HOME CARE - PRIVATE CONTRACTORS PAYMENT,"1,030.40",0,Supplier
01/11/2019,"Adults & Health Commissioning, Health & Social Care",Advance Housing & Support Ltd,HOME CARE - PRIVATE CONTRACTORS PAYMENT,"1,089.00",0,Supplier
01/11/2019,"Adults & Health Commissioning, Health & Social Care",Advance Housing & Support Ltd,HOME CARE - PRIVATE CONTRACTORS PAYMENT,825.00,0,Supplier
01/11/2019,"Adults & Health Commissioning, Health & Social Care",Advance Housing & Support Ltd,DAYCARE - PRIVATE CONTRACTORS PAYMENT,"1,122.00",0,Supplier
01/11/2019,"Adults & Health Commissioning, Health & Social Care",Advance Housing & Support Ltd,DAYCARE - PRIVATE CONTRACTORS PAYMENT,"1,320.00",0,Supplier
01/11/2019,"Adults & Health Commissioning, Health & Social Care",Advance Housing & Support Ltd,DAYCARE - PRIVATE CONTRACTORS PAYMENT,"1,864.50",0,Supplier
01/11/2019,Dedicated Schools Budget Dedicated Schools Budget,Aldersbrook Primary School,PROFESSIONAL SERVICES - GENERAL,"33,911.74",0,Supplier
01/11/2019,Children and Young People Inclusion & Achievement,Altmore Infants School,PAYMENTS TO VOLUNTARY SECTOR,"5,000.00",0,Supplier
01/11/2019,"People, Policy and Performance Communications",Altrad Beaver84 Ltd,BUILDING ALTERATIONS AND MATERIALS,452.83,0,Commercial Supplier
01/11/2019,Children and Young People Operations & Safeguarding,Redacted - Personal Data,SPECIAL GUARDIANSHIP,475.00,0,Foster Carers
01/11/2019,Children and Young People Operations & Safeguarding,Redacted - Personal Data,SPECIAL GUARDIANSHIP,475.00,0,Foster Carers
01/11/2019,Children and Young People Operations & Safeguarding,Redacted - Personal Data,SPECIAL GUARDIANSHIP,475.00,0,Foster Carers
01/11/2019,Children and Young People Operations & Safeguarding,Redacted - Personal Data,SPECIAL GUARDIANSHIP,475.00,0,Foster Carers
01/11/2019,"Adults & Health Commissioning, Health & Social Care",Bangladesh Parents And Carers Association,DAYCARE - PRIVATE CONTRACTORS PAYMENT,294.00,0,Supplier
01/11/2019,"Adults & Health Commissioning, Health & Social Care",Bangladesh Parents And Carers Association,DAYCARE - PRIVATE CONTRACTORS PAYMENT,456.00,0,Supplier
01/11/2019,"Adults & Health Commissioning, Health & Social Care",Bangladesh Parents And Carers Association,DAYCARE - PRIVATE CONTRACTORS PAYMENT,342.00,0,Supplier
01/11/2019,"Adults & Health Commissioning, Health & Social Care",Bangladesh Parents And Carers Association,DAYCARE - PRIVATE CONTRACTORS PAYMENT,294.00,0,Supplier
01/11/2019,"Adults & Health Commissioning, Health & Social Care",Bangladesh Parents And Carers Association,DAYCARE - PRIVATE CONTRACTORS PAYMENT,"1,254.00",0,Supplier
01/11/2019,"Adults & Health Commissioning, Health & Social Care",Bangladesh Parents And Carers Association,DAYCARE - PRIVATE CONTRACTORS PAYMENT,729.00,0,Supplier
01/11/2019,"Adults & Health Commissioning, Health & Social Care",Bangladesh Parents And Carers Association,DAYCARE - PRIVATE CONTRACTORS PAYMENT,588.00,0,Supplier
01/11/2019,"Adults & Health Commissioning, Health & Social Care",Bangladesh Parents And Carers Association,DAYCARE - PRIVATE CONTRACTORS PAYMENT,882.00,0,Supplier
01/11/2019,"Adults & Health Commissioning, Health & Social Care",Bangladesh Parents And Carers Association,DAYCARE - PRIVATE CONTRACTORS PAYMENT,686.00,0,Supplier
01/11/2019,"Adults & Health Commissioning, Health & Social Care",Bangladesh Parents And Carers Association,DAYCARE - PRIVATE CONTRACTORS PAYMENT,"1,368.00",0,Supplier
01/11/2019,"Adults & Health Commissioning, Health & Social Care",Bangladesh Parents And Carers Association,DAYCARE - PRIVATE CONTRACTORS PAYMENT,392.00,0,Supplier
01/11/2019,"Adults & Health Commissioning, Health & Social Care",Bangladesh Parents And Carers Association,DAYCARE - PRIVATE CONTRACTORS PAYMENT,261.00,0,Supplier
01/11/2019,"Adults & Health Commissioning, Health & Social Care",Bangladesh Parents And Carers Association,DAYCARE - PRIVATE CONTRACTORS PAYMENT,457.00,0,Supplier
01/11/2019,"Adults & Health Commissioning, Health & Social Care",Bangladesh Parents And Carers Association,DAYCARE - PRIVATE CONTRACTORS PAYMENT,"1,139.59",0,Supplier
01/11/2019,"Adults & Health Commissioning, Health & Social Care",Bangladesh Parents And Carers Association,DAYCARE - PRIVATE CONTRACTORS PAYMENT,"1,596.00",0,Supplier
01/11/2019,"Adults & Health Commissioning, Health & Social Care",Bangladesh Parents And Carers Association,DAYCARE - PRIVATE CONTRACTORS PAYMENT,423.90,0,Supplier
01/11/2019,"Environment and Sustainable Transport Recycling, Refuse and Street Cleansing",Barking Panelcraft,"PURCHASE - EQUIPMENT, FURNITURE AND MATERIALS",467.00,0,Commercial Supplier
01/11/2019,"Adults & Health Commissioning, Health & Social Care",Bettertogether Limited,ADULT PLACEMENT SCHEME - PRIVATE CONTRACTORS PAYMENT,"3,219.25",0,Non Commercial Supplier
01/11/2019,Children and Young People Operations & Safeguarding,Bettertogether Limited,SECTION 17 - PRIVATE CONTRACTORS PAYMENT,"1,856.00",0,Non Commercial Supplier
01/11/2019,"Adults & Health Commissioning, Health & Social Care",Bettertogether Limited,ADULT PLACEMENT SCHEME - PRIVATE CONTRACTORS PAYMENT,"2,868.00",0,Non Commercial Supplier
01/11/2019,"Adults & Health Commissioning, Health & Social Care",Bettertogether Limited,ADULT PLACEMENT SCHEME - PRIVATE CONTRACTORS PAYMENT,"3,248.00",0,Non Commercial Supplier
01/11/2019,"Adults & Health Commissioning, Health & Social Care",Bettertogether Limited,ADULT PLACEMENT SCHEME - PRIVATE CONTRACTORS PAYMENT,"1,624.00",0,Non Commercial Supplier
01/11/2019,"Adults & Health Commissioning, Health & Social Care",Bettertogether Limited,ADULT PLACEMENT SCHEME - PRIVATE CONTRACTORS PAYMENT,"1,952.00",0,Non Commercial Supplier
01/11/2019,"Adults & Health Commissioning, Health & Social Care",Bettertogether Limited,ADULT PLACEMENT SCHEME - PRIVATE CONTRACTORS PAYMENT,"2,924.00",0,Non Commercial Supplier
01/11/2019,"Adults & Health Commissioning, Health & Social Care",Bettertogether Limited,ADULT PLACEMENT SCHEME - PRIVATE CONTRACTORS PAYMENT,"3,116.00",0,Non Commercial Supplier
01/11/2019,"Environment and Sustainable Transport Recycling, Refuse and Street Cleansing",Brj Com Accessorie (Essex) Ltd,HIGHWAY SERVICES,"1,181.75",0,Supplier
01/11/2019,Children and Young People Operations & Safeguarding,Broadlands Hall,RESIDENTIAL PLACEMENTS - PRIVATE CONTRACTORS PAYMENT,"15,857.00",0,Commercial Supplier
01/11/2019,oneSource - Non Shared Asset Management,Building A Future (Newham Schools) Limited,"MAINTENANCE - EQUIPMENT, FURNITURE AND MATERIALS","68,496.48",0,Supplier
01/11/2019,oneSource - Non Shared Asset Management,Building A Future (Newham Schools) Limited,"MAINTENANCE - EQUIPMENT, FURNITURE AND MATERIALS","264,290.21",0,Supplier
01/11/2019,oneSource - Non Shared Asset Management,Building A Future (Newham Schools) Limited,"MAINTENANCE - EQUIPMENT, FURNITURE AND MATERIALS","69,274.74",0,Supplier
01/11/2019,Children and Young People Operations & Safeguarding,Redacted - Personal Data,ADOPTION ALLOWANCE - PRIVATE CONTRACTORS PAYMENT,465.88,0,Foster Carers
01/11/2019,Children and Young People Operations & Safeguarding,Redacted - Personal Data,ADOPTION ALLOWANCE - PRIVATE CONTRACTORS PAYMENT,459.76,0,Foster Carers
01/11/2019,Children and Young People Operations & Safeguarding,Redacted - Personal Data,ADOPTION ALLOWANCE - PRIVATE CONTRACTORS PAYMENT,465.88,0,Foster Carers
01/11/2019,Children and Young People Operations & Safeguarding,Redacted - Personal Data,ADOPTION ALLOWANCE - PRIVATE CONTRACTORS PAYMENT,459.76,0,Foster Carers
01/11/2019,Housing Revenue Account HRA,CEL Solicitors,LEGAL FEES,"4,600.00",0,Commercial Supplier
01/11/2019,Inclusive Economy & Housing Community Wealth Building,Caritas Anchor House,GRANTS AND CONTRIBUTIONS,918.00,0,Supplier
01/11/2019,Children and Young People Operations & Safeguarding,Redacted - Personal Data,SPECIAL GUARDIANSHIP,383.00,0,Foster Carers
01/11/2019,Children and Young People Operations & Safeguarding,Redacted - Personal Data,SPECIAL GUARDIANSHIP,383.00,0,Foster Carers
01/11/2019,Children and Young People Inclusion & Achievement,Carpenters Primary,CATERING SERVICES,"22,207.50",0,Supplier
01/11/2019,Children and Young People Operations & Safeguarding,Carter Brown The Expert Service Ltd,LEGAL FEES,"4,198.50",0,Commercial Supplier
01/11/2019,Children and Young People Operations & Safeguarding,Carter Brown The Expert Service Ltd,CLIENT EXPENSES - THIRD PARTY,"2,100.00",0,Commercial Supplier
01/11/2019,Children and Young People Operations & Safeguarding,Carter Brown The Expert Service Ltd,LEGAL FEES,"2,100.00",0,Commercial Supplier
01/11/2019,Children and Young People Operations & Safeguarding,Redacted - Personal Data,SPECIAL GUARDIANSHIP,553.84,0,Foster Carers
01/11/2019,Children and Young People Operations & Safeguarding,Redacted - Personal Data,SPECIAL GUARDIANSHIP,553.84,0,Foster Carers
01/11/2019,Children and Young People Operations & Safeguarding,Redacted - Personal Data,ADOPTION ALLOWANCE - PRIVATE CONTRACTORS PAYMENT,323.50,0,Foster Carers
01/11/2019,Children and Young People Operations & Safeguarding,Redacted - Personal Data,ADOPTION ALLOWANCE - PRIVATE CONTRACTORS PAYMENT,323.50,0,Foster Carers
01/11/2019,Children and Young People Operations & Safeguarding,Choice Fostering Ltd,RESIDENTIAL PLACEMENTS - PRIVATE CONTRACTORS PAYMENT,"3,213.15",0,Commercial Supplier
01/11/2019,Children and Young People Operations & Safeguarding,Choice Fostering Ltd,RESIDENTIAL PLACEMENTS - PRIVATE CONTRACTORS PAYMENT,"3,213.15",0,Commercial Supplier
01/11/2019,Children and Young People Operations & Safeguarding,Redacted - Personal Data,SPECIAL GUARDIANSHIP,291.11,0,Foster Carers
01/11/2019,Children and Young People Operations & Safeguarding,Redacted - Personal Data,SPECIAL GUARDIANSHIP,291.11,0,Foster Carers
01/11/2019,"People, Policy and Performance Resident Engagement & Participation",Community Links Trading Ltd,EVENTS,444.50,0,Commercial Supplier
01/11/2019,"People, Policy and Performance Communications",Community Links Trading Ltd,EVENTS,381.00,0,Commercial Supplier
01/11/2019,Children and Young People Operations & Safeguarding,Complete Care London,SUPPORTED OTHER ACCOMMODATION - PRIVATE CONTRACTORS PAYMENT,285.75,0,Non Commercial Supplier
01/11/2019,oneSource oS ICT Services,Coppermill Press,PRINTING,825.00,0,Supplier
01/11/2019,Children and Young People Operations & Safeguarding,Redacted - Personal Data,SPECIAL GUARDIANSHIP,"1,042.77",0,Foster Carers
01/11/2019,Children and Young People Operations & Safeguarding,Redacted - Personal Data,SPECIAL GUARDIANSHIP,"1,042.77",0,Foster Carers
01/11/2019,oneSource oS ICT Services,David Richards (Printers & Distributors) Ltd,PRINTING,"1,580.00",0,Supplier
01/11/2019,oneSource oS ICT Services,David Richards (Printers & Distributors) Ltd,PRINTING,535.00,0,Supplier
01/11/2019,oneSource oS ICT Services,David Richards (Printers & Distributors) Ltd,PRINTING,524.70,0,Supplier
01/11/2019,Children and Young People Operations & Safeguarding,Redacted - Personal Data,ADOPTION ALLOWANCE - PRIVATE CONTRACTORS PAYMENT,321.22,0,Foster Carers
01/11/2019,Children and Young People Operations & Safeguarding,Redacted - Personal Data,ADOPTION ALLOWANCE - PRIVATE CONTRACTORS PAYMENT,321.22,0,Foster Carers
01/11/2019,oneSource - Non Shared Asset Management,Digitec Security Ltd,SECURITY SERVICES (EXCLUDING PREMISES),"2,076.00",0,Commercial Supplier
01/11/2019,Children and Young People Operations & Safeguarding,Redacted - Personal Data,ADOPTION ALLOWANCE - PRIVATE CONTRACTORS PAYMENT,284.62,0,Foster Carers
01/11/2019,Children and Young People Operations & Safeguarding,Redacted - Personal Data,ADOPTION ALLOWANCE - PRIVATE CONTRACTORS PAYMENT,284.62,0,Foster Carers
01/11/2019,Children and Young People Operations & Safeguarding,Redacted - Personal Data,ADOPTION ALLOWANCE - PRIVATE CONTRACTORS PAYMENT,284.62,0,Foster Carers
01/11/2019,Children and Young People Operations & Safeguarding,Redacted - Personal Data,ADOPTION ALLOWANCE - PRIVATE CONTRACTORS PAYMENT,284.62,0,Foster Carers
01/11/2019,Children and Young People Operations & Safeguarding,Redacted - Personal Data,ADOPTION ALLOWANCE - PRIVATE CONTRACTORS PAYMENT,284.62,0,Foster Carers
01/11/2019,Children and Young People Operations & Safeguarding,Redacted - Personal Data,ADOPTION ALLOWANCE - PRIVATE CONTRACTORS PAYMENT,284.62,0,Foster Carers
01/11/2019,Children and Young People Operations & Safeguarding,Dormwell Ltd T/A Street Support,CLIENT SUPPORT - THIRD PARTY,642.86,0,Foster Carers
01/11/2019,Children and Young People Operations & Safeguarding,E-Gangs Project,CLIENT EXPENSES - THIRD PARTY,630.00,0,Commercial Supplier
01/11/2019,"Adults & Health Commissioning, Health & Social Care",East London Care And Support Limited,HOME CARE - PRIVATE CONTRACTORS PAYMENT,"1,402.86",0,Supplier
01/11/2019,"Adults & Health Commissioning, Health & Social Care",East London Care And Support Limited,HOME CARE - PRIVATE CONTRACTORS PAYMENT,890.16,0,Supplier
01/11/2019,"Adults & Health Commissioning, Health & Social Care",East London Care And Support Limited,HOME CARE - PRIVATE CONTRACTORS PAYMENT,"1,533.60",0,Supplier
01/11/2019,"Adults & Health Commissioning, Health & Social Care",East London Care And Support Limited,HOME CARE - PRIVATE CONTRACTORS PAYMENT,"1,510.08",0,Supplier
01/11/2019,"Adults & Health Commissioning, Health & Social Care",East London Care And Support Limited,HOME CARE - PRIVATE CONTRACTORS PAYMENT,"1,889.28",0,Supplier
01/11/2019,oneSource - Non Shared Asset Management,Education Support (Newham) Ltd,"MAINTENANCE - EQUIPMENT, FURNITURE AND MATERIALS","331,433.45",0,Supplier
01/11/2019,Inclusive Economy & Housing Community Wealth Building,Elba,CONSULTANCY FEES,"24,500.00",0,Supplier
01/11/2019,Children and Young People Operations & Safeguarding,Elliot Leigh TLC Ltd,SUPPORTED OTHER ACCOMMODATION - PRIVATE CONTRACTORS PAYMENT,375.00,0,Commercial Supplier
01/11/2019,Children and Young People Operations & Safeguarding,Elliot Leigh TLC Ltd,SUPPORTED OTHER ACCOMMODATION - PRIVATE CONTRACTORS PAYMENT,300.00,0,Commercial Supplier
01/11/2019,Children and Young People Operations & Safeguarding,Elliot Leigh TLC Ltd,CLIENT SUPPORT - THIRD PARTY,960.00,0,Commercial Supplier
01/11/2019,Children and Young People Operations & Safeguarding,Elliot Leigh TLC Ltd,CLIENT SUPPORT - THIRD PARTY,"1,806.00",0,Commercial Supplier
01/11/2019,Children and Young People Operations & Safeguarding,Elliot Leigh TLC Ltd,CLIENT SUPPORT - THIRD PARTY,960.00,0,Commercial Supplier
01/11/2019,Children and Young People Operations & Safeguarding,Elliot Leigh TLC Ltd,CLIENT SUPPORT - THIRD PARTY,"1,806.00",0,Commercial Supplier
01/11/2019,"Adults & Health Commissioning, Health & Social Care",Enabled Living Healthcare Ltd,SPECIALIST EQUIPMENT FOR SERVICE PROVISION,"90,095.20",0,Commercial Supplier
01/11/2019,"Environment and Sustainable Transport Recycling, Refuse and Street Cleansing",Redacted - Personal Data,DIRECT TRANSPORT,878.00,0,Commercial Supplier
01/11/2019,"Environment and Sustainable Transport Recycling, Refuse and Street Cleansing",Redacted - Personal Data,DIRECT TRANSPORT,337.86,0,Commercial Supplier
01/11/2019,Environment and Sustainable Transport Highways and Sustainable Transport,Redacted - Personal Data,DIRECT TRANSPORT,454.66,0,Commercial Supplier
01/11/2019,Environment and Sustainable Transport Highways and Sustainable Transport,Redacted - Personal Data,DIRECT TRANSPORT,895.98,0,Commercial Supplier
01/11/2019,Children and Young People Inclusion & Achievement,Redacted - Personal Data,DIRECT TRANSPORT,854.75,0,Commercial Supplier
01/11/2019,"Environment and Sustainable Transport Recycling, Refuse and Street Cleansing",Redacted - Personal Data,DIRECT TRANSPORT,672.30,0,Commercial Supplier
01/11/2019,Resources Council Tax & Benefits,Experian Ltd,PROFESSIONAL SERVICES - GENERAL,443.30,0,Commercial Supplier
01/11/2019,Resources Council Tax & Benefits,Experian Ltd,PROFESSIONAL SERVICES - GENERAL,443.30,0,Commercial Supplier
01/11/2019,Children and Young People Operations & Safeguarding,Family Works Fostering,RESIDENTIAL PLACEMENTS - PRIVATE CONTRACTORS PAYMENT,"3,799.88",0,Commercial Supplier
01/11/2019,Children and Young People Operations & Safeguarding,Family Works Fostering,RESIDENTIAL PLACEMENTS - PRIVATE CONTRACTORS PAYMENT,"3,799.88",0,Commercial Supplier
01/11/2019,Children and Young People Operations & Safeguarding,Family Works Fostering,RESIDENTIAL PLACEMENTS - PRIVATE CONTRACTORS PAYMENT,"3,799.98",0,Commercial Supplier
01/11/2019,Children and Young People Operations & Safeguarding,Family Works Fostering,RESIDENTIAL PLACEMENTS - PRIVATE CONTRACTORS PAYMENT,"5,079.98",0,Commercial Supplier
01/11/2019,Children and Young People Operations & Safeguarding,Family Works Fostering,RESIDENTIAL PLACEMENTS - PRIVATE CONTRACTORS PAYMENT,"3,399.98",0,Commercial Supplier
01/11/2019,Children and Young People Operations & Safeguarding,Family Works Fostering,RESIDENTIAL PLACEMENTS - PRIVATE CONTRACTORS PAYMENT,"3,400.04",0,Commercial Supplier
01/11/2019,oneSource oS Business Services,Fat Media Limited t/a Reading Room,ICT SOFTWARE,"2,550.00",0,Commercial Supplier
01/11/2019,"Environment and Sustainable Transport Recycling, Refuse and Street Cleansing",Floglass Limited,"PURCHASE - EQUIPMENT, FURNITURE AND MATERIALS",665.00,0,Commercial Supplier
01/11/2019,"Environment and Sustainable Transport Recycling, Refuse and Street Cleansing",Ford Motor Company Ltd t/a PartsPlus,HIGHWAY SERVICES,714.85,0,Commercial Supplier
01/11/2019,"Environment and Sustainable Transport Recycling, Refuse and Street Cleansing",Ford Motor Company Ltd t/a PartsPlus,HIGHWAY SERVICES,617.90,0,Commercial Supplier
01/11/2019,Children and Young People Operations & Safeguarding,Fostering Innovations Ltd,RESIDENTIAL PLACEMENTS - PRIVATE CONTRACTORS PAYMENT,"3,992.00",0,Commercial Supplier
01/11/2019,Children and Young People Operations & Safeguarding,Fostering Innovations Ltd,RESIDENTIAL PLACEMENTS - PRIVATE CONTRACTORS PAYMENT,"3,038.00",0,Commercial Supplier
01/11/2019,Children and Young People Operations & Safeguarding,Fostering Innovations Ltd,RESIDENTIAL PLACEMENTS - PRIVATE CONTRACTORS PAYMENT,"2,924.32",0,Commercial Supplier
01/11/2019,RMS RMS,GB Macks Skips,REFUSE COLLECTION,"8,550.00",0,Commercial Supplier
01/11/2019,RMS RMS,Gas Training & Assessment,STAFF DEVELOPMENT AND TRAINING,464.00,0,Supplier
01/11/2019,Children and Young People Inclusion & Achievement,Godwin Junior School,CATERING SERVICES,"44,415.00",0,Supplier
01/11/2019,Children and Young People Operations & Safeguarding,Gordon Care Services Limited,LEGAL FEES,"1,224.00",0,Commercial Supplier
01/11/2019,Children and Young People Operations & Safeguarding,Gordon Care Services Limited,LEGAL FEES,"1,428.00",0,Commercial Supplier
01/11/2019,"Environment and Sustainable Transport Recycling, Refuse and Street Cleansing",Greener Solutions,HIGHWAY SERVICES,379.20,0,Supplier
01/11/2019,"Environment and Sustainable Transport Recycling, Refuse and Street Cleansing",Greener Solutions,HIGHWAY SERVICES,"1,058.50",0,Supplier
01/11/2019,"Environment and Sustainable Transport Recycling, Refuse and Street Cleansing",Greener Solutions,HIGHWAY SERVICES,453.88,0,Supplier
01/11/2019,Children and Young People Inclusion & Achievement,Hands Free Computing Ltd,ICT HARDWARE,"2,638.40",0,Commercial Supplier
01/11/2019,oneSource - Non Shared Asset Management,Harding Bros Electrical Ltd,BUILDING ALTERATIONS AND MATERIALS,426.10,0,CIS
01/11/2019,Children and Young People Operations & Safeguarding,Redacted - Personal Data,IN HOUSE FOSTER CARE PLACEMENTS - PRIVATE CONTRACTORS PAYMENT,551.85,0,Individuals
01/11/2019,Children and Young People Inclusion & Achievement,Hestia Housing And Support,LOOKED AFTER COST OTHER,288.52,0,Foster Carers
01/11/2019,Children and Young People Inclusion & Achievement,Hestia Housing And Support,LOOKED AFTER COST OTHER,288.52,0,Foster Carers
01/11/2019,Children and Young People Inclusion & Achievement,Hestia Housing And Support,LOOKED AFTER COST OTHER,288.52,0,Foster Carers
01/11/2019,Children and Young People Inclusion & Achievement,Hestia Housing And Support,LOOKED AFTER COST OTHER,288.52,0,Foster Carers
01/11/2019,Children and Young People Inclusion & Achievement,Hestia Housing And Support,LOOKED AFTER COST OTHER,517.09,0,Foster Carers
01/11/2019,Children and Young People Inclusion & Achievement,Hestia Housing And Support,LOOKED AFTER COST OTHER,517.09,0,Foster Carers
01/11/2019,Children and Young People Inclusion & Achievement,Hestia Housing And Support,LOOKED AFTER COST OTHER,517.09,0,Foster Carers
01/11/2019,Children and Young People Inclusion & Achievement,Hestia Housing And Support,LOOKED AFTER COST OTHER,517.09,0,Foster Carers
01/11/2019,Children and Young People Inclusion & Achievement,Hestia Housing And Support,LOOKED AFTER COST OTHER,270.00,0,Foster Carers
01/11/2019,Children and Young People Inclusion & Achievement,Hestia Housing And Support,LOOKED AFTER COST OTHER,270.00,0,Foster Carers
01/11/2019,Children and Young People Inclusion & Achievement,Hestia Housing And Support,LOOKED AFTER COST OTHER,280.35,0,Foster Carers
01/11/2019,Children and Young People Inclusion & Achievement,Hestia Housing And Support,LOOKED AFTER COST OTHER,270.00,0,Foster Carers
01/11/2019,Children and Young People Inclusion & Achievement,Hestia Housing And Support,LOOKED AFTER COST OTHER,448.00,0,Foster Carers
01/11/2019,Children and Young People Inclusion & Achievement,Hestia Housing And Support,LOOKED AFTER COST OTHER,280.35,0,Foster Carers
01/11/2019,Children and Young People Inclusion & Achievement,Hestia Housing And Support,LOOKED AFTER COST OTHER,270.00,0,Foster Carers
01/11/2019,Children and Young People Inclusion & Achievement,Hestia Housing And Support,LOOKED AFTER COST OTHER,280.35,0,Foster Carers
01/11/2019,Children and Young People Inclusion & Achievement,Hestia Housing And Support,LOOKED AFTER COST OTHER,310.29,0,Foster Carers
01/11/2019,Children and Young People Inclusion & Achievement,Hestia Housing And Support,LOOKED AFTER COST OTHER,263.05,0,Foster Carers
01/11/2019,Children and Young People Inclusion & Achievement,Hestia Housing And Support,LOOKED AFTER COST OTHER,263.05,0,Foster Carers
01/11/2019,Children and Young People Inclusion & Achievement,Hestia Housing And Support,LOOKED AFTER COST OTHER,280.35,0,Foster Carers
01/11/2019,Children and Young People Inclusion & Achievement,Hestia Housing And Support,LOOKED AFTER COST OTHER,263.05,0,Foster Carers
01/11/2019,Children and Young People Inclusion & Achievement,Hestia Housing And Support,LOOKED AFTER COST OTHER,263.05,0,Foster Carers
01/11/2019,Children and Young People Inclusion & Achievement,Hestia Housing And Support,LOOKED AFTER COST OTHER,267.30,0,Foster Carers
01/11/2019,Children and Young People Inclusion & Achievement,Hestia Housing And Support,LOOKED AFTER COST OTHER,267.30,0,Foster Carers
01/11/2019,Children and Young People Inclusion & Achievement,Hestia Housing And Support,LOOKED AFTER COST OTHER,267.30,0,Foster Carers
01/11/2019,Children and Young People Inclusion & Achievement,Hestia Housing And Support,LOOKED AFTER COST OTHER,267.30,0,Foster Carers
01/11/2019,Children and Young People Inclusion & Achievement,Hestia Housing And Support,LOOKED AFTER COST OTHER,284.85,0,Foster Carers
01/11/2019,Children and Young People Inclusion & Achievement,Hestia Housing And Support,LOOKED AFTER COST OTHER,284.85,0,Foster Carers
01/11/2019,Children and Young People Inclusion & Achievement,Hestia Housing And Support,LOOKED AFTER COST OTHER,284.85,0,Foster Carers
01/11/2019,Children and Young People Inclusion & Achievement,Hestia Housing And Support,LOOKED AFTER COST OTHER,284.85,0,Foster Carers
01/11/2019,Children and Young People Inclusion & Achievement,Hestia Housing And Support,LOOKED AFTER COST OTHER,310.29,0,Foster Carers
01/11/2019,Children and Young People Inclusion & Achievement,Hestia Housing And Support,LOOKED AFTER COST OTHER,310.29,0,Foster Carers
01/11/2019,Children and Young People Inclusion & Achievement,Hestia Housing And Support,LOOKED AFTER COST OTHER,310.29,0,Foster Carers
01/11/2019,"Adults & Health Commissioning, Health & Social Care",Highland Care Uk Ltd,HOME CARE - PRIVATE CONTRACTORS PAYMENT,670.00,0,Supplier
01/11/2019,"Adults & Health Commissioning, Health & Social Care",Highland Care Uk Ltd,HOME CARE - PRIVATE CONTRACTORS PAYMENT,375.20,0,Supplier
01/11/2019,"Adults & Health Commissioning, Health & Social Care",Highland Care Uk Ltd,HOME CARE - PRIVATE CONTRACTORS PAYMENT,428.80,0,Supplier
01/11/2019,"Adults & Health Commissioning, Health & Social Care",Highland Care Uk Ltd,HOME CARE - PRIVATE CONTRACTORS PAYMENT,375.20,0,Supplier
01/11/2019,Children and Young People Operations & Safeguarding,Horizan Residential Care Ltd,RESIDENTIAL PLACEMENTS - PRIVATE CONTRACTORS PAYMENT,"1,680.00",0,Commercial Supplier
01/11/2019,Children and Young People Operations & Safeguarding,Horizan Residential Care Ltd,RESIDENTIAL PLACEMENTS - PRIVATE CONTRACTORS PAYMENT,"7,721.33",0,Commercial Supplier
01/11/2019,Children and Young People Operations & Safeguarding,Horizan Residential Care Ltd,RESIDENTIAL PLACEMENTS - PRIVATE CONTRACTORS PAYMENT,"9,400.00",0,Commercial Supplier
01/11/2019,Children and Young People Operations & Safeguarding,Redacted - Personal Data,ADOPTION ALLOWANCE - PRIVATE CONTRACTORS PAYMENT,291.11,0,Foster Carers
01/11/2019,Children and Young People Operations & Safeguarding,Redacted - Personal Data,ADOPTION ALLOWANCE - PRIVATE CONTRACTORS PAYMENT,291.11,0,Foster Carers
01/11/2019,Inclusive Economy & Housing Community Wealth Building,Imperative Training Ltd,STAFF DEVELOPMENT AND TRAINING,945.00,0,Commercial Supplier
01/11/2019,"Environment and Sustainable Transport Recycling, Refuse and Street Cleansing",Independent Fleet Care Ltd,"PURCHASE - EQUIPMENT, FURNITURE AND MATERIALS",260.50,0,Commercial Supplier
01/11/2019,Children and Young People Operations & Safeguarding,Redacted - Personal Data,SPECIAL GUARDIANSHIP,386.85,0,Foster Carers
01/11/2019,Children and Young People Operations & Safeguarding,Redacted - Personal Data,SPECIAL GUARDIANSHIP,386.85,0,Foster Carers
01/11/2019,Children and Young People Operations & Safeguarding,Janailah Ltd.,RESIDENTIAL PLACEMENTS - PRIVATE CONTRACTORS PAYMENT,"10,799.88",0,Supplier
01/11/2019,Children and Young People Operations & Safeguarding,Janailah Ltd.,RESIDENTIAL PLACEMENTS - PRIVATE CONTRACTORS PAYMENT,"10,799.88",0,Supplier
01/11/2019,Children and Young People Inclusion & Achievement,Redacted - Personal Data,LOOKED AFTER COST OTHER,290.77,0,Individuals
01/11/2019,Children and Young People Inclusion & Achievement,Redacted - Personal Data,LOOKED AFTER COST OTHER,290.77,0,Individuals
01/11/2019,Children and Young People Inclusion & Achievement,Redacted - Personal Data,LOOKED AFTER COST OTHER,290.77,0,Individuals
01/11/2019,Children and Young People Inclusion & Achievement,Redacted - Personal Data,LOOKED AFTER COST OTHER,290.77,0,Individuals
01/11/2019,Children and Young People Operations & Safeguarding,Just Homes London Ltd,NO RECOURSE TO PUBLIC FUNDS - PRIVATE CONTRACTORS PAYMENT,924.00,0,Supplier
01/11/2019,Children and Young People Inclusion & Achievement,Keir Hardie Primary School,CATERING SERVICES,"24,132.00",0,Supplier
01/11/2019,"Adults & Health Commissioning, Health & Social Care",Kisimul Group Ltd,RESIDENTIAL PLACEMENTS - PRIVATE CONTRACTORS PAYMENT,"12,204.52",0,Commercial Supplier
01/11/2019,"Adults & Health Commissioning, Health & Social Care",Kisimul Group Ltd,RESIDENTIAL PLACEMENTS - PRIVATE CONTRACTORS PAYMENT,"17,425.06",0,Commercial Supplier
01/11/2019,Children and Young People Operations & Safeguarding,Redacted - Personal Data,SPECIAL GUARDIANSHIP,300.30,0,Individuals
01/11/2019,Children and Young People Operations & Safeguarding,Redacted - Personal Data,SPECIAL GUARDIANSHIP,300.30,0,Individuals
01/11/2019,"Environment and Sustainable Transport Recycling, Refuse and Street Cleansing",L & F Plant Hire Co Ltd T/A Ti,GROUNDS MAINTENANCE,667.00,0,Supplier
01/11/2019,"Environment and Sustainable Transport Recycling, Refuse and Street Cleansing",L & F Plant Hire Co Ltd T/A Ti,GROUNDS MAINTENANCE,"1,150.00",0,Supplier
01/11/2019,"Environment and Sustainable Transport Recycling, Refuse and Street Cleansing",L & F Plant Hire Co Ltd T/A Ti,GROUNDS MAINTENANCE,667.00,0,Supplier
01/11/2019,"Environment and Sustainable Transport Recycling, Refuse and Street Cleansing",L & F Plant Hire Co Ltd T/A Ti,GROUNDS MAINTENANCE,"1,150.00",0,Supplier
01/11/2019,"Environment and Sustainable Transport Recycling, Refuse and Street Cleansing",L & F Plant Hire Co Ltd T/A Ti,GROUNDS MAINTENANCE,667.00,0,Supplier
01/11/2019,"Environment and Sustainable Transport Recycling, Refuse and Street Cleansing",L & F Plant Hire Co Ltd T/A Ti,GROUNDS MAINTENANCE,667.00,0,Supplier
01/11/2019,"Environment and Sustainable Transport Recycling, Refuse and Street Cleansing",L & F Plant Hire Co Ltd T/A Ti,GROUNDS MAINTENANCE,598.00,0,Supplier
01/11/2019,"Environment and Sustainable Transport Recycling, Refuse and Street Cleansing",L & F Plant Hire Co Ltd T/A Ti,GROUNDS MAINTENANCE,667.00,0,Supplier
01/11/2019,"Environment and Sustainable Transport Recycling, Refuse and Street Cleansing",L & F Plant Hire Co Ltd T/A Ti,GROUNDS MAINTENANCE,696.00,0,Supplier
01/11/2019,"Environment and Sustainable Transport Recycling, Refuse and Street Cleansing",L & F Plant Hire Co Ltd T/A Ti,GROUNDS MAINTENANCE,667.00,0,Supplier
01/11/2019,"Environment and Sustainable Transport Recycling, Refuse and Street Cleansing",L & F Plant Hire Co Ltd T/A Ti,GROUNDS MAINTENANCE,667.00,0,Supplier
01/11/2019,Children and Young People Operations & Safeguarding,LCS Partnerships Ltd,CLIENT SUPPORT - THIRD PARTY,"1,652.00",0,Commercial Supplier
01/11/2019,Children and Young People Operations & Safeguarding,LCS Partnerships Ltd,CLIENT SUPPORT - THIRD PARTY,"1,732.08",0,Commercial Supplier
01/11/2019,oneSource - Non Shared Asset Management,Laker Bms,BUILDING ALTERATIONS AND MATERIALS,260.00,0,CIS
01/11/2019,Children and Young People Operations & Safeguarding,Redacted - Personal Data,SPECIAL GUARDIANSHIP,345.00,0,Foster Carers
01/11/2019,Children and Young People Operations & Safeguarding,Redacted - Personal Data,SPECIAL GUARDIANSHIP,345.00,0,Foster Carers
01/11/2019,Inclusive Economy & Housing Community Wealth Building,Law Morgan Ltd,AGENCY STAFF,"3,735.65",0,Commercial Supplier
01/11/2019,"Adults & Health Commissioning, Health & Social Care",Ldn Borough Of Tower Hamlets,PROFESSIONAL SERVICES - GENERAL,"7,787.60",0,Supplier
01/11/2019,"Adults & Health Commissioning, Health & Social Care",Liberty Centre Ltd,DAYCARE - PRIVATE CONTRACTORS PAYMENT,"5,088.00",0,Commercial Supplier
01/11/2019,"Adults & Health Commissioning, Health & Social Care",Liberty Centre Ltd,DAYCARE - PRIVATE CONTRACTORS PAYMENT,"5,088.00",0,Commercial Supplier
01/11/2019,"Adults & Health Commissioning, Health & Social Care",Liberty Centre Ltd,DAYCARE - PRIVATE CONTRACTORS PAYMENT,"5,088.00",0,Commercial Supplier
01/11/2019,Adults & Health Public Health,London Borough of Haringey,PAYMENT TO HEALTH AUTHORITIES,"19,202.00",0,Local Authority Services
01/11/2019,"People, Policy and Performance Policy & Performance",London Councils,MEMBERSHIP AND SUBSCRIPTIONS,"65,737.00",0,Central/Government Departments
01/11/2019,Environment and Sustainable Transport Community Safety,London Councils,PROFESSIONAL SERVICES - GENERAL,533.05,0,Central/Government Departments
01/11/2019,"Adults & Health Commissioning, Health & Social Care",London Councils,MEMBERSHIP AND SUBSCRIPTIONS,"17,065.00",0,Central/Government Departments
01/11/2019,Environment and Sustainable Transport Community Safety,London Councils,PROFESSIONAL SERVICES - GENERAL,"1,200.00",0,Central/Government Departments
01/11/2019,Inclusive Economy & Housing Community Wealth Building,London Network for Pest Solutions Ltd,PRIVATE CONTRACTORS PAYMENT - OTHER,448.00,0,Commercial Supplier
01/11/2019,Housing Revenue Account HRA,London Network for Pest Solutions Ltd,PRIVATE CONTRACTORS PAYMENT - OTHER,"22,294.33",0,Commercial Supplier
01/11/2019,Children and Young People Operations & Safeguarding,Redacted - Personal Data,SPECIAL GUARDIANSHIP,345.00,0,Foster Carers
01/11/2019,Children and Young People Operations & Safeguarding,Redacted - Personal Data,SPECIAL GUARDIANSHIP,345.00,0,Foster Carers
01/11/2019,"Environment and Sustainable Transport Recycling, Refuse and Street Cleansing",MJDV Services Ltd,"PURCHASE - EQUIPMENT, FURNITURE AND MATERIALS","1,645.00",0,Commercial Supplier
01/11/2019,Children and Young People Inclusion & Achievement,Manor Primary School,CATERING SERVICES,"13,620.00",0,Supplier
01/11/2019,"People, Policy and Performance Resident Engagement & Participation",Manzoor Ahmed,CATERING AND VENDING SUPPLIES,550.00,0,Supplier
01/11/2019,Children and Young People Inclusion & Achievement,Maryland Primary School,CATERING SERVICES,"25,020.00",0,Supplier
01/11/2019,Children and Young People Operations & Safeguarding,Redacted - Personal Data,ADOPTION ALLOWANCE - PRIVATE CONTRACTORS PAYMENT,301.11,0,Foster Carers
01/11/2019,Children and Young People Operations & Safeguarding,Redacted - Personal Data,ADOPTION ALLOWANCE - PRIVATE CONTRACTORS PAYMENT,301.11,0,Foster Carers
01/11/2019,"Adults & Health Commissioning, Health & Social Care",Micks Furniture Discount,"PURCHASE - EQUIPMENT, FURNITURE AND MATERIALS",430.00,0,CIS
01/11/2019,Children and Young People Inclusion & Achievement,Redacted - Personal Data,LOOKED AFTER COST OTHER,384.00,0,Foster Carers
01/11/2019,Children and Young People Inclusion & Achievement,Redacted - Personal Data,LOOKED AFTER COST OTHER,384.00,0,Foster Carers
01/11/2019,Children and Young People Inclusion & Achievement,Redacted - Personal Data,LOOKED AFTER COST OTHER,384.00,0,Foster Carers
01/11/2019,Children and Young People Inclusion & Achievement,Redacted - Personal Data,LOOKED AFTER COST OTHER,384.00,0,Foster Carers
01/11/2019,"Environment and Sustainable Transport Recycling, Refuse and Street Cleansing",Mjm Supplies Ltd,HIGHWAY SERVICES,399.57,0,Supplier
01/11/2019,Children and Young People Inclusion & Achievement,Monega Primary School t/a Boleyn Academy Trust,CATERING SERVICES,"35,295.00",0,Non Commercial Supplier
01/11/2019,Children and Young People Operations & Safeguarding,Nationwide Accommodation Services Limited,NO RECOURSE TO PUBLIC FUNDS - PRIVATE CONTRACTORS PAYMENT,"1,500.00",0,Commercial Supplier
01/11/2019,Children and Young People Inclusion & Achievement,New City Primary School t/a The Boleyn Trust,CATERING SERVICES,"34,347.00",0,Commercial Supplier
01/11/2019,oneSource - Non Shared Asset Management,Newham Learning Partnership (Project Co) Limited,"MAINTENANCE - EQUIPMENT, FURNITURE AND MATERIALS","369,322.38",0,Supplier
01/11/2019,oneSource - Non Shared Asset Management,Newham Learning Partnership (Project Co) Limited,"MAINTENANCE - EQUIPMENT, FURNITURE AND MATERIALS","17,423.00",0,Supplier
01/11/2019,oneSource - Non Shared Asset Management,Newham Learning Partnership (Project Co) Limited,"MAINTENANCE - EQUIPMENT, FURNITURE AND MATERIALS","24,640.00",0,Supplier
01/11/2019,oneSource - Non Shared Asset Management,Newham Learning Partnership (Project Co) Limited,"MAINTENANCE - EQUIPMENT, FURNITURE AND MATERIALS","297,587.55",0,Supplier
01/11/2019,CYP Commissioner ? Brighter Futures Early Help and Childrens Health,Newham Partnership Working Ltd,PROFESSIONAL SERVICES - GENERAL,985.00,0,Supplier
01/11/2019,CYP Commissioner ? Brighter Futures Youth Empowerment,Newham Partnership Working Ltd,PROFESSIONAL SERVICES - GENERAL,400.00,0,Supplier
01/11/2019,Children and Young People Inclusion & Achievement,Newham Partnership Working Ltd,PROFESSIONAL SERVICES - GENERAL,935.14,0,Supplier
01/11/2019,CYP Commissioner ? Brighter Futures Children's Commissioning,Newham Partnership Working Ltd,PROFESSIONAL SERVICES - GENERAL,"8,745.00",0,Supplier
01/11/2019,Inclusive Economy & Housing Community Wealth Building,Newham Partnership Working Ltd,PROFESSIONAL SERVICES - GENERAL,"13,630.13",0,Supplier
01/11/2019,Inclusive Economy & Housing Community Wealth Building,Newham Partnership Working Ltd,PROFESSIONAL SERVICES - GENERAL,"1,740.84",0,Supplier
01/11/2019,oneSource - Non Shared Asset Management,Newham Partnership Working Ltd,PROFESSIONAL SERVICES - GENERAL,"11,500.00",0,Supplier
01/11/2019,"People, Policy and Performance Resident Engagement & Participation",Newham Poetry Group,ARTS AND LEISURE COSTS,610.00,0,Non Commercial Supplier
01/11/2019,Children and Young People Operations & Safeguarding,Next Step Fostering Services Ltd,RESIDENTIAL PLACEMENTS - PRIVATE CONTRACTORS PAYMENT,"6,497.12",0,Commercial Supplier
01/11/2019,Children and Young People Operations & Safeguarding,Redacted - Personal Data,SPECIAL GUARDIANSHIP,346.00,0,Foster Carers
01/11/2019,Children and Young People Operations & Safeguarding,Redacted - Personal Data,SPECIAL GUARDIANSHIP,346.00,0,Foster Carers
01/11/2019,Children and Young People Operations & Safeguarding,Redacted - Personal Data,SPECIAL GUARDIANSHIP,346.00,0,Foster Carers
01/11/2019,Children and Young People Operations & Safeguarding,Redacted - Personal Data,SPECIAL GUARDIANSHIP,346.00,0,Foster Carers
01/11/2019,Children and Young People Operations & Safeguarding,Redacted - Personal Data,IN HOUSE FOSTER CARE PLACEMENTS - PRIVATE CONTRACTORS PAYMENT,300.00,0,Individuals
01/11/2019,Children and Young People Operations & Safeguarding,Redacted - Personal Data,IN HOUSE FOSTER CARE PLACEMENTS - PRIVATE CONTRACTORS PAYMENT,300.00,0,Individuals
01/11/2019,Inclusive Economy & Housing Housing,Redacted - Personal Data,"PURCHASE - EQUIPMENT, FURNITURE AND MATERIALS","2,483.57",0,Employee
01/11/2019,Inclusive Economy & Housing Housing,Redacted - Personal Data,HOTEL AND OTHER ACCOMMODATION COSTS,"77,413.29",0,Employee
01/11/2019,Children and Young People Inclusion & Achievement,North Beckton Primary School T/A The Tapscott Learning Trust,CATERING SERVICES,"33,903.00",0,Commercial Supplier
01/11/2019,Resources Council Tax & Benefits,Northgate Public Services (UK) Limited,CONSULTANCY FEES,"23,763.68",0,Commercial Supplier
01/11/2019,"Environment and Sustainable Transport Recycling, Refuse and Street Cleansing",Northgate Vehicle Hire Ltd,VEHICLE HIRE,303.71,0,Non Commercial Supplier
01/11/2019,Children and Young People Operations & Safeguarding,Nursing Direct Healthcare Limited,RESIDENTIAL PLACEMENTS - PRIVATE CONTRACTORS PAYMENT,"5,453.60",0,Commercial Supplier
01/11/2019,Children and Young People Operations & Safeguarding,Nursing Direct Healthcare Limited,RESIDENTIAL PLACEMENTS - PRIVATE CONTRACTORS PAYMENT,"5,453.60",0,Commercial Supplier
01/11/2019,oneSource oS ICT Services,PCM Technology Solutions UK Ltd,ICT HARDWARE,"6,062.70",0,Commercial Supplier
01/11/2019,Children and Young People Operations & Safeguarding,PFS Prepaid Financial Services,NO RECOURSE TO PUBLIC FUNDS - PRIVATE CONTRACTORS PAYMENT,300.00,0,Individuals
01/11/2019,Children and Young People Operations & Safeguarding,PFS Prepaid Financial Services,ADDITIONAL PLACEMENTS - THIRD PARTY,"1,360.00",0,Individuals
01/11/2019,Children and Young People Operations & Safeguarding,PFS Prepaid Financial Services,NO RECOURSE TO PUBLIC FUNDS - PRIVATE CONTRACTORS PAYMENT,375.00,0,Individuals
01/11/2019,Children and Young People Operations & Safeguarding,PFS Prepaid Financial Services,IN HOUSE FOSTER CARE PLACEMENTS - PRIVATE CONTRACTORS PAYMENT,"1,125.00",0,Individuals
01/11/2019,Children and Young People Operations & Safeguarding,PFS Prepaid Financial Services,NO RECOURSE TO PUBLIC FUNDS - PRIVATE CONTRACTORS PAYMENT,375.00,0,Individuals
01/11/2019,Children and Young People Operations & Safeguarding,PFS Prepaid Financial Services,NO RECOURSE TO PUBLIC FUNDS - PRIVATE CONTRACTORS PAYMENT,300.00,0,Individuals
01/11/2019,Children and Young People Operations & Safeguarding,PFS Prepaid Financial Services,NO RECOURSE TO PUBLIC FUNDS - PRIVATE CONTRACTORS PAYMENT,300.00,0,Individuals
01/11/2019,Children and Young People Operations & Safeguarding,PFS Prepaid Financial Services,IN HOUSE FOSTER CARE PLACEMENTS - PRIVATE CONTRACTORS PAYMENT,513.95,0,Individuals
01/11/2019,Children and Young People Operations & Safeguarding,PFS Prepaid Financial Services,NO RECOURSE TO PUBLIC FUNDS - PRIVATE CONTRACTORS PAYMENT,300.00,0,Individuals
01/11/2019,Children and Young People Operations & Safeguarding,PFS Prepaid Financial Services,NO RECOURSE TO PUBLIC FUNDS - PRIVATE CONTRACTORS PAYMENT,300.00,0,Individuals
01/11/2019,Children and Young People Operations & Safeguarding,PFS Prepaid Financial Services,NO RECOURSE TO PUBLIC FUNDS - PRIVATE CONTRACTORS PAYMENT,718.80,0,Individuals
01/11/2019,Children and Young People Operations & Safeguarding,PFS Prepaid Financial Services,NO RECOURSE TO PUBLIC FUNDS - PRIVATE CONTRACTORS PAYMENT,300.00,0,Individuals
01/11/2019,Environment and Sustainable Transport Highways and Sustainable Transport,Paybyphone Ltd,"PURCHASE - EQUIPMENT, FURNITURE AND MATERIALS","2,404.65",0,Commercial Supplier
01/11/2019,Children and Young People Operations & Safeguarding,Redacted - Personal Data,ADOPTION ALLOWANCE - PRIVATE CONTRACTORS PAYMENT,307.71,0,Foster Carers
01/11/2019,Children and Young People Operations & Safeguarding,Redacted - Personal Data,ADOPTION ALLOWANCE - PRIVATE CONTRACTORS PAYMENT,307.71,0,Foster Carers
01/11/2019,Children and Young People Inclusion & Achievement,Plaistow Primary School,CATERING SERVICES,"22,207.00",0,Commercial Supplier
01/11/2019,Children and Young People Inclusion & Achievement,Portway Primary School t/a Leading Learning Trust,CATERING SERVICES,"31,682.00",0,Commercial Supplier
01/11/2019,Dedicated Schools Budget Dedicated Schools Budget,Protocol Education Ltd,PRIVATE CONTRACTORS PAYMENT - OTHER,631.25,0,Commercial Supplier
01/11/2019,Dedicated Schools Budget Dedicated Schools Budget,Protocol Education Ltd,PRIVATE CONTRACTORS PAYMENT - OTHER,631.25,0,Commercial Supplier
01/11/2019,Dedicated Schools Budget Dedicated Schools Budget,Protocol Education Ltd,PRIVATE CONTRACTORS PAYMENT - OTHER,631.25,0,Commercial Supplier
01/11/2019,Dedicated Schools Budget Dedicated Schools Budget,Protocol Education Ltd,PRIVATE CONTRACTORS PAYMENT - OTHER,631.25,0,Commercial Supplier
01/11/2019,Dedicated Schools Budget Dedicated Schools Budget,Protocol Education Ltd,PRIVATE CONTRACTORS PAYMENT - OTHER,630.46,0,Commercial Supplier
01/11/2019,Dedicated Schools Budget Dedicated Schools Budget,Protocol Education Ltd,PRIVATE CONTRACTORS PAYMENT - OTHER,631.25,0,Commercial Supplier
01/11/2019,CYP Commissioner ? Brighter Futures Children's Commissioning,Public Realm Services Ltd,STREET SWEEPING,"3,322.52",0,Commercial Supplier
01/11/2019,Children and Young People Operations & Safeguarding,Redacted - Personal Data,ADOPTION ALLOWANCE - PRIVATE CONTRACTORS PAYMENT,334.08,0,Foster Carers
01/11/2019,Children and Young People Operations & Safeguarding,Redacted - Personal Data,ADOPTION ALLOWANCE - PRIVATE CONTRACTORS PAYMENT,334.08,0,Foster Carers
01/11/2019,"Environment and Sustainable Transport Recycling, Refuse and Street Cleansing",RFW Engineering Ltd,"PURCHASE - EQUIPMENT, FURNITURE AND MATERIALS",680.00,0,Commercial Supplier
01/11/2019,Children and Young People Inclusion & Achievement,Ranelagh Primary School t/a Tapscott Learning Trust,CATERING SERVICES,"14,953.00",0,Commercial Supplier
01/11/2019,Children and Young People Operations & Safeguarding,Real Life,SUPPORTED OTHER ACCOMMODATION - PRIVATE CONTRACTORS PAYMENT,"3,700.00",0,Commercial Supplier
01/11/2019,"Adults & Health Commissioning, Health & Social Care",Reed Employment Plc,DAYCARE - PRIVATE CONTRACTORS PAYMENT,502.50,0,Commercial Supplier
01/11/2019,oneSource oS ICT Services,Royal Mail Group Plc,POSTAGE AND COURIER SERVICES,"28,989.78",0,Commercial Supplier
01/11/2019,Children and Young People Operations & Safeguarding,Redacted - Personal Data,ADOPTION ALLOWANCE - PRIVATE CONTRACTORS PAYMENT,317.33,0,Foster Carers
01/11/2019,Children and Young People Operations & Safeguarding,Redacted - Personal Data,ADOPTION ALLOWANCE - PRIVATE CONTRACTORS PAYMENT,317.33,0,Foster Carers
01/11/2019,"Environment and Sustainable Transport Recycling, Refuse and Street Cleansing",S K L Locksmiths,"PURCHASE - EQUIPMENT, FURNITURE AND MATERIALS",405.00,0,Individuals
01/11/2019,RMS RMS,SBB Group Ltd,PRIVATE CONTRACTORS PAYMENT - OTHER,"5,401.00",0,CIS
01/11/2019,RMS RMS,SBB Group Ltd,PRIVATE CONTRACTORS PAYMENT - OTHER,"1,200.00",0,CIS
01/11/2019,RMS RMS,SBB Group Ltd,PRIVATE CONTRACTORS PAYMENT - OTHER,"1,600.00",0,CIS
01/11/2019,RMS RMS,SBB Group Ltd,PRIVATE CONTRACTORS PAYMENT - OTHER,"5,263.00",0,CIS
01/11/2019,RMS RMS,SBB Group Ltd,PRIVATE CONTRACTORS PAYMENT - OTHER,"5,731.00",0,CIS
01/11/2019,RMS RMS,SBB Group Ltd,PRIVATE CONTRACTORS PAYMENT - OTHER,"6,048.00",0,CIS
01/11/2019,RMS RMS,SBB Group Ltd,PRIVATE CONTRACTORS PAYMENT - OTHER,"5,258.00",0,CIS
01/11/2019,RMS RMS,SBB Group Ltd,PRIVATE CONTRACTORS PAYMENT - OTHER,"4,979.00",0,CIS
01/11/2019,RMS RMS,SBB Group Ltd,PRIVATE CONTRACTORS PAYMENT - OTHER,"4,920.00",0,CIS
01/11/2019,RMS RMS,SBB Group Ltd,PRIVATE CONTRACTORS PAYMENT - OTHER,"5,787.00",0,CIS
01/11/2019,RMS RMS,SBB Group Ltd,RESPONSIVE REPAIRS - MECHANICAL AND ELECTRICAL,"5,176.00",0,CIS
01/11/2019,RMS RMS,SBB Group Ltd,PRIVATE CONTRACTORS PAYMENT - OTHER,"4,592.00",0,CIS
01/11/2019,"Environment and Sustainable Transport Recycling, Refuse and Street Cleansing",Salt Union Ltd,HIGHWAY SERVICES,"1,189.57",0,Supplier
01/11/2019,Children and Young People Inclusion & Achievement,Sayers (Car Hire),DIRECT TRANSPORT,255.00,0,Supplier
01/11/2019,Children and Young People Operations & Safeguarding,Sayers (Car Hire),CLIENT EXPENSES - THIRD PARTY,300.00,0,Supplier
01/11/2019,Children and Young People Inclusion & Achievement,Sayers (Car Hire),DIRECT TRANSPORT,"6,204.50",0,Supplier
01/11/2019,Children and Young People Inclusion & Achievement,Sayers (Car Hire),DIRECT TRANSPORT,"2,860.00",0,Supplier
01/11/2019,Children and Young People Inclusion & Achievement,Sayers (Car Hire),DIRECT TRANSPORT,748.00,0,Supplier
01/11/2019,Children and Young People Inclusion & Achievement,Sayers (Car Hire),DIRECT TRANSPORT,"2,540.00",0,Supplier
01/11/2019,Children and Young People Inclusion & Achievement,Sayers (Car Hire),DIRECT TRANSPORT,731.25,0,Supplier
01/11/2019,Children and Young People Inclusion & Achievement,Sayers (Car Hire),DIRECT TRANSPORT,517.00,0,Supplier
01/11/2019,Children and Young People Inclusion & Achievement,Sayers (Car Hire),DIRECT TRANSPORT,"1,955.00",0,Supplier
01/11/2019,Children and Young People Inclusion & Achievement,Sayers (Car Hire),DIRECT TRANSPORT,"1,682.00",0,Supplier
01/11/2019,Children and Young People Inclusion & Achievement,Sayers (Car Hire),DIRECT TRANSPORT,"2,405.00",0,Supplier
01/11/2019,Children and Young People Inclusion & Achievement,Sayers (Car Hire),DIRECT TRANSPORT,"3,053.00",0,Supplier
01/11/2019,Children and Young People Inclusion & Achievement,Sayers (Car Hire),DIRECT TRANSPORT,"3,780.00",0,Supplier
01/11/2019,Children and Young People Inclusion & Achievement,Sayers (Car Hire),DIRECT TRANSPORT,"1,782.00",0,Supplier
01/11/2019,Children and Young People Inclusion & Achievement,Sayers (Car Hire),DIRECT TRANSPORT,"2,700.00",0,Supplier
01/11/2019,Children and Young People Operations & Safeguarding,Ses Avocet Ltd,PRIVATE CONTRACTORS PAYMENT - OTHER,"20,351.47",0,Supplier
01/11/2019,Children and Young People Operations & Safeguarding,Redacted - Personal Data,SPECIAL GUARDIANSHIP,255.15,0,Foster Carers
01/11/2019,Children and Young People Operations & Safeguarding,Redacted - Personal Data,SPECIAL GUARDIANSHIP,255.15,0,Foster Carers
01/11/2019,Children and Young People Operations & Safeguarding,Redacted - Personal Data,SPECIAL GUARDIANSHIP,255.15,0,Foster Carers
01/11/2019,Children and Young People Operations & Safeguarding,Redacted - Personal Data,SPECIAL GUARDIANSHIP,255.15,0,Foster Carers
01/11/2019,Children and Young People Inclusion & Achievement,Redacted - Personal Data,LOOKED AFTER COST OTHER,405.19,0,Foster Carers
01/11/2019,Children and Young People Inclusion & Achievement,Redacted - Personal Data,LOOKED AFTER COST OTHER,405.19,0,Foster Carers
01/11/2019,Children and Young People Inclusion & Achievement,Redacted - Personal Data,LOOKED AFTER COST OTHER,405.19,0,Foster Carers
01/11/2019,Children and Young People Inclusion & Achievement,Redacted - Personal Data,LOOKED AFTER COST OTHER,"1,471.54",0,Foster Carers
01/11/2019,Children and Young People Inclusion & Achievement,Redacted - Personal Data,LOOKED AFTER COST OTHER,"1,471.54",0,Foster Carers
01/11/2019,Children and Young People Inclusion & Achievement,Redacted - Personal Data,LOOKED AFTER COST OTHER,"1,471.54",0,Foster Carers
01/11/2019,Children and Young People Inclusion & Achievement,Redacted - Personal Data,LOOKED AFTER COST OTHER,280.50,0,Foster Carers
01/11/2019,Children and Young People Inclusion & Achievement,Redacted - Personal Data,LOOKED AFTER COST OTHER,"1,471.54",0,Foster Carers
01/11/2019,Children and Young People Inclusion & Achievement,Redacted - Personal Data,LOOKED AFTER COST OTHER,280.50,0,Foster Carers
01/11/2019,Children and Young People Inclusion & Achievement,Redacted - Personal Data,LOOKED AFTER COST OTHER,280.50,0,Foster Carers
01/11/2019,Children and Young People Inclusion & Achievement,Redacted - Personal Data,LOOKED AFTER COST OTHER,280.50,0,Foster Carers
01/11/2019,Children and Young People Inclusion & Achievement,Redacted - Personal Data,LOOKED AFTER COST OTHER,405.19,0,Foster Carers
01/11/2019,Children and Young People Operations & Safeguarding,Shared Care Services Ltd,RESIDENTIAL PLACEMENTS - PRIVATE CONTRACTORS PAYMENT,"5,500.00",0,Commercial Supplier
01/11/2019,Children and Young People Operations & Safeguarding,Shared Care Services Ltd,RESIDENTIAL PLACEMENTS - PRIVATE CONTRACTORS PAYMENT,"5,500.00",0,Commercial Supplier
01/11/2019,Children and Young People Operations & Safeguarding,Shared Care Services Ltd,RESIDENTIAL PLACEMENTS - PRIVATE CONTRACTORS PAYMENT,"5,580.00",0,Commercial Supplier
01/11/2019,Children and Young People Operations & Safeguarding,Shared Care Services Ltd,RESIDENTIAL PLACEMENTS - PRIVATE CONTRACTORS PAYMENT,"5,500.00",0,Commercial Supplier
01/11/2019,Children and Young People Operations & Safeguarding,Shared Care Services Ltd,RESIDENTIAL PLACEMENTS - PRIVATE CONTRACTORS PAYMENT,"5,580.00",0,Commercial Supplier
01/11/2019,oneSource - Non Shared Asset Management,Shred-it Ltd,FACILITIES MANAGEMENT,585.38,0,Supplier
01/11/2019,Adults & Health Operations,Skyguard Ltd,HEALTH AND SAFETY WORKS,288.00,0,Commercial Supplier
01/11/2019,"Adults & Health Commissioning, Health & Social Care",Sonia Heway Care Agency Ltd,DAYCARE - PRIVATE CONTRACTORS PAYMENT,270.00,0,Commercial Supplier
01/11/2019,"Adults & Health Commissioning, Health & Social Care",Sonia Heway Care Agency Ltd,HOME CARE - PRIVATE CONTRACTORS PAYMENT,364.50,0,Commercial Supplier
01/11/2019,"Adults & Health Commissioning, Health & Social Care",Sonia Heway Care Agency Ltd,PRIVATE CONTRACTORS PAYMENT - OTHER,"2,079.00",0,Commercial Supplier
01/11/2019,"Adults & Health Commissioning, Health & Social Care",Sonia Heway Care Agency Ltd,PRIVATE CONTRACTORS PAYMENT - OTHER,945.00,0,Commercial Supplier
01/11/2019,"Adults & Health Commissioning, Health & Social Care",Sonia Heway Care Agency Ltd,PRIVATE CONTRACTORS PAYMENT - OTHER,"1,701.00",0,Commercial Supplier
01/11/2019,"Adults & Health Commissioning, Health & Social Care",Sonia Heway Care Agency Ltd,HOME CARE - PRIVATE CONTRACTORS PAYMENT,"1,134.00",0,Commercial Supplier
01/11/2019,"Adults & Health Commissioning, Health & Social Care",Sonia Heway Care Agency Ltd,HOME CARE - PRIVATE CONTRACTORS PAYMENT,"1,701.00",0,Commercial Supplier
01/11/2019,"Adults & Health Commissioning, Health & Social Care",Sonia Heway Care Agency Ltd,HOME CARE - PRIVATE CONTRACTORS PAYMENT,675.00,0,Commercial Supplier
01/11/2019,"Adults & Health Commissioning, Health & Social Care",Sonia Heway Care Agency Ltd,HOME CARE - PRIVATE CONTRACTORS PAYMENT,"2,079.00",0,Commercial Supplier
01/11/2019,"Adults & Health Commissioning, Health & Social Care",Sonia Heway Care Agency Ltd,HOME CARE - PRIVATE CONTRACTORS PAYMENT,567.00,0,Commercial Supplier
01/11/2019,"Adults & Health Commissioning, Health & Social Care",Sonia Heway Care Agency Ltd,HOME CARE - PRIVATE CONTRACTORS PAYMENT,"1,890.00",0,Commercial Supplier
01/11/2019,"Adults & Health Commissioning, Health & Social Care",Sonia Heway Care Agency Ltd,HOME CARE - PRIVATE CONTRACTORS PAYMENT,"1,890.00",0,Commercial Supplier
01/11/2019,"Adults & Health Commissioning, Health & Social Care",Sonia Heway Care Agency Ltd,HOME CARE - PRIVATE CONTRACTORS PAYMENT,675.00,0,Commercial Supplier
01/11/2019,"Adults & Health Commissioning, Health & Social Care",Sonia Heway Care Agency Ltd,HOME CARE - PRIVATE CONTRACTORS PAYMENT,486.00,0,Commercial Supplier
01/11/2019,Dedicated Schools Budget Dedicated Schools Budget,South Grove Primary School,PROFESSIONAL SERVICES - GENERAL,"7,249.99",0,Commercial Supplier
01/11/2019,"Environment and Sustainable Transport Recycling, Refuse and Street Cleansing",Sparshatt Truck & Van Ltd,HIGHWAY SERVICES,699.13,0,Commercial Supplier
01/11/2019,Children and Young People Inclusion & Achievement,St Lukes C Of E Primary School,CATERING SERVICES,"12,140.00",0,Supplier
01/11/2019,Children and Young People Inclusion & Achievement,St Stephens Primary School,CATERING SERVICES,"33,311.00",0,Supplier
01/11/2019,Housing Revenue Account HRA,Strutt & Parker.,LEGAL FEES,"4,130.00",0,Commercial Supplier
01/11/2019,"Adults & Health Commissioning, Health & Social Care",Subco Trust,DAYCARE - PRIVATE CONTRACTORS PAYMENT,440.00,0,Supplier
01/11/2019,"Adults & Health Commissioning, Health & Social Care",Subco Trust,DAYCARE - PRIVATE CONTRACTORS PAYMENT,320.00,0,Supplier
01/11/2019,"Adults & Health Commissioning, Health & Social Care",Subco Trust,DAYCARE - PRIVATE CONTRACTORS PAYMENT,600.00,0,Supplier
01/11/2019,"Adults & Health Commissioning, Health & Social Care",Subco Trust,DAYCARE - PRIVATE CONTRACTORS PAYMENT,800.00,0,Supplier
01/11/2019,"Adults & Health Commissioning, Health & Social Care",Subco Trust,DAYCARE - PRIVATE CONTRACTORS PAYMENT,400.00,0,Supplier
01/11/2019,"Adults & Health Commissioning, Health & Social Care",Subco Trust,DAYCARE - PRIVATE CONTRACTORS PAYMENT,320.00,0,Supplier
01/11/2019,"Adults & Health Commissioning, Health & Social Care",Subco Trust,DAYCARE - PRIVATE CONTRACTORS PAYMENT,900.00,0,Supplier
01/11/2019,"Adults & Health Commissioning, Health & Social Care",Subco Trust,DAYCARE - PRIVATE CONTRACTORS PAYMENT,260.00,0,Supplier
01/11/2019,"Adults & Health Commissioning, Health & Social Care",Subco Trust,DAYCARE - PRIVATE CONTRACTORS PAYMENT,560.00,0,Supplier
01/11/2019,"Adults & Health Commissioning, Health & Social Care",Subco Trust,DAYCARE - PRIVATE CONTRACTORS PAYMENT,780.00,0,Supplier
01/11/2019,"Adults & Health Commissioning, Health & Social Care",Subco Trust,DAYCARE - PRIVATE CONTRACTORS PAYMENT,440.00,0,Supplier
01/11/2019,"Adults & Health Commissioning, Health & Social Care",Subco Trust,DAYCARE - PRIVATE CONTRACTORS PAYMENT,440.00,0,Supplier
01/11/2019,"Adults & Health Commissioning, Health & Social Care",Subco Trust,DAYCARE - PRIVATE CONTRACTORS PAYMENT,320.00,0,Supplier
01/11/2019,"Adults & Health Commissioning, Health & Social Care",Subco Trust,DAYCARE - PRIVATE CONTRACTORS PAYMENT,560.00,0,Supplier
01/11/2019,"Adults & Health Commissioning, Health & Social Care",Subco Trust,DAYCARE - PRIVATE CONTRACTORS PAYMENT,260.00,0,Supplier
01/11/2019,"Adults & Health Commissioning, Health & Social Care",Subco Trust,DAYCARE - PRIVATE CONTRACTORS PAYMENT,600.00,0,Supplier
01/11/2019,"Adults & Health Commissioning, Health & Social Care",Subco Trust,DAYCARE - PRIVATE CONTRACTORS PAYMENT,800.00,0,Supplier
01/11/2019,"Adults & Health Commissioning, Health & Social Care",Subco Trust,DAYCARE - PRIVATE CONTRACTORS PAYMENT,320.00,0,Supplier
01/11/2019,"Adults & Health Commissioning, Health & Social Care",Subco Trust,DAYCARE - PRIVATE CONTRACTORS PAYMENT,640.00,0,Supplier
01/11/2019,"Adults & Health Commissioning, Health & Social Care",Subco Trust,DAYCARE - PRIVATE CONTRACTORS PAYMENT,400.00,0,Supplier
01/11/2019,"Adults & Health Commissioning, Health & Social Care",Subco Trust,DAYCARE - PRIVATE CONTRACTORS PAYMENT,320.00,0,Supplier
01/11/2019,"Adults & Health Commissioning, Health & Social Care",Subco Trust,DAYCARE - PRIVATE CONTRACTORS PAYMENT,440.00,0,Supplier
01/11/2019,"Adults & Health Commissioning, Health & Social Care",Subco Trust,DAYCARE - PRIVATE CONTRACTORS PAYMENT,260.00,0,Supplier
01/11/2019,"Adults & Health Commissioning, Health & Social Care",Subco Trust,DAYCARE - PRIVATE CONTRACTORS PAYMENT,320.00,0,Supplier
01/11/2019,"Adults & Health Commissioning, Health & Social Care",Subco Trust,DAYCARE - PRIVATE CONTRACTORS PAYMENT,"1,200.00",0,Supplier
01/11/2019,"Adults & Health Commissioning, Health & Social Care",Subco Trust,DAYCARE - PRIVATE CONTRACTORS PAYMENT,260.00,0,Supplier
01/11/2019,"Adults & Health Commissioning, Health & Social Care",Subco Trust,DAYCARE - PRIVATE CONTRACTORS PAYMENT,280.00,0,Supplier
01/11/2019,"Adults & Health Commissioning, Health & Social Care",Subco Trust,DAYCARE - PRIVATE CONTRACTORS PAYMENT,800.00,0,Supplier
01/11/2019,"Adults & Health Commissioning, Health & Social Care",Subco Trust,DAYCARE - PRIVATE CONTRACTORS PAYMENT,400.00,0,Supplier
01/11/2019,Children and Young People Operations & Safeguarding,Redacted - Personal Data,ADOPTION ALLOWANCE - PRIVATE CONTRACTORS PAYMENT,288.18,0,Foster Carers
01/11/2019,Children and Young People Operations & Safeguarding,Redacted - Personal Data,ADOPTION ALLOWANCE - PRIVATE CONTRACTORS PAYMENT,288.18,0,Foster Carers
01/11/2019,Children and Young People Operations & Safeguarding,Redacted - Personal Data,ADOPTION ALLOWANCE - PRIVATE CONTRACTORS PAYMENT,268.44,0,Foster Carers
01/11/2019,Children and Young People Operations & Safeguarding,Redacted - Personal Data,ADOPTION ALLOWANCE - PRIVATE CONTRACTORS PAYMENT,268.44,0,Foster Carers
01/11/2019,oneSource - Non Shared Asset Management,Syntegra Consulting Limited,CONSULTANCY FEES,750.00,0,Commercial Supplier
01/11/2019,"Environment and Sustainable Transport Recycling, Refuse and Street Cleansing",TG Engineering,"PURCHASE - EQUIPMENT, FURNITURE AND MATERIALS",280.00,0,Commercial Supplier
01/11/2019,Dedicated Schools Budget Dedicated Schools Budget,Tc Education Services,PROFESSIONAL SERVICES - GENERAL,"21,000.00",0,Supplier
01/11/2019,Dedicated Schools Budget Dedicated Schools Budget,Tc Education Services,PROFESSIONAL SERVICES - GENERAL,"21,000.00",0,Supplier
01/11/2019,Environment and Sustainable Transport Licensing & Regulation,Total Assist Recruitment Ltd,PROFESSIONAL SERVICES - GENERAL,456.00,0,Non Commercial Supplier
01/11/2019,Environment and Sustainable Transport Licensing & Regulation,Total Assist Recruitment Ltd,PROFESSIONAL SERVICES - GENERAL,498.75,0,Non Commercial Supplier
01/11/2019,Environment and Sustainable Transport Licensing & Regulation,Total Assist Recruitment Ltd,PROFESSIONAL SERVICES - GENERAL,855.00,0,Non Commercial Supplier
01/11/2019,Environment and Sustainable Transport Licensing & Regulation,Total Assist Recruitment Ltd,PROFESSIONAL SERVICES - GENERAL,669.75,0,Non Commercial Supplier
01/11/2019,RMS RMS,Travis Perkins Trading Company Ltd,"CLOTHES, UNIFORM AND LAUNDRY",295.86,0,Commercial Supplier
01/11/2019,RMS RMS,Travis Perkins Trading Company Ltd,"PURCHASE - EQUIPMENT, FURNITURE AND MATERIALS",552.00,0,Commercial Supplier
01/11/2019,RMS RMS,Travis Perkins Trading Company Ltd,"CLOTHES, UNIFORM AND LAUNDRY",633.89,0,Commercial Supplier
01/11/2019,Housing Revenue Account HRA,Tunstall Healthcare Uk Ltd,"PURCHASE - EQUIPMENT, FURNITURE AND MATERIALS","1,620.00",0,Supplier
01/11/2019,"Environment and Sustainable Transport Recycling, Refuse and Street Cleansing",UK Container Maintenance Ltd,HIGHWAY SERVICES,"4,302.90",0,Commercial Supplier
01/11/2019,Inclusive Economy & Housing Community Wealth Building,VNY Security Ltd,STAFF DEVELOPMENT AND TRAINING,"3,855.00",0,Commercial Supplier
01/11/2019,Children and Young People Operations & Safeguarding,Vcare-24 Limited,SECURE PLACEMENTS - PRIVATE CONTRACTORS PAYMENT,993.00,0,Commercial Supplier
01/11/2019,Children and Young People Operations & Safeguarding,Vcare-24 Limited,SECURE PLACEMENTS - PRIVATE CONTRACTORS PAYMENT,"1,134.00",0,Commercial Supplier
01/11/2019,Children and Young People Operations & Safeguarding,Vcare-24 Limited,SECURE PLACEMENTS - PRIVATE CONTRACTORS PAYMENT,739.00,0,Commercial Supplier
01/11/2019,Children and Young People Operations & Safeguarding,Redacted - Personal Data,SPECIAL GUARDIANSHIP,332.15,0,Foster Carers
01/11/2019,Children and Young People Operations & Safeguarding,Redacted - Personal Data,SPECIAL GUARDIANSHIP,332.15,0,Foster Carers
01/11/2019,oneSource - Non Shared Asset Management,W Hardy Ltd,BUILDING ALTERATIONS AND MATERIALS,785.00,0,CIS
01/11/2019,Environment and Sustainable Transport Parks and Open Spaces,W Hardy Ltd,BUILDING ALTERATIONS AND MATERIALS,972.00,0,CIS
01/11/2019,oneSource - Non Shared Asset Management,W Hardy Ltd,BUILDING ALTERATIONS AND MATERIALS,386.00,0,CIS
01/11/2019,oneSource - Non Shared Asset Management,W Hardy Ltd,BUILDING ALTERATIONS AND MATERIALS,263.00,0,CIS
01/11/2019,oneSource - Non Shared Asset Management,W Hardy Ltd,BUILDING ALTERATIONS AND MATERIALS,532.00,0,CIS
01/11/2019,oneSource - Non Shared Asset Management,W Hardy Ltd,BUILDING ALTERATIONS AND MATERIALS,257.00,0,CIS
01/11/2019,oneSource - Non Shared Asset Management,W Hardy Ltd,BUILDING ALTERATIONS AND MATERIALS,385.00,0,CIS
01/11/2019,"People, Policy and Performance Residents Services & Business Support",Wagstaff Interiors Group,"PURCHASE - EQUIPMENT, FURNITURE AND MATERIALS",682.32,0,Commercial Supplier
01/11/2019,"Adults & Health Commissioning, Health & Social Care",Westminster Homecare Ltd,HOME CARE - PRIVATE CONTRACTORS PAYMENT,"1,032.98",0,Commercial Supplier
01/11/2019,"Adults & Health Commissioning, Health & Social Care",Westminster Homecare Ltd,HOME CARE - PRIVATE CONTRACTORS PAYMENT,"1,146.08",0,Commercial Supplier
01/11/2019,"Environment and Sustainable Transport Recycling, Refuse and Street Cleansing",Whitaker & Sawyer (Brushes) Ltd,HIGHWAY SERVICES,591.23,0,Commercial Supplier
01/11/2019,Children and Young People Inclusion & Achievement,Winsor Primary School,CATERING SERVICES,"32,571.00",0,Local Authority Services
01/11/2019,Children and Young People Operations & Safeguarding,Wrixon Care Services,CLIENT EXPENSES - THIRD PARTY,"2,076.65",0,Commercial Supplier
01/11/2019,Children and Young People Operations & Safeguarding,Wrixon Care Services,CLIENT EXPENSES - THIRD PARTY,453.00,0,Commercial Supplier
01/11/2019,Children and Young People Operations & Safeguarding,Redacted - Personal Data,ADOPTION ALLOWANCE - PRIVATE CONTRACTORS PAYMENT,369.33,0,Foster Carers
01/11/2019,Children and Young People Operations & Safeguarding,Redacted - Personal Data,ADOPTION ALLOWANCE - PRIVATE CONTRACTORS PAYMENT,369.33,0,Foster Carers
01/11/2019,Children and Young People Operations & Safeguarding,Zfa Limited,NO RECOURSE TO PUBLIC FUNDS - PRIVATE CONTRACTORS PAYMENT,810.00,0,Supplier
01/11/2019,Children and Young People Operations & Safeguarding,Zfa Limited,NO RECOURSE TO PUBLIC FUNDS - PRIVATE CONTRACTORS PAYMENT,384.00,0,Supplier
01/11/2019,Children and Young People Operations & Safeguarding,Zfa Limited,NO RECOURSE TO PUBLIC FUNDS - PRIVATE CONTRACTORS PAYMENT,924.00,0,Supplier
01/11/2019,Children and Young People Operations & Safeguarding,Zfa Limited,NO RECOURSE TO PUBLIC FUNDS - PRIVATE CONTRACTORS PAYMENT,"1,440.00",0,Supplier
01/11/2019,Children and Young People Operations & Safeguarding,Zfa Limited,NO RECOURSE TO PUBLIC FUNDS - PRIVATE CONTRACTORS PAYMENT,"1,568.00",0,Supplier
01/11/2019,Children and Young People Operations & Safeguarding,Zfa Limited,NO RECOURSE TO PUBLIC FUNDS - PRIVATE CONTRACTORS PAYMENT,672.00,0,Supplier
01/11/2019,Children and Young People Operations & Safeguarding,Zfa Limited,NO RECOURSE TO PUBLIC FUNDS - PRIVATE CONTRACTORS PAYMENT,840.00,0,Supplier
01/11/2019,Children and Young People Operations & Safeguarding,Zfa Limited,NO RECOURSE TO PUBLIC FUNDS - PRIVATE CONTRACTORS PAYMENT,850.00,0,Supplier
01/11/2019,Children and Young People Operations & Safeguarding,Zfa Limited,NO RECOURSE TO PUBLIC FUNDS - PRIVATE CONTRACTORS PAYMENT,266.00,0,Supplier
01/11/2019,Children and Young People Operations & Safeguarding,Zfa Limited,SECTION 17 - PRIVATE CONTRACTORS PAYMENT,896.00,0,Supplier
01/11/2019,Children and Young People Operations & Safeguarding,Zfa Limited,SECTION 17 - PRIVATE CONTRACTORS PAYMENT,"1,848.00",0,Supplier
01/11/2019,Children and Young People Operations & Safeguarding,Zfa Limited,SECTION 17 - PRIVATE CONTRACTORS PAYMENT,"2,156.00",0,Supplier
01/11/2019,Children and Young People Operations & Safeguarding,Zfa Limited,SECTION 17 - PRIVATE CONTRACTORS PAYMENT,350.00,0,Supplier
01/11/2019,Children and Young People Operations & Safeguarding,Zfa Limited,NO RECOURSE TO PUBLIC FUNDS - PRIVATE CONTRACTORS PAYMENT,480.00,0,Supplier
04/11/2019,Adults & Health Operations,Redacted - Personal Data,PRIVATE CONTRACTORS PAYMENT - OTHER,"10,942.58",0,Individuals
04/11/2019,Adults & Health Operations,Redacted - Personal Data,PRIVATE CONTRACTORS PAYMENT - OTHER,"5,603.00",0,Individuals
04/11/2019,Adults & Health Operations,Redacted - Personal Data,PRIVATE CONTRACTORS PAYMENT - OTHER,"9,724.94",0,Individuals
04/11/2019,Adults & Health Operations,Redacted - Personal Data,PRIVATE CONTRACTORS PAYMENT - OTHER,"9,631.34",0,Individuals
04/11/2019,Adults & Health Operations,Redacted - Personal Data,PRIVATE CONTRACTORS PAYMENT - OTHER,"3,182.64",0,Individuals
04/11/2019,"Adults & Health Commissioning, Health & Social Care",Redacted - Personal Data,RESPITE CARE - PRIVATE CONTRACTORS PAYMENT,700.00,0,Non Commercial Supplier
04/11/2019,"Adults & Health Commissioning, Health & Social Care",Redacted - Personal Data,DIRECT PAYMENTS,974.79,0,Foster Carers
04/11/2019,"Adults & Health Commissioning, Health & Social Care",Redacted - Personal Data,DIRECT PAYMENTS,974.79,0,Foster Carers
04/11/2019,"Adults & Health Commissioning, Health & Social Care",Redacted - Personal Data,DIRECT PAYMENTS,974.79,0,Foster Carers
04/11/2019,"Adults & Health Commissioning, Health & Social Care",Redacted - Personal Data,DIRECT PAYMENTS,974.79,0,Foster Carers
04/11/2019,"Adults & Health Commissioning, Health & Social Care",Redacted - Personal Data,DIRECT PAYMENTS,396.12,0,Foster Carers
04/11/2019,"Adults & Health Commissioning, Health & Social Care",Redacted - Personal Data,DIRECT PAYMENTS,396.12,0,Foster Carers
04/11/2019,"Adults & Health Commissioning, Health & Social Care",Redacted - Personal Data,DIRECT PAYMENTS,396.12,0,Foster Carers
04/11/2019,"Adults & Health Commissioning, Health & Social Care",Redacted - Personal Data,DIRECT PAYMENTS,396.12,0,Foster Carers
04/11/2019,"Adults & Health Commissioning, Health & Social Care",Redacted - Personal Data,DIRECT PAYMENTS,262.11,0,Foster Carers
04/11/2019,"Adults & Health Commissioning, Health & Social Care",Redacted - Personal Data,DIRECT PAYMENTS,262.11,0,Foster Carers
04/11/2019,"Adults & Health Commissioning, Health & Social Care",Redacted - Personal Data,DIRECT PAYMENTS,262.11,0,Foster Carers
04/11/2019,"Adults & Health Commissioning, Health & Social Care",Redacted - Personal Data,DIRECT PAYMENTS,262.11,0,Foster Carers
04/11/2019,"Adults & Health Commissioning, Health & Social Care",Abbeyfield Society,HOME CARE - PRIVATE CONTRACTORS PAYMENT,"1,312.00",0,Commercial Supplier
04/11/2019,"Adults & Health Commissioning, Health & Social Care",Redacted - Personal Data,DIRECT PAYMENTS,"1,200.00",0,Foster Carers
04/11/2019,"Adults & Health Commissioning, Health & Social Care",Redacted - Personal Data,DIRECT PAYMENTS,"1,200.00",0,Foster Carers
04/11/2019,"Adults & Health Commissioning, Health & Social Care",Redacted - Personal Data,DIRECT PAYMENTS,"1,200.00",0,Foster Carers
04/11/2019,"Adults & Health Commissioning, Health & Social Care",Redacted - Personal Data,DIRECT PAYMENTS,"1,200.00",0,Foster Carers
04/11/2019,"Adults & Health Commissioning, Health & Social Care",Redacted - Personal Data,DIRECT PAYMENTS,769.50,0,Individuals
04/11/2019,"Adults & Health Commissioning, Health & Social Care",Redacted - Personal Data,DIRECT PAYMENTS,769.50,0,Individuals
04/11/2019,"Adults & Health Commissioning, Health & Social Care",Redacted - Personal Data,DIRECT PAYMENTS,769.50,0,Individuals
04/11/2019,"Adults & Health Commissioning, Health & Social Care",Redacted - Personal Data,DIRECT PAYMENTS,769.50,0,Individuals
04/11/2019,"Adults & Health Commissioning, Health & Social Care",Redacted - Personal Data,DIRECT PAYMENTS,"1,097.56",0,Foster Carers
04/11/2019,"Adults & Health Commissioning, Health & Social Care",Redacted - Personal Data,DIRECT PAYMENTS,"1,097.56",0,Foster Carers
04/11/2019,"Adults & Health Commissioning, Health & Social Care",Redacted - Personal Data,DIRECT PAYMENTS,"1,097.56",0,Foster Carers
04/11/2019,"Adults & Health Commissioning, Health & Social Care",Redacted - Personal Data,DIRECT PAYMENTS,"1,097.56",0,Foster Carers
04/11/2019,"Adults & Health Commissioning, Health & Social Care",Advance Housing & Support Ltd,DIRECT PAYMENTS,332.14,0,Supplier
04/11/2019,"Adults & Health Commissioning, Health & Social Care",Advance Housing & Support Ltd,DIRECT PAYMENTS,332.14,0,Supplier
04/11/2019,"Adults & Health Commissioning, Health & Social Care",Advance Housing & Support Ltd,DIRECT PAYMENTS,332.14,0,Supplier
04/11/2019,"Adults & Health Commissioning, Health & Social Care",Advance Housing & Support Ltd,DIRECT PAYMENTS,332.14,0,Supplier
04/11/2019,Children and Young People Operations & Safeguarding,Affinity Fostering Svcs Ltd,RESIDENTIAL PLACEMENTS - PRIVATE CONTRACTORS PAYMENT,"3,520.67",0,Supplier
04/11/2019,Children and Young People Inclusion & Achievement,Agate Momentum Trust T/A Scott Wilkie Primary School,CATERING SERVICES,"17,766.00",0,Commercial Supplier
04/11/2019,"Adults & Health Commissioning, Health & Social Care",Redacted - Personal Data,DIRECT PAYMENTS,"1,222.32",0,Direct Payments
04/11/2019,"Adults & Health Commissioning, Health & Social Care",Redacted - Personal Data,DIRECT PAYMENTS,"1,222.32",0,Direct Payments
04/11/2019,"Adults & Health Commissioning, Health & Social Care",Redacted - Personal Data,DIRECT PAYMENTS,"1,222.32",0,Direct Payments
04/11/2019,"Adults & Health Commissioning, Health & Social Care",Redacted - Personal Data,DIRECT PAYMENTS,"1,222.32",0,Direct Payments
04/11/2019,"Adults & Health Commissioning, Health & Social Care",Redacted - Personal Data,DIRECT PAYMENTS,743.59,0,Direct Payments
04/11/2019,"Adults & Health Commissioning, Health & Social Care",Redacted - Personal Data,DIRECT PAYMENTS,743.59,0,Direct Payments
04/11/2019,"Adults & Health Commissioning, Health & Social Care",Redacted - Personal Data,DIRECT PAYMENTS,743.59,0,Direct Payments
04/11/2019,"Adults & Health Commissioning, Health & Social Care",Redacted - Personal Data,DIRECT PAYMENTS,743.59,0,Direct Payments
04/11/2019,"Adults & Health Commissioning, Health & Social Care",Redacted - Personal Data,DIRECT PAYMENTS,"1,017.00",0,Individuals
04/11/2019,"Adults & Health Commissioning, Health & Social Care",Redacted - Personal Data,DIRECT PAYMENTS,"1,017.00",0,Individuals
04/11/2019,"Adults & Health Commissioning, Health & Social Care",Redacted - Personal Data,DIRECT PAYMENTS,"1,017.00",0,Individuals
04/11/2019,"Adults & Health Commissioning, Health & Social Care",Redacted - Personal Data,DIRECT PAYMENTS,"1,520.24",0,Individuals
04/11/2019,"Adults & Health Commissioning, Health & Social Care",Redacted - Personal Data,DIRECT PAYMENTS,290.57,0,Individuals
04/11/2019,"Adults & Health Commissioning, Health & Social Care",Redacted - Personal Data,DIRECT PAYMENTS,"1,017.00",0,Individuals
04/11/2019,"Adults & Health Commissioning, Health & Social Care",Redacted - Personal Data,DIRECT PAYMENTS,423.85,0,Individuals
04/11/2019,"Adults & Health Commissioning, Health & Social Care",Redacted - Personal Data,DIRECT PAYMENTS,423.85,0,Individuals
04/11/2019,"Adults & Health Commissioning, Health & Social Care",Redacted - Personal Data,DIRECT PAYMENTS,423.85,0,Individuals
04/11/2019,"Adults & Health Commissioning, Health & Social Care",Redacted - Personal Data,DIRECT PAYMENTS,423.85,0,Individuals
04/11/2019,"Adults & Health Commissioning, Health & Social Care",Redacted - Personal Data,DIRECT PAYMENTS,683.81,0,Foster Carers
04/11/2019,"Adults & Health Commissioning, Health & Social Care",Redacted - Personal Data,DIRECT PAYMENTS,683.81,0,Foster Carers
04/11/2019,"Adults & Health Commissioning, Health & Social Care",Redacted - Personal Data,DIRECT PAYMENTS,683.81,0,Foster Carers
04/11/2019,"Adults & Health Commissioning, Health & Social Care",Redacted - Personal Data,DIRECT PAYMENTS,683.81,0,Foster Carers
04/11/2019,"Adults & Health Commissioning, Health & Social Care",Redacted - Personal Data,DIRECT PAYMENTS,"1,004.80",0,Direct Payments
04/11/2019,"Adults & Health Commissioning, Health & Social Care",Redacted - Personal Data,DIRECT PAYMENTS,"1,004.80",0,Direct Payments
04/11/2019,"Adults & Health Commissioning, Health & Social Care",Redacted - Personal Data,DIRECT PAYMENTS,"1,004.80",0,Direct Payments
04/11/2019,"Adults & Health Commissioning, Health & Social Care",Redacted - Personal Data,DIRECT PAYMENTS,"1,004.80",0,Direct Payments
04/11/2019,"Adults & Health Commissioning, Health & Social Care",Redacted - Personal Data,DIRECT PAYMENTS,724.57,0,Non Commercial Supplier
04/11/2019,"Adults & Health Commissioning, Health & Social Care",Redacted - Personal Data,DIRECT PAYMENTS,724.57,0,Non Commercial Supplier
04/11/2019,"Adults & Health Commissioning, Health & Social Care",Redacted - Personal Data,DIRECT PAYMENTS,724.57,0,Non Commercial Supplier
04/11/2019,"Adults & Health Commissioning, Health & Social Care",Redacted - Personal Data,DIRECT PAYMENTS,724.57,0,Non Commercial Supplier
04/11/2019,"Adults & Health Commissioning, Health & Social Care",Redacted - Personal Data,DIRECT PAYMENTS,345.57,0,Individuals
04/11/2019,"Adults & Health Commissioning, Health & Social Care",Redacted - Personal Data,DIRECT PAYMENTS,345.57,0,Individuals
04/11/2019,"Adults & Health Commissioning, Health & Social Care",Redacted - Personal Data,DIRECT PAYMENTS,345.57,0,Individuals
04/11/2019,"Adults & Health Commissioning, Health & Social Care",Redacted - Personal Data,DIRECT PAYMENTS,345.57,0,Individuals
04/11/2019,"Adults & Health Commissioning, Health & Social Care",Redacted - Personal Data,DIRECT PAYMENTS,"1,212.18",0,Foster Carers
04/11/2019,"Adults & Health Commissioning, Health & Social Care",Redacted - Personal Data,DIRECT PAYMENTS,"1,212.18",0,Foster Carers
04/11/2019,"Adults & Health Commissioning, Health & Social Care",Redacted - Personal Data,DIRECT PAYMENTS,"1,212.18",0,Foster Carers
04/11/2019,"Adults & Health Commissioning, Health & Social Care",Redacted - Personal Data,DIRECT PAYMENTS,"1,212.18",0,Foster Carers
04/11/2019,"Adults & Health Commissioning, Health & Social Care",Redacted - Personal Data,DIRECT PAYMENTS,340.00,0,Individuals
04/11/2019,"Adults & Health Commissioning, Health & Social Care",Redacted - Personal Data,DIRECT PAYMENTS,340.00,0,Individuals
04/11/2019,"Adults & Health Commissioning, Health & Social Care",Redacted - Personal Data,DIRECT PAYMENTS,340.00,0,Individuals
04/11/2019,"Adults & Health Commissioning, Health & Social Care",Redacted - Personal Data,DIRECT PAYMENTS,340.00,0,Individuals
04/11/2019,"Adults & Health Commissioning, Health & Social Care",Redacted - Personal Data,DIRECT PAYMENTS,884.14,0,Foster Carers
04/11/2019,"Adults & Health Commissioning, Health & Social Care",Redacted - Personal Data,DIRECT PAYMENTS,884.14,0,Foster Carers
04/11/2019,"Adults & Health Commissioning, Health & Social Care",Redacted - Personal Data,DIRECT PAYMENTS,884.14,0,Foster Carers
04/11/2019,"Adults & Health Commissioning, Health & Social Care",Redacted - Personal Data,DIRECT PAYMENTS,884.14,0,Foster Carers
04/11/2019,"Adults & Health Commissioning, Health & Social Care",Redacted - Personal Data,DIRECT PAYMENTS,278.99,0,Direct Payments
04/11/2019,"Adults & Health Commissioning, Health & Social Care",Redacted - Personal Data,DIRECT PAYMENTS,278.99,0,Direct Payments
04/11/2019,"Adults & Health Commissioning, Health & Social Care",Redacted - Personal Data,DIRECT PAYMENTS,278.99,0,Direct Payments
04/11/2019,"Adults & Health Commissioning, Health & Social Care",Redacted - Personal Data,DIRECT PAYMENTS,278.99,0,Direct Payments
04/11/2019,"Adults & Health Commissioning, Health & Social Care",Redacted - Personal Data,DIRECT PAYMENTS,484.55,0,Individuals
04/11/2019,"Adults & Health Commissioning, Health & Social Care",Redacted - Personal Data,DIRECT PAYMENTS,484.55,0,Individuals
04/11/2019,"Adults & Health Commissioning, Health & Social Care",Redacted - Personal Data,DIRECT PAYMENTS,484.55,0,Individuals
04/11/2019,"Adults & Health Commissioning, Health & Social Care",Redacted - Personal Data,DIRECT PAYMENTS,484.55,0,Individuals
04/11/2019,"Adults & Health Commissioning, Health & Social Care",Redacted - Personal Data,DIRECT PAYMENTS,311.50,0,Individuals
04/11/2019,"Adults & Health Commissioning, Health & Social Care",Redacted - Personal Data,DIRECT PAYMENTS,311.50,0,Individuals
04/11/2019,"Adults & Health Commissioning, Health & Social Care",Redacted - Personal Data,DIRECT PAYMENTS,311.50,0,Individuals
04/11/2019,"Adults & Health Commissioning, Health & Social Care",Redacted - Personal Data,DIRECT PAYMENTS,311.50,0,Individuals
04/11/2019,oneSource - Non Shared Asset Management,Aquatronic Group Management PLC,"MAINTENANCE - EQUIPMENT, FURNITURE AND MATERIALS",843.00,0,Commercial Supplier
04/11/2019,oneSource - Non Shared Asset Management,Aquatronic Group Management PLC,"MAINTENANCE - EQUIPMENT, FURNITURE AND MATERIALS","1,058.00",0,Commercial Supplier
04/11/2019,Environment and Sustainable Transport Highways and Sustainable Transport,Ardent Hire Solutions Ltd,DIRECT TRANSPORT,998.20,0,Supplier
04/11/2019,"Adults & Health Commissioning, Health & Social Care",Redacted - Personal Data,DIRECT PAYMENTS,880.97,0,Individuals
04/11/2019,"Adults & Health Commissioning, Health & Social Care",Redacted - Personal Data,DIRECT PAYMENTS,"1,605.00",0,Individuals
04/11/2019,"Adults & Health Commissioning, Health & Social Care",Redacted - Personal Data,DIRECT PAYMENTS,"1,605.00",0,Individuals
04/11/2019,"Adults & Health Commissioning, Health & Social Care",Redacted - Personal Data,DIRECT PAYMENTS,"1,605.00",0,Individuals
04/11/2019,"Adults & Health Commissioning, Health & Social Care",Redacted - Personal Data,DIRECT PAYMENTS,"1,605.00",0,Individuals
04/11/2019,"Adults & Health Commissioning, Health & Social Care",Redacted - Personal Data,DIRECT PAYMENTS,593.50,0,Individuals
04/11/2019,"Adults & Health Commissioning, Health & Social Care",Redacted - Personal Data,DIRECT PAYMENTS,593.50,0,Individuals
04/11/2019,"Adults & Health Commissioning, Health & Social Care",Redacted - Personal Data,DIRECT PAYMENTS,593.50,0,Individuals
04/11/2019,"Adults & Health Commissioning, Health & Social Care",Redacted - Personal Data,DIRECT PAYMENTS,593.50,0,Individuals
04/11/2019,"Adults & Health Commissioning, Health & Social Care",Redacted - Personal Data,DIRECT PAYMENTS,700.00,0,Individuals
04/11/2019,"Adults & Health Commissioning, Health & Social Care",Redacted - Personal Data,DIRECT PAYMENTS,700.00,0,Individuals
04/11/2019,"Adults & Health Commissioning, Health & Social Care",Redacted - Personal Data,DIRECT PAYMENTS,700.00,0,Individuals
04/11/2019,"Adults & Health Commissioning, Health & Social Care",Redacted - Personal Data,DIRECT PAYMENTS,700.00,0,Individuals
04/11/2019,"Adults & Health Commissioning, Health & Social Care",Redacted - Personal Data,DIRECT PAYMENTS,273.00,0,Individuals
04/11/2019,"Adults & Health Commissioning, Health & Social Care",Redacted - Personal Data,DIRECT PAYMENTS,273.00,0,Individuals
04/11/2019,"Adults & Health Commissioning, Health & Social Care",Redacted - Personal Data,DIRECT PAYMENTS,273.00,0,Individuals
04/11/2019,"Adults & Health Commissioning, Health & Social Care",Redacted - Personal Data,DIRECT PAYMENTS,273.00,0,Individuals
04/11/2019,"Adults & Health Commissioning, Health & Social Care",Redacted - Personal Data,DIRECT PAYMENTS,532.23,0,Foster Carers
04/11/2019,"Adults & Health Commissioning, Health & Social Care",Redacted - Personal Data,DIRECT PAYMENTS,532.23,0,Foster Carers
04/11/2019,"Adults & Health Commissioning, Health & Social Care",Redacted - Personal Data,DIRECT PAYMENTS,532.23,0,Foster Carers
04/11/2019,"Adults & Health Commissioning, Health & Social Care",Redacted - Personal Data,DIRECT PAYMENTS,532.23,0,Foster Carers
04/11/2019,Inclusive Economy & Housing Chief Planning Officer,BNP Paribas Real Estate Advisory,CONSULTANCY FEES,"1,560.00",0,Supplier
04/11/2019,"Adults & Health Commissioning, Health & Social Care",Redacted - Personal Data,DIRECT PAYMENTS,286.00,0,Individuals
04/11/2019,"Adults & Health Commissioning, Health & Social Care",Redacted - Personal Data,DIRECT PAYMENTS,286.00,0,Individuals
04/11/2019,"Adults & Health Commissioning, Health & Social Care",Redacted - Personal Data,DIRECT PAYMENTS,286.00,0,Individuals
04/11/2019,"Adults & Health Commissioning, Health & Social Care",Redacted - Personal Data,DIRECT PAYMENTS,286.00,0,Individuals
04/11/2019,Dedicated Schools Budget Dedicated Schools Budget,Beyond Autism,PROFESSIONAL SERVICES - GENERAL,"21,347.66",0,Supplier
04/11/2019,Dedicated Schools Budget Dedicated Schools Budget,Beyond Autism,PROFESSIONAL SERVICES - GENERAL,"64,042.98",0,Supplier
04/11/2019,Dedicated Schools Budget Dedicated Schools Budget,Beyond Autism,PROFESSIONAL SERVICES - GENERAL,"11,454.00",0,Supplier
04/11/2019,Dedicated Schools Budget Dedicated Schools Budget,Beyond Autism,PROFESSIONAL SERVICES - GENERAL,"11,454.00",0,Supplier
04/11/2019,Adults & Health Public Health,Big Education Trust t/a School 21,PAYMENTS TO VOLUNTARY SECTOR,500.00,0,Supplier
04/11/2019,"Adults & Health Commissioning, Health & Social Care",Redacted - Personal Data,DIRECT PAYMENTS,423.08,0,Foster Carers
04/11/2019,"Adults & Health Commissioning, Health & Social Care",Redacted - Personal Data,DIRECT PAYMENTS,423.08,0,Foster Carers
04/11/2019,"Adults & Health Commissioning, Health & Social Care",Redacted - Personal Data,DIRECT PAYMENTS,423.08,0,Foster Carers
04/11/2019,"Adults & Health Commissioning, Health & Social Care",Redacted - Personal Data,DIRECT PAYMENTS,423.08,0,Foster Carers
04/11/2019,"Adults & Health Commissioning, Health & Social Care",Blitzcare Specialist Cleaning Ltd,OTHER SOCIAL SERVICES TRANSFER PAYMENTS,"3,360.00",0,Commercial Supplier
04/11/2019,Inclusive Economy & Housing Community Wealth Building,British Gas Business,GAS,725.64,0,Commercial Supplier
04/11/2019,"People, Policy and Performance Resident Engagement & Participation",Business B Ltd (t/a Expeditional),EVENTS,905.00,0,Commercial Supplier
04/11/2019,"Adults & Health Commissioning, Health & Social Care",Redacted - Personal Data,DIRECT PAYMENTS,"1,832.75",0,Foster Carers
04/11/2019,"Adults & Health Commissioning, Health & Social Care",Redacted - Personal Data,DIRECT PAYMENTS,"1,832.75",0,Foster Carers
04/11/2019,"Adults & Health Commissioning, Health & Social Care",Redacted - Personal Data,DIRECT PAYMENTS,"1,832.75",0,Foster Carers
04/11/2019,"Adults & Health Commissioning, Health & Social Care",Redacted - Personal Data,DIRECT PAYMENTS,"1,832.75",0,Foster Carers
04/11/2019,"Adults & Health Commissioning, Health & Social Care",Redacted - Personal Data,DIRECT PAYMENTS,256.56,0,Foster Carers
04/11/2019,"Adults & Health Commissioning, Health & Social Care",Redacted - Personal Data,DIRECT PAYMENTS,256.56,0,Foster Carers
04/11/2019,"Adults & Health Commissioning, Health & Social Care",Redacted - Personal Data,DIRECT PAYMENTS,256.56,0,Foster Carers
04/11/2019,"Adults & Health Commissioning, Health & Social Care",Redacted - Personal Data,DIRECT PAYMENTS,256.56,0,Foster Carers
04/11/2019,Housing Revenue Account HRA,CEL Solicitors,LEGAL FEES,"5,579.34",0,Commercial Supplier
04/11/2019,Housing Revenue Account HRA,CEL Solicitors,LEGAL FEES,"5,966.64",0,Commercial Supplier
04/11/2019,"People, Policy and Performance Resident Engagement & Participation",Centre Stage,EVENTS,"8,275.00",0,Commercial Supplier
04/11/2019,Adults & Health Operations,Chiltern Invadex (UK) Ltd,PRIVATE CONTRACTORS PAYMENT - OTHER,"7,014.00",0,Non Commercial Supplier
04/11/2019,"Adults & Health Commissioning, Health & Social Care",Redacted - Personal Data,DIRECT PAYMENTS,844.75,0,Direct Payments
04/11/2019,"Adults & Health Commissioning, Health & Social Care",Redacted - Personal Data,DIRECT PAYMENTS,844.75,0,Direct Payments
04/11/2019,"Adults & Health Commissioning, Health & Social Care",Redacted - Personal Data,DIRECT PAYMENTS,844.75,0,Direct Payments
04/11/2019,"Adults & Health Commissioning, Health & Social Care",Redacted - Personal Data,DIRECT PAYMENTS,844.75,0,Direct Payments
04/11/2019,"Environment and Sustainable Transport Recycling, Refuse and Street Cleansing",Compactor Rentals Ltd,PROFESSIONAL SERVICES - GENERAL,520.00,0,Commercial Supplier
04/11/2019,"Environment and Sustainable Transport Recycling, Refuse and Street Cleansing",Compactor Rentals Ltd,PROFESSIONAL SERVICES - GENERAL,520.00,0,Commercial Supplier
04/11/2019,"Adults & Health Commissioning, Health & Social Care",Cornerstone Care Services,HOME CARE - PRIVATE CONTRACTORS PAYMENT,"1,407.60",0,Commercial Supplier
04/11/2019,"Adults & Health Commissioning, Health & Social Care",Redacted - Personal Data,DIRECT PAYMENTS,"1,766.35",0,Commercial Supplier
04/11/2019,"Adults & Health Commissioning, Health & Social Care",Redacted - Personal Data,DIRECT PAYMENTS,"7,250.00",0,Commercial Supplier
04/11/2019,"Adults & Health Commissioning, Health & Social Care",Redacted - Personal Data,DIRECT PAYMENTS,"1,766.35",0,Commercial Supplier
04/11/2019,"Adults & Health Commissioning, Health & Social Care",Redacted - Personal Data,DIRECT PAYMENTS,"1,766.35",0,Commercial Supplier
04/11/2019,"Adults & Health Commissioning, Health & Social Care",Redacted - Personal Data,DIRECT PAYMENTS,"1,766.35",0,Commercial Supplier
04/11/2019,"Adults & Health Commissioning, Health & Social Care",Redacted - Personal Data,DIRECT PAYMENTS,"2,056.39",0,Foster Carers
04/11/2019,"Adults & Health Commissioning, Health & Social Care",Redacted - Personal Data,DIRECT PAYMENTS,"2,056.39",0,Foster Carers
04/11/2019,"Adults & Health Commissioning, Health & Social Care",Redacted - Personal Data,DIRECT PAYMENTS,"2,056.39",0,Foster Carers
04/11/2019,"Adults & Health Commissioning, Health & Social Care",Redacted - Personal Data,DIRECT PAYMENTS,"2,056.39",0,Foster Carers
04/11/2019,"Adults & Health Commissioning, Health & Social Care",Redacted - Personal Data,DIRECT PAYMENTS,"1,089.85",0,Foster Carers
04/11/2019,"Adults & Health Commissioning, Health & Social Care",Redacted - Personal Data,DIRECT PAYMENTS,"1,089.85",0,Foster Carers
04/11/2019,"Adults & Health Commissioning, Health & Social Care",Redacted - Personal Data,DIRECT PAYMENTS,"1,089.85",0,Foster Carers
04/11/2019,"Adults & Health Commissioning, Health & Social Care",Redacted - Personal Data,DIRECT PAYMENTS,"1,089.85",0,Foster Carers
04/11/2019,"Adults & Health Commissioning, Health & Social Care",Redacted - Personal Data,DIRECT PAYMENTS,587.50,0,Foster Carers
04/11/2019,"Adults & Health Commissioning, Health & Social Care",Redacted - Personal Data,DIRECT PAYMENTS,587.50,0,Foster Carers
04/11/2019,"Adults & Health Commissioning, Health & Social Care",Redacted - Personal Data,DIRECT PAYMENTS,587.50,0,Foster Carers
04/11/2019,"Adults & Health Commissioning, Health & Social Care",Redacted - Personal Data,DIRECT PAYMENTS,587.50,0,Foster Carers
04/11/2019,"Adults & Health Commissioning, Health & Social Care",Redacted - Personal Data,DIRECT PAYMENTS,"5,778.84",0,Individuals
04/11/2019,"Adults & Health Commissioning, Health & Social Care",Redacted - Personal Data,DIRECT PAYMENTS,547.75,0,Foster Carers
04/11/2019,"Adults & Health Commissioning, Health & Social Care",Redacted - Personal Data,DIRECT PAYMENTS,547.75,0,Foster Carers
04/11/2019,"Adults & Health Commissioning, Health & Social Care",Redacted - Personal Data,DIRECT PAYMENTS,547.75,0,Foster Carers
04/11/2019,"Adults & Health Commissioning, Health & Social Care",Redacted - Personal Data,DIRECT PAYMENTS,547.75,0,Foster Carers
04/11/2019,Children and Young People Operations & Safeguarding,Dormwell Ltd T/A Street Support,CLIENT SUPPORT - THIRD PARTY,"1,440.00",0,Foster Carers
04/11/2019,"Environment and Sustainable Transport Recycling, Refuse and Street Cleansing",E H Roberts-Penet Group Ltd,DIRECT TRANSPORT,690.00,0,Supplier
04/11/2019,"Environment and Sustainable Transport Recycling, Refuse and Street Cleansing",E H Roberts-Penet Group Ltd,DIRECT TRANSPORT,575.00,0,Supplier
04/11/2019,"Environment and Sustainable Transport Recycling, Refuse and Street Cleansing",E H Roberts-Penet Group Ltd,DIRECT TRANSPORT,414.00,0,Supplier
04/11/2019,"Environment and Sustainable Transport Recycling, Refuse and Street Cleansing",E H Roberts-Penet Group Ltd,DIRECT TRANSPORT,310.50,0,Supplier
04/11/2019,"Environment and Sustainable Transport Recycling, Refuse and Street Cleansing",E H Roberts-Penet Group Ltd,DIRECT TRANSPORT,368.00,0,Supplier
04/11/2019,"Environment and Sustainable Transport Recycling, Refuse and Street Cleansing",E H Roberts-Penet Group Ltd,DIRECT TRANSPORT,322.00,0,Supplier
04/11/2019,"Environment and Sustainable Transport Recycling, Refuse and Street Cleansing",E H Roberts-Penet Group Ltd,DIRECT TRANSPORT,495.00,0,Supplier
04/11/2019,"Environment and Sustainable Transport Recycling, Refuse and Street Cleansing",E H Roberts-Penet Group Ltd,DIRECT TRANSPORT,391.00,0,Supplier
04/11/2019,"Environment and Sustainable Transport Recycling, Refuse and Street Cleansing",E H Roberts-Penet Group Ltd,DIRECT TRANSPORT,322.00,0,Supplier
04/11/2019,"Environment and Sustainable Transport Recycling, Refuse and Street Cleansing",E H Roberts-Penet Group Ltd,DIRECT TRANSPORT,414.00,0,Supplier
04/11/2019,"Environment and Sustainable Transport Recycling, Refuse and Street Cleansing",E H Roberts-Penet Group Ltd,DIRECT TRANSPORT,690.00,0,Supplier
04/11/2019,"Environment and Sustainable Transport Recycling, Refuse and Street Cleansing",E H Roberts-Penet Group Ltd,DIRECT TRANSPORT,759.00,0,Supplier
04/11/2019,"Environment and Sustainable Transport Recycling, Refuse and Street Cleansing",E H Roberts-Penet Group Ltd,DIRECT TRANSPORT,454.35,0,Supplier
04/11/2019,"Environment and Sustainable Transport Recycling, Refuse and Street Cleansing",E H Roberts-Penet Group Ltd,DIRECT TRANSPORT,"1,495.00",0,Supplier
04/11/2019,"Environment and Sustainable Transport Recycling, Refuse and Street Cleansing",E H Roberts-Penet Group Ltd,DIRECT TRANSPORT,322.00,0,Supplier
04/11/2019,Environment and Sustainable Transport Highways and Sustainable Transport,ELV SOLUTIONS LTD,PURCHASE OF VEHICLES RELATED COSTS,"37,500.00",0,Commercial Supplier
04/11/2019,Environment and Sustainable Transport Highways and Sustainable Transport,ELV SOLUTIONS LTD,PURCHASE OF VEHICLES RELATED COSTS,"37,500.00",0,Commercial Supplier
04/11/2019,Environment and Sustainable Transport Highways and Sustainable Transport,ELV SOLUTIONS LTD,PURCHASE OF VEHICLES RELATED COSTS,"37,500.00",0,Commercial Supplier
04/11/2019,"Adults & Health Commissioning, Health & Social Care",Redacted - Personal Data,DIRECT PAYMENTS,265.00,0,Individuals
04/11/2019,"Adults & Health Commissioning, Health & Social Care",Redacted - Personal Data,DIRECT PAYMENTS,265.00,0,Individuals
04/11/2019,"Adults & Health Commissioning, Health & Social Care",Redacted - Personal Data,DIRECT PAYMENTS,265.00,0,Individuals
04/11/2019,"Adults & Health Commissioning, Health & Social Care",Redacted - Personal Data,DIRECT PAYMENTS,265.00,0,Individuals
04/11/2019,oneSource oS Asset Management Services,Elite Engineering (Europe) Ltd,FACILITIES MANAGEMENT,"13,910.40",0,CIS
04/11/2019,"Adults & Health Commissioning, Health & Social Care",Redacted - Personal Data,DIRECT PAYMENTS,470.70,0,Individuals
04/11/2019,"Adults & Health Commissioning, Health & Social Care",Redacted - Personal Data,DIRECT PAYMENTS,424.58,0,Foster Carers
04/11/2019,"Adults & Health Commissioning, Health & Social Care",Redacted - Personal Data,DIRECT PAYMENTS,424.58,0,Foster Carers
04/11/2019,"Adults & Health Commissioning, Health & Social Care",Redacted - Personal Data,DIRECT PAYMENTS,424.58,0,Foster Carers
04/11/2019,"Adults & Health Commissioning, Health & Social Care",Redacted - Personal Data,DIRECT PAYMENTS,424.58,0,Foster Carers
04/11/2019,"Adults & Health Commissioning, Health & Social Care",Redacted - Personal Data,DIRECT PAYMENTS,286.99,0,Foster Carers
04/11/2019,"Adults & Health Commissioning, Health & Social Care",Redacted - Personal Data,DIRECT PAYMENTS,286.99,0,Foster Carers
04/11/2019,"Adults & Health Commissioning, Health & Social Care",Redacted - Personal Data,DIRECT PAYMENTS,286.99,0,Foster Carers
04/11/2019,"Adults & Health Commissioning, Health & Social Care",Redacted - Personal Data,DIRECT PAYMENTS,286.99,0,Foster Carers
04/11/2019,Environment and Sustainable Transport Highways and Sustainable Transport,Excitech,CONSULTANCY FEES,"1,391.00",0,Commercial Supplier
04/11/2019,Children and Young People Operations & Safeguarding,Family First Fostering,RESIDENTIAL PLACEMENTS - PRIVATE CONTRACTORS PAYMENT,"3,227.72",0,Commercial Supplier
04/11/2019,"Adults & Health Commissioning, Health & Social Care",Redacted - Personal Data,DIRECT PAYMENTS,496.00,0,Direct Payments
04/11/2019,"Adults & Health Commissioning, Health & Social Care",Redacted - Personal Data,DIRECT PAYMENTS,496.00,0,Direct Payments
04/11/2019,"Adults & Health Commissioning, Health & Social Care",Redacted - Personal Data,DIRECT PAYMENTS,496.00,0,Direct Payments
04/11/2019,"Adults & Health Commissioning, Health & Social Care",Redacted - Personal Data,DIRECT PAYMENTS,496.00,0,Direct Payments
04/11/2019,"Adults & Health Commissioning, Health & Social Care",Redacted - Personal Data,DIRECT PAYMENTS,425.25,0,Individuals
04/11/2019,"Adults & Health Commissioning, Health & Social Care",Redacted - Personal Data,DIRECT PAYMENTS,425.25,0,Individuals
04/11/2019,"Adults & Health Commissioning, Health & Social Care",Redacted - Personal Data,DIRECT PAYMENTS,425.25,0,Individuals
04/11/2019,"Adults & Health Commissioning, Health & Social Care",Redacted - Personal Data,DIRECT PAYMENTS,425.25,0,Individuals
04/11/2019,"Adults & Health Commissioning, Health & Social Care",Redacted - Personal Data,DIRECT PAYMENTS,560.00,0,Direct Payments
04/11/2019,"Adults & Health Commissioning, Health & Social Care",Redacted - Personal Data,DIRECT PAYMENTS,560.00,0,Direct Payments
04/11/2019,"Adults & Health Commissioning, Health & Social Care",Redacted - Personal Data,DIRECT PAYMENTS,560.00,0,Direct Payments
04/11/2019,"Adults & Health Commissioning, Health & Social Care",Redacted - Personal Data,DIRECT PAYMENTS,560.00,0,Direct Payments
04/11/2019,"Adults & Health Commissioning, Health & Social Care",Redacted - Personal Data,DIRECT PAYMENTS,385.55,0,Individuals
04/11/2019,"Adults & Health Commissioning, Health & Social Care",Redacted - Personal Data,DIRECT PAYMENTS,385.55,0,Individuals
04/11/2019,"Adults & Health Commissioning, Health & Social Care",Redacted - Personal Data,DIRECT PAYMENTS,385.55,0,Individuals
04/11/2019,"Adults & Health Commissioning, Health & Social Care",Redacted - Personal Data,DIRECT PAYMENTS,385.55,0,Individuals
04/11/2019,"Adults & Health Commissioning, Health & Social Care",Redacted - Personal Data,DIRECT PAYMENTS,488.10,0,Foster Carers
04/11/2019,"Adults & Health Commissioning, Health & Social Care",Redacted - Personal Data,DIRECT PAYMENTS,488.10,0,Foster Carers
04/11/2019,"Adults & Health Commissioning, Health & Social Care",Redacted - Personal Data,DIRECT PAYMENTS,488.10,0,Foster Carers
04/11/2019,"Adults & Health Commissioning, Health & Social Care",Redacted - Personal Data,DIRECT PAYMENTS,488.10,0,Foster Carers
04/11/2019,"Adults & Health Commissioning, Health & Social Care",Redacted - Personal Data,DIRECT PAYMENTS,299.69,0,Foster Carers
04/11/2019,"Adults & Health Commissioning, Health & Social Care",Redacted - Personal Data,DIRECT PAYMENTS,299.69,0,Foster Carers
04/11/2019,"Adults & Health Commissioning, Health & Social Care",Redacted - Personal Data,DIRECT PAYMENTS,299.69,0,Foster Carers
04/11/2019,"Adults & Health Commissioning, Health & Social Care",Redacted - Personal Data,DIRECT PAYMENTS,299.69,0,Foster Carers
04/11/2019,"Adults & Health Commissioning, Health & Social Care",Redacted - Personal Data,DIRECT PAYMENTS,400.44,0,Individuals
04/11/2019,"Adults & Health Commissioning, Health & Social Care",Redacted - Personal Data,DIRECT PAYMENTS,400.44,0,Individuals
04/11/2019,"Adults & Health Commissioning, Health & Social Care",Redacted - Personal Data,DIRECT PAYMENTS,400.44,0,Individuals
04/11/2019,"Adults & Health Commissioning, Health & Social Care",Redacted - Personal Data,DIRECT PAYMENTS,400.44,0,Individuals
04/11/2019,"Adults & Health Commissioning, Health & Social Care",Redacted - Personal Data,DIRECT PAYMENTS,259.20,0,Direct Payments
04/11/2019,"Adults & Health Commissioning, Health & Social Care",Redacted - Personal Data,DIRECT PAYMENTS,259.20,0,Direct Payments
04/11/2019,"Adults & Health Commissioning, Health & Social Care",Redacted - Personal Data,DIRECT PAYMENTS,259.20,0,Direct Payments
04/11/2019,"Adults & Health Commissioning, Health & Social Care",Redacted - Personal Data,DIRECT PAYMENTS,259.20,0,Direct Payments
04/11/2019,"Adults & Health Commissioning, Health & Social Care",Redacted - Personal Data,DIRECT PAYMENTS,283.58,0,Individuals
04/11/2019,"Adults & Health Commissioning, Health & Social Care",Redacted - Personal Data,DIRECT PAYMENTS,283.58,0,Individuals
04/11/2019,"Adults & Health Commissioning, Health & Social Care",Redacted - Personal Data,DIRECT PAYMENTS,283.58,0,Individuals
04/11/2019,"Adults & Health Commissioning, Health & Social Care",Redacted - Personal Data,DIRECT PAYMENTS,283.58,0,Individuals
04/11/2019,"Adults & Health Commissioning, Health & Social Care",Redacted - Personal Data,DIRECT PAYMENTS,406.38,0,Direct Payments
04/11/2019,"Adults & Health Commissioning, Health & Social Care",Redacted - Personal Data,DIRECT PAYMENTS,406.38,0,Direct Payments
04/11/2019,"Adults & Health Commissioning, Health & Social Care",Redacted - Personal Data,DIRECT PAYMENTS,406.38,0,Direct Payments
04/11/2019,"Adults & Health Commissioning, Health & Social Care",Redacted - Personal Data,DIRECT PAYMENTS,406.38,0,Direct Payments
04/11/2019,"Adults & Health Commissioning, Health & Social Care",Redacted - Personal Data,DIRECT PAYMENTS,304.08,0,Foster Carers
04/11/2019,"Adults & Health Commissioning, Health & Social Care",Redacted - Personal Data,DIRECT PAYMENTS,304.08,0,Foster Carers
04/11/2019,"Adults & Health Commissioning, Health & Social Care",Redacted - Personal Data,DIRECT PAYMENTS,304.08,0,Foster Carers
04/11/2019,"Adults & Health Commissioning, Health & Social Care",Redacted - Personal Data,DIRECT PAYMENTS,304.08,0,Foster Carers
04/11/2019,"Adults & Health Commissioning, Health & Social Care",Redacted - Personal Data,DIRECT PAYMENTS,472.89,0,Foster Carers
04/11/2019,"Adults & Health Commissioning, Health & Social Care",Redacted - Personal Data,DIRECT PAYMENTS,472.89,0,Foster Carers
04/11/2019,"Adults & Health Commissioning, Health & Social Care",Redacted - Personal Data,DIRECT PAYMENTS,472.89,0,Foster Carers
04/11/2019,"Adults & Health Commissioning, Health & Social Care",Redacted - Personal Data,DIRECT PAYMENTS,472.89,0,Foster Carers
04/11/2019,"Adults & Health Commissioning, Health & Social Care",Redacted - Personal Data,DIRECT PAYMENTS,278.98,0,Foster Carers
04/11/2019,"Adults & Health Commissioning, Health & Social Care",Redacted - Personal Data,DIRECT PAYMENTS,278.98,0,Foster Carers
04/11/2019,"Adults & Health Commissioning, Health & Social Care",Redacted - Personal Data,DIRECT PAYMENTS,278.98,0,Foster Carers
04/11/2019,"Adults & Health Commissioning, Health & Social Care",Redacted - Personal Data,DIRECT PAYMENTS,278.98,0,Foster Carers
04/11/2019,"Adults & Health Commissioning, Health & Social Care",Redacted - Personal Data,DIRECT PAYMENTS,905.45,0,Foster Carers
04/11/2019,"Adults & Health Commissioning, Health & Social Care",Redacted - Personal Data,DIRECT PAYMENTS,905.45,0,Foster Carers
04/11/2019,"Adults & Health Commissioning, Health & Social Care",Redacted - Personal Data,DIRECT PAYMENTS,905.45,0,Foster Carers
04/11/2019,"Adults & Health Commissioning, Health & Social Care",Redacted - Personal Data,DIRECT PAYMENTS,905.45,0,Foster Carers
04/11/2019,Environment and Sustainable Transport Parks and Open Spaces,H G Gladwell & Sons Ltd,PRIVATE CONTRACTORS PAYMENT - OTHER,595.23,0,Commercial Supplier
04/11/2019,"Adults & Health Commissioning, Health & Social Care",Redacted - Personal Data,DIRECT PAYMENTS,462.00,0,Foster Carers
04/11/2019,"Adults & Health Commissioning, Health & Social Care",Redacted - Personal Data,DIRECT PAYMENTS,462.00,0,Foster Carers
04/11/2019,"Adults & Health Commissioning, Health & Social Care",Redacted - Personal Data,DIRECT PAYMENTS,462.00,0,Foster Carers
04/11/2019,"Adults & Health Commissioning, Health & Social Care",Redacted - Personal Data,DIRECT PAYMENTS,462.00,0,Foster Carers
04/11/2019,"Adults & Health Commissioning, Health & Social Care",Redacted - Personal Data,DIRECT PAYMENTS,"1,032.70",0,Foster Carers
04/11/2019,"Adults & Health Commissioning, Health & Social Care",Redacted - Personal Data,DIRECT PAYMENTS,"1,032.70",0,Foster Carers
04/11/2019,"Adults & Health Commissioning, Health & Social Care",Redacted - Personal Data,DIRECT PAYMENTS,"1,032.70",0,Foster Carers
04/11/2019,"Adults & Health Commissioning, Health & Social Care",Redacted - Personal Data,DIRECT PAYMENTS,"1,032.70",0,Foster Carers
04/11/2019,"Adults & Health Commissioning, Health & Social Care",Redacted - Personal Data,DIRECT PAYMENTS,779.58,0,Direct Payments
04/11/2019,"Adults & Health Commissioning, Health & Social Care",Redacted - Personal Data,DIRECT PAYMENTS,779.58,0,Direct Payments
04/11/2019,"Adults & Health Commissioning, Health & Social Care",Redacted - Personal Data,DIRECT PAYMENTS,779.58,0,Direct Payments
04/11/2019,"Adults & Health Commissioning, Health & Social Care",Redacted - Personal Data,DIRECT PAYMENTS,779.58,0,Direct Payments
04/11/2019,Environment and Sustainable Transport Licensing & Regulation,Harding Bros Electrical Ltd,BUILDING ALTERATIONS AND MATERIALS,294.55,0,CIS
04/11/2019,oneSource - Non Shared Asset Management,Harding Bros Electrical Ltd,BUILDING ALTERATIONS AND MATERIALS,588.27,0,CIS
04/11/2019,"Adults & Health Commissioning, Health & Social Care",Redacted - Personal Data,DIRECT PAYMENTS,453.03,0,Foster Carers
04/11/2019,"Adults & Health Commissioning, Health & Social Care",Redacted - Personal Data,DIRECT PAYMENTS,453.03,0,Foster Carers
04/11/2019,"Adults & Health Commissioning, Health & Social Care",Redacted - Personal Data,DIRECT PAYMENTS,453.03,0,Foster Carers
04/11/2019,"Adults & Health Commissioning, Health & Social Care",Redacted - Personal Data,DIRECT PAYMENTS,453.03,0,Foster Carers
04/11/2019,"Adults & Health Commissioning, Health & Social Care",Redacted - Personal Data,DIRECT PAYMENTS,709.23,0,Foster Carers
04/11/2019,"Adults & Health Commissioning, Health & Social Care",Redacted - Personal Data,DIRECT PAYMENTS,709.23,0,Foster Carers
04/11/2019,"Adults & Health Commissioning, Health & Social Care",Redacted - Personal Data,DIRECT PAYMENTS,709.23,0,Foster Carers
04/11/2019,"Adults & Health Commissioning, Health & Social Care",Redacted - Personal Data,DIRECT PAYMENTS,709.23,0,Foster Carers
04/11/2019,"Adults & Health Commissioning, Health & Social Care",Redacted - Personal Data,DIRECT PAYMENTS,310.50,0,Individuals
04/11/2019,"Adults & Health Commissioning, Health & Social Care",Redacted - Personal Data,DIRECT PAYMENTS,310.50,0,Individuals
04/11/2019,"Adults & Health Commissioning, Health & Social Care",Redacted - Personal Data,DIRECT PAYMENTS,310.50,0,Individuals
04/11/2019,"Adults & Health Commissioning, Health & Social Care",Redacted - Personal Data,DIRECT PAYMENTS,310.50,0,Individuals
04/11/2019,"Adults & Health Commissioning, Health & Social Care",Hestia Housing And Support,DIRECT PAYMENTS,410.33,0,Foster Carers
04/11/2019,"Adults & Health Commissioning, Health & Social Care",Hestia Housing And Support,DIRECT PAYMENTS,"1,200.60",0,Foster Carers
04/11/2019,"Adults & Health Commissioning, Health & Social Care",Hestia Housing And Support,DIRECT PAYMENTS,425.73,0,Foster Carers
04/11/2019,"Adults & Health Commissioning, Health & Social Care",Hestia Housing And Support,DIRECT PAYMENTS,301.74,0,Foster Carers
04/11/2019,"Adults & Health Commissioning, Health & Social Care",Hestia Housing And Support,DIRECT PAYMENTS,425.73,0,Foster Carers
04/11/2019,"Adults & Health Commissioning, Health & Social Care",Hestia Housing And Support,DIRECT PAYMENTS,301.74,0,Foster Carers
04/11/2019,"Adults & Health Commissioning, Health & Social Care",Hestia Housing And Support,DIRECT PAYMENTS,301.74,0,Foster Carers
04/11/2019,"Adults & Health Commissioning, Health & Social Care",Hestia Housing And Support,DIRECT PAYMENTS,410.33,0,Foster Carers
04/11/2019,"Adults & Health Commissioning, Health & Social Care",Hestia Housing And Support,DIRECT PAYMENTS,410.33,0,Foster Carers
04/11/2019,"Adults & Health Commissioning, Health & Social Care",Hestia Housing And Support,DIRECT PAYMENTS,556.85,0,Foster Carers
04/11/2019,"Adults & Health Commissioning, Health & Social Care",Hestia Housing And Support,DIRECT PAYMENTS,301.74,0,Foster Carers
04/11/2019,"Adults & Health Commissioning, Health & Social Care",Hestia Housing And Support,DIRECT PAYMENTS,425.73,0,Foster Carers
04/11/2019,"Adults & Health Commissioning, Health & Social Care",Hestia Housing And Support,DIRECT PAYMENTS,556.85,0,Foster Carers
04/11/2019,"Adults & Health Commissioning, Health & Social Care",Hestia Housing And Support,DIRECT PAYMENTS,"1,200.60",0,Foster Carers
04/11/2019,"Adults & Health Commissioning, Health & Social Care",Hestia Housing And Support,DIRECT PAYMENTS,556.85,0,Foster Carers
04/11/2019,"Adults & Health Commissioning, Health & Social Care",Hestia Housing And Support,DIRECT PAYMENTS,410.33,0,Foster Carers
04/11/2019,"Adults & Health Commissioning, Health & Social Care",Hestia Housing And Support,DIRECT PAYMENTS,359.49,0,Foster Carers
04/11/2019,"Adults & Health Commissioning, Health & Social Care",Hestia Housing And Support,DIRECT PAYMENTS,544.05,0,Foster Carers
04/11/2019,"Adults & Health Commissioning, Health & Social Care",Hestia Housing And Support,DIRECT PAYMENTS,544.05,0,Foster Carers
04/11/2019,"Adults & Health Commissioning, Health & Social Care",Hestia Housing And Support,DIRECT PAYMENTS,544.05,0,Foster Carers
04/11/2019,"Adults & Health Commissioning, Health & Social Care",Hestia Housing And Support,DIRECT PAYMENTS,412.22,0,Foster Carers
04/11/2019,"Adults & Health Commissioning, Health & Social Care",Hestia Housing And Support,DIRECT PAYMENTS,412.22,0,Foster Carers
04/11/2019,"Adults & Health Commissioning, Health & Social Care",Hestia Housing And Support,DIRECT PAYMENTS,412.22,0,Foster Carers
04/11/2019,"Adults & Health Commissioning, Health & Social Care",Hestia Housing And Support,DIRECT PAYMENTS,412.22,0,Foster Carers
04/11/2019,"Adults & Health Commissioning, Health & Social Care",Hestia Housing And Support,DIRECT PAYMENTS,359.49,0,Foster Carers
04/11/2019,"Adults & Health Commissioning, Health & Social Care",Hestia Housing And Support,DIRECT PAYMENTS,561.63,0,Foster Carers
04/11/2019,"Adults & Health Commissioning, Health & Social Care",Hestia Housing And Support,DIRECT PAYMENTS,425.73,0,Foster Carers
04/11/2019,"Adults & Health Commissioning, Health & Social Care",Hestia Housing And Support,DIRECT PAYMENTS,"1,200.60",0,Foster Carers
04/11/2019,"Adults & Health Commissioning, Health & Social Care",Hestia Housing And Support,DIRECT PAYMENTS,544.05,0,Foster Carers
04/11/2019,"Adults & Health Commissioning, Health & Social Care",Hestia Housing And Support,DIRECT PAYMENTS,359.49,0,Foster Carers
04/11/2019,"Adults & Health Commissioning, Health & Social Care",Hestia Housing And Support,DIRECT PAYMENTS,446.06,0,Foster Carers
04/11/2019,"Adults & Health Commissioning, Health & Social Care",Hestia Housing And Support,DIRECT PAYMENTS,277.93,0,Foster Carers
04/11/2019,"Adults & Health Commissioning, Health & Social Care",Hestia Housing And Support,DIRECT PAYMENTS,277.93,0,Foster Carers
04/11/2019,"Adults & Health Commissioning, Health & Social Care",Hestia Housing And Support,DIRECT PAYMENTS,446.06,0,Foster Carers
04/11/2019,"Adults & Health Commissioning, Health & Social Care",Hestia Housing And Support,DIRECT PAYMENTS,446.06,0,Foster Carers
04/11/2019,"Adults & Health Commissioning, Health & Social Care",Hestia Housing And Support,DIRECT PAYMENTS,446.06,0,Foster Carers
04/11/2019,"Adults & Health Commissioning, Health & Social Care",Hestia Housing And Support,DIRECT PAYMENTS,277.93,0,Foster Carers
04/11/2019,"Adults & Health Commissioning, Health & Social Care",Hestia Housing And Support,DIRECT PAYMENTS,277.93,0,Foster Carers
04/11/2019,"Adults & Health Commissioning, Health & Social Care",Hestia Housing And Support,DIRECT PAYMENTS,359.49,0,Foster Carers
04/11/2019,"Adults & Health Commissioning, Health & Social Care",Hestia Housing And Support,DIRECT PAYMENTS,349.85,0,Foster Carers
04/11/2019,"Adults & Health Commissioning, Health & Social Care",Hestia Housing And Support,DIRECT PAYMENTS,783.35,0,Foster Carers
04/11/2019,"Adults & Health Commissioning, Health & Social Care",Hestia Housing And Support,DIRECT PAYMENTS,338.39,0,Foster Carers
04/11/2019,"Adults & Health Commissioning, Health & Social Care",Hestia Housing And Support,DIRECT PAYMENTS,298.52,0,Foster Carers
04/11/2019,"Adults & Health Commissioning, Health & Social Care",Hestia Housing And Support,DIRECT PAYMENTS,298.52,0,Foster Carers
04/11/2019,"Adults & Health Commissioning, Health & Social Care",Hestia Housing And Support,DIRECT PAYMENTS,298.52,0,Foster Carers
04/11/2019,"Adults & Health Commissioning, Health & Social Care",Hestia Housing And Support,DIRECT PAYMENTS,298.52,0,Foster Carers
04/11/2019,"Adults & Health Commissioning, Health & Social Care",Hestia Housing And Support,DIRECT PAYMENTS,521.82,0,Foster Carers
04/11/2019,"Adults & Health Commissioning, Health & Social Care",Hestia Housing And Support,DIRECT PAYMENTS,521.82,0,Foster Carers
04/11/2019,"Adults & Health Commissioning, Health & Social Care",Hestia Housing And Support,DIRECT PAYMENTS,521.82,0,Foster Carers
04/11/2019,"Adults & Health Commissioning, Health & Social Care",Hestia Housing And Support,DIRECT PAYMENTS,338.39,0,Foster Carers
04/11/2019,"Adults & Health Commissioning, Health & Social Care",Hestia Housing And Support,DIRECT PAYMENTS,349.85,0,Foster Carers
04/11/2019,"Adults & Health Commissioning, Health & Social Care",Hestia Housing And Support,DIRECT PAYMENTS,338.39,0,Foster Carers
04/11/2019,"Adults & Health Commissioning, Health & Social Care",Hestia Housing And Support,DIRECT PAYMENTS,349.85,0,Foster Carers
04/11/2019,"Adults & Health Commissioning, Health & Social Care",Hestia Housing And Support,DIRECT PAYMENTS,349.85,0,Foster Carers
04/11/2019,"Adults & Health Commissioning, Health & Social Care",Hestia Housing And Support,DIRECT PAYMENTS,778.95,0,Foster Carers
04/11/2019,"Adults & Health Commissioning, Health & Social Care",Hestia Housing And Support,DIRECT PAYMENTS,778.95,0,Foster Carers
04/11/2019,"Adults & Health Commissioning, Health & Social Care",Hestia Housing And Support,DIRECT PAYMENTS,778.95,0,Foster Carers
04/11/2019,"Adults & Health Commissioning, Health & Social Care",Hestia Housing And Support,DIRECT PAYMENTS,778.95,0,Foster Carers
04/11/2019,"Adults & Health Commissioning, Health & Social Care",Hestia Housing And Support,DIRECT PAYMENTS,484.80,0,Foster Carers
04/11/2019,"Adults & Health Commissioning, Health & Social Care",Hestia Housing And Support,DIRECT PAYMENTS,484.80,0,Foster Carers
04/11/2019,"Adults & Health Commissioning, Health & Social Care",Hestia Housing And Support,DIRECT PAYMENTS,484.80,0,Foster Carers
04/11/2019,"Adults & Health Commissioning, Health & Social Care",Hestia Housing And Support,DIRECT PAYMENTS,484.80,0,Foster Carers
04/11/2019,"Adults & Health Commissioning, Health & Social Care",Hestia Housing And Support,DIRECT PAYMENTS,521.82,0,Foster Carers
04/11/2019,"Adults & Health Commissioning, Health & Social Care",Hestia Housing And Support,DIRECT PAYMENTS,561.63,0,Foster Carers
04/11/2019,"Adults & Health Commissioning, Health & Social Care",Hestia Housing And Support,DIRECT PAYMENTS,501.65,0,Foster Carers
04/11/2019,"Adults & Health Commissioning, Health & Social Care",Hestia Housing And Support,DIRECT PAYMENTS,561.63,0,Foster Carers
04/11/2019,"Adults & Health Commissioning, Health & Social Care",Hestia Housing And Support,DIRECT PAYMENTS,556.85,0,Foster Carers
04/11/2019,"Adults & Health Commissioning, Health & Social Care",Hestia Housing And Support,DIRECT PAYMENTS,561.63,0,Foster Carers
04/11/2019,"Adults & Health Commissioning, Health & Social Care",Hestia Housing And Support,DIRECT PAYMENTS,561.63,0,Foster Carers
04/11/2019,"Adults & Health Commissioning, Health & Social Care",Hestia Housing And Support,DIRECT PAYMENTS,783.35,0,Foster Carers
04/11/2019,"Adults & Health Commissioning, Health & Social Care",Hestia Housing And Support,DIRECT PAYMENTS,561.63,0,Foster Carers
04/11/2019,"Adults & Health Commissioning, Health & Social Care",Hestia Housing And Support,DIRECT PAYMENTS,561.63,0,Foster Carers
04/11/2019,"Adults & Health Commissioning, Health & Social Care",Hestia Housing And Support,DIRECT PAYMENTS,561.63,0,Foster Carers
04/11/2019,"Adults & Health Commissioning, Health & Social Care",Hestia Housing And Support,DIRECT PAYMENTS,338.39,0,Foster Carers
04/11/2019,"Adults & Health Commissioning, Health & Social Care",Hestia Housing And Support,DIRECT PAYMENTS,561.63,0,Foster Carers
04/11/2019,"Adults & Health Commissioning, Health & Social Care",Hestia Housing And Support,DIRECT PAYMENTS,"1,200.60",0,Foster Carers
04/11/2019,"Adults & Health Commissioning, Health & Social Care",Hestia Housing And Support,DIRECT PAYMENTS,561.63,0,Foster Carers
04/11/2019,"Adults & Health Commissioning, Health & Social Care",Hestia Housing And Support,DIRECT PAYMENTS,783.35,0,Foster Carers
04/11/2019,"Adults & Health Commissioning, Health & Social Care",Hestia Housing And Support,DIRECT PAYMENTS,561.63,0,Foster Carers
04/11/2019,"Adults & Health Commissioning, Health & Social Care",Hestia Housing And Support,DIRECT PAYMENTS,501.65,0,Foster Carers
04/11/2019,"Adults & Health Commissioning, Health & Social Care",Hestia Housing And Support,DIRECT PAYMENTS,501.65,0,Foster Carers
04/11/2019,"Adults & Health Commissioning, Health & Social Care",Hestia Housing And Support,DIRECT PAYMENTS,501.65,0,Foster Carers
04/11/2019,"Adults & Health Commissioning, Health & Social Care",Hestia Housing And Support,DIRECT PAYMENTS,426.17,0,Foster Carers
04/11/2019,"Adults & Health Commissioning, Health & Social Care",Hestia Housing And Support,DIRECT PAYMENTS,426.17,0,Foster Carers
04/11/2019,"Adults & Health Commissioning, Health & Social Care",Hestia Housing And Support,DIRECT PAYMENTS,426.17,0,Foster Carers
04/11/2019,"Adults & Health Commissioning, Health & Social Care",Hestia Housing And Support,DIRECT PAYMENTS,426.17,0,Foster Carers
04/11/2019,"Adults & Health Commissioning, Health & Social Care",Hestia Housing And Support,DIRECT PAYMENTS,783.35,0,Foster Carers
04/11/2019,"Adults & Health Commissioning, Health & Social Care",Hestia Housing And Support,DIRECT PAYMENTS,253.25,0,Foster Carers
04/11/2019,"Adults & Health Commissioning, Health & Social Care",Hestia Housing And Support,DIRECT PAYMENTS,335.52,0,Foster Carers
04/11/2019,"Adults & Health Commissioning, Health & Social Care",Hestia Housing And Support,DIRECT PAYMENTS,551.35,0,Foster Carers
04/11/2019,"Adults & Health Commissioning, Health & Social Care",Hestia Housing And Support,DIRECT PAYMENTS,551.35,0,Foster Carers
04/11/2019,"Adults & Health Commissioning, Health & Social Care",Hestia Housing And Support,DIRECT PAYMENTS,813.67,0,Foster Carers
04/11/2019,"Adults & Health Commissioning, Health & Social Care",Hestia Housing And Support,DIRECT PAYMENTS,813.67,0,Foster Carers
04/11/2019,"Adults & Health Commissioning, Health & Social Care",Hestia Housing And Support,DIRECT PAYMENTS,813.67,0,Foster Carers
04/11/2019,"Adults & Health Commissioning, Health & Social Care",Hestia Housing And Support,DIRECT PAYMENTS,813.67,0,Foster Carers
04/11/2019,"Adults & Health Commissioning, Health & Social Care",Hestia Housing And Support,DIRECT PAYMENTS,342.85,0,Foster Carers
04/11/2019,"Adults & Health Commissioning, Health & Social Care",Hestia Housing And Support,DIRECT PAYMENTS,342.85,0,Foster Carers
04/11/2019,"Adults & Health Commissioning, Health & Social Care",Hestia Housing And Support,DIRECT PAYMENTS,342.85,0,Foster Carers
04/11/2019,"Adults & Health Commissioning, Health & Social Care",Hestia Housing And Support,DIRECT PAYMENTS,551.35,0,Foster Carers
04/11/2019,"Adults & Health Commissioning, Health & Social Care",Hestia Housing And Support,DIRECT PAYMENTS,253.25,0,Foster Carers
04/11/2019,"Adults & Health Commissioning, Health & Social Care",Hestia Housing And Support,DIRECT PAYMENTS,342.34,0,Foster Carers
04/11/2019,"Adults & Health Commissioning, Health & Social Care",Hestia Housing And Support,DIRECT PAYMENTS,253.25,0,Foster Carers
04/11/2019,"Adults & Health Commissioning, Health & Social Care",Hestia Housing And Support,DIRECT PAYMENTS,561.63,0,Foster Carers
04/11/2019,"Adults & Health Commissioning, Health & Social Care",Hestia Housing And Support,DIRECT PAYMENTS,561.63,0,Foster Carers
04/11/2019,"Adults & Health Commissioning, Health & Social Care",Hestia Housing And Support,DIRECT PAYMENTS,561.63,0,Foster Carers
04/11/2019,"Adults & Health Commissioning, Health & Social Care",Hestia Housing And Support,DIRECT PAYMENTS,253.25,0,Foster Carers
04/11/2019,"Adults & Health Commissioning, Health & Social Care",Hestia Housing And Support,DIRECT PAYMENTS,665.15,0,Foster Carers
04/11/2019,"Adults & Health Commissioning, Health & Social Care",Hestia Housing And Support,DIRECT PAYMENTS,665.15,0,Foster Carers
04/11/2019,"Adults & Health Commissioning, Health & Social Care",Hestia Housing And Support,DIRECT PAYMENTS,665.15,0,Foster Carers
04/11/2019,"Adults & Health Commissioning, Health & Social Care",Hestia Housing And Support,DIRECT PAYMENTS,665.15,0,Foster Carers
04/11/2019,"Adults & Health Commissioning, Health & Social Care",Hestia Housing And Support,DIRECT PAYMENTS,343.30,0,Foster Carers
04/11/2019,"Adults & Health Commissioning, Health & Social Care",Hestia Housing And Support,DIRECT PAYMENTS,343.30,0,Foster Carers
04/11/2019,"Adults & Health Commissioning, Health & Social Care",Hestia Housing And Support,DIRECT PAYMENTS,342.85,0,Foster Carers
04/11/2019,"Adults & Health Commissioning, Health & Social Care",Hestia Housing And Support,DIRECT PAYMENTS,266.91,0,Foster Carers
04/11/2019,"Adults & Health Commissioning, Health & Social Care",Hestia Housing And Support,DIRECT PAYMENTS,474.60,0,Foster Carers
04/11/2019,"Adults & Health Commissioning, Health & Social Care",Hestia Housing And Support,DIRECT PAYMENTS,342.34,0,Foster Carers
04/11/2019,"Adults & Health Commissioning, Health & Social Care",Hestia Housing And Support,DIRECT PAYMENTS,267.52,0,Foster Carers
04/11/2019,"Adults & Health Commissioning, Health & Social Care",Hestia Housing And Support,DIRECT PAYMENTS,474.60,0,Foster Carers
04/11/2019,"Adults & Health Commissioning, Health & Social Care",Hestia Housing And Support,RESPITE CARE - PRIVATE CONTRACTORS PAYMENT,"5,778.84",0,Foster Carers
04/11/2019,"Adults & Health Commissioning, Health & Social Care",Hestia Housing And Support,RESPITE CARE - PRIVATE CONTRACTORS PAYMENT,820.54,0,Foster Carers
04/11/2019,"Adults & Health Commissioning, Health & Social Care",Hestia Housing And Support,RESPITE CARE - PRIVATE CONTRACTORS PAYMENT,823.14,0,Foster Carers
04/11/2019,"Adults & Health Commissioning, Health & Social Care",Hestia Housing And Support,DIRECT PAYMENTS,266.91,0,Foster Carers
04/11/2019,"Adults & Health Commissioning, Health & Social Care",Hestia Housing And Support,DIRECT PAYMENTS,266.91,0,Foster Carers
04/11/2019,"Adults & Health Commissioning, Health & Social Care",Hestia Housing And Support,DIRECT PAYMENTS,266.91,0,Foster Carers
04/11/2019,"Adults & Health Commissioning, Health & Social Care",Hestia Housing And Support,DIRECT PAYMENTS,551.35,0,Foster Carers
04/11/2019,"Adults & Health Commissioning, Health & Social Care",Hestia Housing And Support,DIRECT PAYMENTS,266.91,0,Foster Carers
04/11/2019,"Adults & Health Commissioning, Health & Social Care",Hestia Housing And Support,DIRECT PAYMENTS,303.86,0,Foster Carers
04/11/2019,"Adults & Health Commissioning, Health & Social Care",Hestia Housing And Support,DIRECT PAYMENTS,266.91,0,Foster Carers
04/11/2019,"Adults & Health Commissioning, Health & Social Care",Hestia Housing And Support,DIRECT PAYMENTS,266.91,0,Foster Carers
04/11/2019,"Adults & Health Commissioning, Health & Social Care",Hestia Housing And Support,DIRECT PAYMENTS,350.00,0,Foster Carers
04/11/2019,"Adults & Health Commissioning, Health & Social Care",Hestia Housing And Support,DIRECT PAYMENTS,305.54,0,Foster Carers
04/11/2019,"Adults & Health Commissioning, Health & Social Care",Hestia Housing And Support,DIRECT PAYMENTS,305.54,0,Foster Carers
04/11/2019,"Adults & Health Commissioning, Health & Social Care",Hestia Housing And Support,DIRECT PAYMENTS,305.54,0,Foster Carers
04/11/2019,"Adults & Health Commissioning, Health & Social Care",Hestia Housing And Support,DIRECT PAYMENTS,305.54,0,Foster Carers
04/11/2019,"Adults & Health Commissioning, Health & Social Care",Hestia Housing And Support,DIRECT PAYMENTS,561.63,0,Foster Carers
04/11/2019,"Adults & Health Commissioning, Health & Social Care",Hestia Housing And Support,DIRECT PAYMENTS,561.63,0,Foster Carers
04/11/2019,"Adults & Health Commissioning, Health & Social Care",Hestia Housing And Support,DIRECT PAYMENTS,342.34,0,Foster Carers
04/11/2019,"Adults & Health Commissioning, Health & Social Care",Hestia Housing And Support,DIRECT PAYMENTS,342.34,0,Foster Carers
04/11/2019,"Adults & Health Commissioning, Health & Social Care",Hestia Housing And Support,DIRECT PAYMENTS,266.91,0,Foster Carers
04/11/2019,"Adults & Health Commissioning, Health & Social Care",Hestia Housing And Support,DIRECT PAYMENTS,498.20,0,Foster Carers
04/11/2019,"Adults & Health Commissioning, Health & Social Care",Hestia Housing And Support,DIRECT PAYMENTS,561.63,0,Foster Carers
04/11/2019,"Adults & Health Commissioning, Health & Social Care",Hestia Housing And Support,DIRECT PAYMENTS,302.40,0,Foster Carers
04/11/2019,"Adults & Health Commissioning, Health & Social Care",Hestia Housing And Support,DIRECT PAYMENTS,302.40,0,Foster Carers
04/11/2019,"Adults & Health Commissioning, Health & Social Care",Hestia Housing And Support,DIRECT PAYMENTS,302.40,0,Foster Carers
04/11/2019,"Adults & Health Commissioning, Health & Social Care",Hestia Housing And Support,DIRECT PAYMENTS,682.24,0,Foster Carers
04/11/2019,"Adults & Health Commissioning, Health & Social Care",Hestia Housing And Support,DIRECT PAYMENTS,682.24,0,Foster Carers
04/11/2019,"Adults & Health Commissioning, Health & Social Care",Hestia Housing And Support,DIRECT PAYMENTS,682.24,0,Foster Carers
04/11/2019,"Adults & Health Commissioning, Health & Social Care",Hestia Housing And Support,DIRECT PAYMENTS,682.24,0,Foster Carers
04/11/2019,"Adults & Health Commissioning, Health & Social Care",Hestia Housing And Support,DIRECT PAYMENTS,389.44,0,Foster Carers
04/11/2019,"Adults & Health Commissioning, Health & Social Care",Hestia Housing And Support,DIRECT PAYMENTS,389.44,0,Foster Carers
04/11/2019,"Adults & Health Commissioning, Health & Social Care",Hestia Housing And Support,DIRECT PAYMENTS,343.30,0,Foster Carers
04/11/2019,"Adults & Health Commissioning, Health & Social Care",Hestia Housing And Support,DIRECT PAYMENTS,389.44,0,Foster Carers
04/11/2019,"Adults & Health Commissioning, Health & Social Care",Hestia Housing And Support,DIRECT PAYMENTS,310.63,0,Foster Carers
04/11/2019,"Adults & Health Commissioning, Health & Social Care",Hestia Housing And Support,DIRECT PAYMENTS,498.20,0,Foster Carers
04/11/2019,"Adults & Health Commissioning, Health & Social Care",Hestia Housing And Support,DIRECT PAYMENTS,498.20,0,Foster Carers
04/11/2019,"Adults & Health Commissioning, Health & Social Care",Hestia Housing And Support,DIRECT PAYMENTS,498.20,0,Foster Carers
04/11/2019,"Adults & Health Commissioning, Health & Social Care",Hestia Housing And Support,DIRECT PAYMENTS,335.52,0,Foster Carers
04/11/2019,"Adults & Health Commissioning, Health & Social Care",Hestia Housing And Support,DIRECT PAYMENTS,335.52,0,Foster Carers
04/11/2019,"Adults & Health Commissioning, Health & Social Care",Hestia Housing And Support,DIRECT PAYMENTS,571.08,0,Foster Carers
04/11/2019,"Adults & Health Commissioning, Health & Social Care",Hestia Housing And Support,DIRECT PAYMENTS,335.52,0,Foster Carers
04/11/2019,"Adults & Health Commissioning, Health & Social Care",Hestia Housing And Support,DIRECT PAYMENTS,258.16,0,Foster Carers
04/11/2019,"Adults & Health Commissioning, Health & Social Care",Hestia Housing And Support,DIRECT PAYMENTS,398.35,0,Foster Carers
04/11/2019,"Adults & Health Commissioning, Health & Social Care",Hestia Housing And Support,DIRECT PAYMENTS,398.35,0,Foster Carers
04/11/2019,"Adults & Health Commissioning, Health & Social Care",Hestia Housing And Support,DIRECT PAYMENTS,398.35,0,Foster Carers
04/11/2019,"Adults & Health Commissioning, Health & Social Care",Hestia Housing And Support,DIRECT PAYMENTS,389.44,0,Foster Carers
04/11/2019,"Adults & Health Commissioning, Health & Social Care",Hestia Housing And Support,DIRECT PAYMENTS,526.37,0,Foster Carers
04/11/2019,"Adults & Health Commissioning, Health & Social Care",Hestia Housing And Support,DIRECT PAYMENTS,398.35,0,Foster Carers
04/11/2019,"Adults & Health Commissioning, Health & Social Care",Hestia Housing And Support,DIRECT PAYMENTS,303.86,0,Foster Carers
04/11/2019,"Adults & Health Commissioning, Health & Social Care",Hestia Housing And Support,DIRECT PAYMENTS,303.86,0,Foster Carers
04/11/2019,"Adults & Health Commissioning, Health & Social Care",Hestia Housing And Support,DIRECT PAYMENTS,303.86,0,Foster Carers
04/11/2019,"Adults & Health Commissioning, Health & Social Care",Hestia Housing And Support,DIRECT PAYMENTS,379.59,0,Foster Carers
04/11/2019,"Adults & Health Commissioning, Health & Social Care",Hestia Housing And Support,DIRECT PAYMENTS,379.59,0,Foster Carers
04/11/2019,"Adults & Health Commissioning, Health & Social Care",Hestia Housing And Support,DIRECT PAYMENTS,379.59,0,Foster Carers
04/11/2019,"Adults & Health Commissioning, Health & Social Care",Hestia Housing And Support,DIRECT PAYMENTS,379.59,0,Foster Carers
04/11/2019,"Adults & Health Commissioning, Health & Social Care",Hestia Housing And Support,DIRECT PAYMENTS,419.91,0,Foster Carers
04/11/2019,"Adults & Health Commissioning, Health & Social Care",Hestia Housing And Support,DIRECT PAYMENTS,419.91,0,Foster Carers
04/11/2019,"Adults & Health Commissioning, Health & Social Care",Hestia Housing And Support,DIRECT PAYMENTS,419.91,0,Foster Carers
04/11/2019,"Adults & Health Commissioning, Health & Social Care",Hestia Housing And Support,DIRECT PAYMENTS,302.40,0,Foster Carers
04/11/2019,"Adults & Health Commissioning, Health & Social Care",Hestia Housing And Support,DIRECT PAYMENTS,526.37,0,Foster Carers
04/11/2019,"Adults & Health Commissioning, Health & Social Care",Hestia Housing And Support,DIRECT PAYMENTS,310.63,0,Foster Carers
04/11/2019,"Adults & Health Commissioning, Health & Social Care",Hestia Housing And Support,DIRECT PAYMENTS,526.37,0,Foster Carers
04/11/2019,"Adults & Health Commissioning, Health & Social Care",Hestia Housing And Support,DIRECT PAYMENTS,526.37,0,Foster Carers
04/11/2019,"Adults & Health Commissioning, Health & Social Care",Hestia Housing And Support,DIRECT PAYMENTS,290.32,0,Foster Carers
04/11/2019,"Adults & Health Commissioning, Health & Social Care",Hestia Housing And Support,DIRECT PAYMENTS,561.63,0,Foster Carers
04/11/2019,"Adults & Health Commissioning, Health & Social Care",Hestia Housing And Support,DIRECT PAYMENTS,561.63,0,Foster Carers
04/11/2019,"Adults & Health Commissioning, Health & Social Care",Hestia Housing And Support,DIRECT PAYMENTS,290.32,0,Foster Carers
04/11/2019,"Adults & Health Commissioning, Health & Social Care",Hestia Housing And Support,DIRECT PAYMENTS,290.32,0,Foster Carers
04/11/2019,"Adults & Health Commissioning, Health & Social Care",Hestia Housing And Support,DIRECT PAYMENTS,290.32,0,Foster Carers
04/11/2019,"Adults & Health Commissioning, Health & Social Care",Hestia Housing And Support,DIRECT PAYMENTS,310.63,0,Foster Carers
04/11/2019,"Adults & Health Commissioning, Health & Social Care",Hestia Housing And Support,DIRECT PAYMENTS,310.63,0,Foster Carers
04/11/2019,"Adults & Health Commissioning, Health & Social Care",Hestia Housing And Support,DIRECT PAYMENTS,343.30,0,Foster Carers
04/11/2019,"Adults & Health Commissioning, Health & Social Care",Hestia Housing And Support,DIRECT PAYMENTS,419.91,0,Foster Carers
04/11/2019,"Adults & Health Commissioning, Health & Social Care",Hestia Housing And Support,DIRECT PAYMENTS,374.61,0,Foster Carers
04/11/2019,"Adults & Health Commissioning, Health & Social Care",Hestia Housing And Support,DIRECT PAYMENTS,384.27,0,Foster Carers
04/11/2019,"Adults & Health Commissioning, Health & Social Care",Hestia Housing And Support,DIRECT PAYMENTS,384.27,0,Foster Carers
04/11/2019,"Adults & Health Commissioning, Health & Social Care",Hestia Housing And Support,DIRECT PAYMENTS,285.10,0,Foster Carers
04/11/2019,"Adults & Health Commissioning, Health & Social Care",Hestia Housing And Support,DIRECT PAYMENTS,285.10,0,Foster Carers
04/11/2019,"Adults & Health Commissioning, Health & Social Care",Hestia Housing And Support,DIRECT PAYMENTS,285.10,0,Foster Carers
04/11/2019,"Adults & Health Commissioning, Health & Social Care",Hestia Housing And Support,DIRECT PAYMENTS,285.10,0,Foster Carers
04/11/2019,"Adults & Health Commissioning, Health & Social Care",Hestia Housing And Support,DIRECT PAYMENTS,364.85,0,Foster Carers
04/11/2019,"Adults & Health Commissioning, Health & Social Care",Hestia Housing And Support,DIRECT PAYMENTS,364.85,0,Foster Carers
04/11/2019,"Adults & Health Commissioning, Health & Social Care",Hestia Housing And Support,DIRECT PAYMENTS,364.85,0,Foster Carers
04/11/2019,"Adults & Health Commissioning, Health & Social Care",Hestia Housing And Support,DIRECT PAYMENTS,364.85,0,Foster Carers
04/11/2019,"Adults & Health Commissioning, Health & Social Care",Hestia Housing And Support,DIRECT PAYMENTS,374.61,0,Foster Carers
04/11/2019,"Adults & Health Commissioning, Health & Social Care",Hestia Housing And Support,DIRECT PAYMENTS,279.85,0,Foster Carers
04/11/2019,"Adults & Health Commissioning, Health & Social Care",Hestia Housing And Support,DIRECT PAYMENTS,374.61,0,Foster Carers
04/11/2019,"Adults & Health Commissioning, Health & Social Care",Hestia Housing And Support,DIRECT PAYMENTS,512.85,0,Foster Carers
04/11/2019,"Adults & Health Commissioning, Health & Social Care",Hestia Housing And Support,DIRECT PAYMENTS,293.19,0,Foster Carers
04/11/2019,"Adults & Health Commissioning, Health & Social Care",Hestia Housing And Support,DIRECT PAYMENTS,293.19,0,Foster Carers
04/11/2019,"Adults & Health Commissioning, Health & Social Care",Hestia Housing And Support,DIRECT PAYMENTS,286.88,0,Foster Carers
04/11/2019,"Adults & Health Commissioning, Health & Social Care",Hestia Housing And Support,DIRECT PAYMENTS,286.88,0,Foster Carers
04/11/2019,"Adults & Health Commissioning, Health & Social Care",Hestia Housing And Support,DIRECT PAYMENTS,286.88,0,Foster Carers
04/11/2019,"Adults & Health Commissioning, Health & Social Care",Hestia Housing And Support,DIRECT PAYMENTS,286.88,0,Foster Carers
04/11/2019,"Adults & Health Commissioning, Health & Social Care",Hestia Housing And Support,DIRECT PAYMENTS,293.19,0,Foster Carers
04/11/2019,"Adults & Health Commissioning, Health & Social Care",Hestia Housing And Support,DIRECT PAYMENTS,293.19,0,Foster Carers
04/11/2019,"Adults & Health Commissioning, Health & Social Care",Hestia Housing And Support,DIRECT PAYMENTS,279.85,0,Foster Carers
04/11/2019,"Adults & Health Commissioning, Health & Social Care",Hestia Housing And Support,DIRECT PAYMENTS,279.85,0,Foster Carers
04/11/2019,"Adults & Health Commissioning, Health & Social Care",Hestia Housing And Support,DIRECT PAYMENTS,492.07,0,Foster Carers
04/11/2019,"Adults & Health Commissioning, Health & Social Care",Hestia Housing And Support,DIRECT PAYMENTS,374.61,0,Foster Carers
04/11/2019,"Adults & Health Commissioning, Health & Social Care",Hestia Housing And Support,DIRECT PAYMENTS,464.84,0,Foster Carers
04/11/2019,"Adults & Health Commissioning, Health & Social Care",Hestia Housing And Support,DIRECT PAYMENTS,258.16,0,Foster Carers
04/11/2019,"Adults & Health Commissioning, Health & Social Care",Hestia Housing And Support,DIRECT PAYMENTS,"1,550.45",0,Foster Carers
04/11/2019,"Adults & Health Commissioning, Health & Social Care",Hestia Housing And Support,DIRECT PAYMENTS,313.27,0,Foster Carers
04/11/2019,"Adults & Health Commissioning, Health & Social Care",Hestia Housing And Support,DIRECT PAYMENTS,313.27,0,Foster Carers
04/11/2019,"Adults & Health Commissioning, Health & Social Care",Hestia Housing And Support,DIRECT PAYMENTS,313.27,0,Foster Carers
04/11/2019,"Adults & Health Commissioning, Health & Social Care",Hestia Housing And Support,DIRECT PAYMENTS,313.27,0,Foster Carers
04/11/2019,"Adults & Health Commissioning, Health & Social Care",Hestia Housing And Support,DIRECT PAYMENTS,760.18,0,Foster Carers
04/11/2019,"Adults & Health Commissioning, Health & Social Care",Hestia Housing And Support,DIRECT PAYMENTS,760.18,0,Foster Carers
04/11/2019,"Adults & Health Commissioning, Health & Social Care",Hestia Housing And Support,DIRECT PAYMENTS,760.18,0,Foster Carers
04/11/2019,"Adults & Health Commissioning, Health & Social Care",Hestia Housing And Support,DIRECT PAYMENTS,760.18,0,Foster Carers
04/11/2019,"Adults & Health Commissioning, Health & Social Care",Hestia Housing And Support,DIRECT PAYMENTS,432.35,0,Foster Carers
04/11/2019,"Adults & Health Commissioning, Health & Social Care",Hestia Housing And Support,DIRECT PAYMENTS,384.27,0,Foster Carers
04/11/2019,"Adults & Health Commissioning, Health & Social Care",Hestia Housing And Support,DIRECT PAYMENTS,"1,252.91",0,Foster Carers
04/11/2019,"Adults & Health Commissioning, Health & Social Care",Hestia Housing And Support,DIRECT PAYMENTS,384.27,0,Foster Carers
04/11/2019,"Adults & Health Commissioning, Health & Social Care",Hestia Housing And Support,DIRECT PAYMENTS,432.35,0,Foster Carers
04/11/2019,"Adults & Health Commissioning, Health & Social Care",Hestia Housing And Support,DIRECT PAYMENTS,432.35,0,Foster Carers
04/11/2019,"Adults & Health Commissioning, Health & Social Care",Hestia Housing And Support,DIRECT PAYMENTS,420.85,0,Foster Carers
04/11/2019,"Adults & Health Commissioning, Health & Social Care",Hestia Housing And Support,DIRECT PAYMENTS,420.85,0,Foster Carers
04/11/2019,"Adults & Health Commissioning, Health & Social Care",Hestia Housing And Support,DIRECT PAYMENTS,420.85,0,Foster Carers
04/11/2019,"Adults & Health Commissioning, Health & Social Care",Hestia Housing And Support,DIRECT PAYMENTS,420.85,0,Foster Carers
04/11/2019,"Adults & Health Commissioning, Health & Social Care",Hestia Housing And Support,DIRECT PAYMENTS,289.68,0,Foster Carers
04/11/2019,"Adults & Health Commissioning, Health & Social Care",Hestia Housing And Support,DIRECT PAYMENTS,464.84,0,Foster Carers
04/11/2019,"Adults & Health Commissioning, Health & Social Care",Hestia Housing And Support,DIRECT PAYMENTS,512.85,0,Foster Carers
04/11/2019,"Adults & Health Commissioning, Health & Social Care",Hestia Housing And Support,DIRECT PAYMENTS,512.85,0,Foster Carers
04/11/2019,"Adults & Health Commissioning, Health & Social Care",Hestia Housing And Support,DIRECT PAYMENTS,512.85,0,Foster Carers
04/11/2019,"Adults & Health Commissioning, Health & Social Care",Hestia Housing And Support,DIRECT PAYMENTS,354.53,0,Foster Carers
04/11/2019,"Adults & Health Commissioning, Health & Social Care",Hestia Housing And Support,DIRECT PAYMENTS,432.35,0,Foster Carers
04/11/2019,"Adults & Health Commissioning, Health & Social Care",Hestia Housing And Support,DIRECT PAYMENTS,403.95,0,Foster Carers
04/11/2019,"Adults & Health Commissioning, Health & Social Care",Hestia Housing And Support,DIRECT PAYMENTS,326.65,0,Foster Carers
04/11/2019,"Adults & Health Commissioning, Health & Social Care",Hestia Housing And Support,DIRECT PAYMENTS,326.65,0,Foster Carers
04/11/2019,"Adults & Health Commissioning, Health & Social Care",Hestia Housing And Support,DIRECT PAYMENTS,326.65,0,Foster Carers
04/11/2019,"Adults & Health Commissioning, Health & Social Care",Hestia Housing And Support,DIRECT PAYMENTS,326.65,0,Foster Carers
04/11/2019,"Adults & Health Commissioning, Health & Social Care",Hestia Housing And Support,DIRECT PAYMENTS,257.53,0,Foster Carers
04/11/2019,"Adults & Health Commissioning, Health & Social Care",Hestia Housing And Support,DIRECT PAYMENTS,257.53,0,Foster Carers
04/11/2019,"Adults & Health Commissioning, Health & Social Care",Hestia Housing And Support,DIRECT PAYMENTS,257.53,0,Foster Carers
04/11/2019,"Adults & Health Commissioning, Health & Social Care",Hestia Housing And Support,DIRECT PAYMENTS,257.53,0,Foster Carers
04/11/2019,"Adults & Health Commissioning, Health & Social Care",Hestia Housing And Support,DIRECT PAYMENTS,308.66,0,Foster Carers
04/11/2019,"Adults & Health Commissioning, Health & Social Care",Hestia Housing And Support,DIRECT PAYMENTS,308.66,0,Foster Carers
04/11/2019,"Adults & Health Commissioning, Health & Social Care",Hestia Housing And Support,DIRECT PAYMENTS,308.66,0,Foster Carers
04/11/2019,"Adults & Health Commissioning, Health & Social Care",Hestia Housing And Support,DIRECT PAYMENTS,279.85,0,Foster Carers
04/11/2019,"Adults & Health Commissioning, Health & Social Care",Hestia Housing And Support,DIRECT PAYMENTS,403.95,0,Foster Carers
04/11/2019,"Adults & Health Commissioning, Health & Social Care",Hestia Housing And Support,DIRECT PAYMENTS,284.83,0,Foster Carers
04/11/2019,"Adults & Health Commissioning, Health & Social Care",Hestia Housing And Support,DIRECT PAYMENTS,403.95,0,Foster Carers
04/11/2019,"Adults & Health Commissioning, Health & Social Care",Hestia Housing And Support,DIRECT PAYMENTS,403.95,0,Foster Carers
04/11/2019,"Adults & Health Commissioning, Health & Social Care",Hestia Housing And Support,DIRECT PAYMENTS,306.93,0,Foster Carers
04/11/2019,"Adults & Health Commissioning, Health & Social Care",Hestia Housing And Support,DIRECT PAYMENTS,306.93,0,Foster Carers
04/11/2019,"Adults & Health Commissioning, Health & Social Care",Hestia Housing And Support,DIRECT PAYMENTS,442.10,0,Foster Carers
04/11/2019,"Adults & Health Commissioning, Health & Social Care",Hestia Housing And Support,DIRECT PAYMENTS,442.10,0,Foster Carers
04/11/2019,"Adults & Health Commissioning, Health & Social Care",Hestia Housing And Support,DIRECT PAYMENTS,332.45,0,Foster Carers
04/11/2019,"Adults & Health Commissioning, Health & Social Care",Hestia Housing And Support,DIRECT PAYMENTS,332.45,0,Foster Carers
04/11/2019,"Adults & Health Commissioning, Health & Social Care",Hestia Housing And Support,DIRECT PAYMENTS,332.45,0,Foster Carers
04/11/2019,"Adults & Health Commissioning, Health & Social Care",Hestia Housing And Support,DIRECT PAYMENTS,332.45,0,Foster Carers
04/11/2019,"Adults & Health Commissioning, Health & Social Care",Hestia Housing And Support,DIRECT PAYMENTS,442.10,0,Foster Carers
04/11/2019,"Adults & Health Commissioning, Health & Social Care",Hestia Housing And Support,DIRECT PAYMENTS,308.66,0,Foster Carers
04/11/2019,"Adults & Health Commissioning, Health & Social Care",Hestia Housing And Support,DIRECT PAYMENTS,446.35,0,Foster Carers
04/11/2019,"Adults & Health Commissioning, Health & Social Care",Hestia Housing And Support,DIRECT PAYMENTS,354.53,0,Foster Carers
04/11/2019,"Adults & Health Commissioning, Health & Social Care",Hestia Housing And Support,DIRECT PAYMENTS,354.53,0,Foster Carers
04/11/2019,"Adults & Health Commissioning, Health & Social Care",Hestia Housing And Support,DIRECT PAYMENTS,354.53,0,Foster Carers
04/11/2019,"Adults & Health Commissioning, Health & Social Care",Hestia Housing And Support,DIRECT PAYMENTS,334.32,0,Foster Carers
04/11/2019,"Adults & Health Commissioning, Health & Social Care",Hestia Housing And Support,DIRECT PAYMENTS,334.32,0,Foster Carers
04/11/2019,"Adults & Health Commissioning, Health & Social Care",Hestia Housing And Support,DIRECT PAYMENTS,334.32,0,Foster Carers
04/11/2019,"Adults & Health Commissioning, Health & Social Care",Hestia Housing And Support,DIRECT PAYMENTS,289.68,0,Foster Carers
04/11/2019,"Adults & Health Commissioning, Health & Social Care",Hestia Housing And Support,DIRECT PAYMENTS,334.32,0,Foster Carers
04/11/2019,"Adults & Health Commissioning, Health & Social Care",Hestia Housing And Support,DIRECT PAYMENTS,289.68,0,Foster Carers
04/11/2019,"Adults & Health Commissioning, Health & Social Care",Hestia Housing And Support,DIRECT PAYMENTS,500.07,0,Foster Carers
04/11/2019,"Adults & Health Commissioning, Health & Social Care",Hestia Housing And Support,DIRECT PAYMENTS,500.07,0,Foster Carers
04/11/2019,"Adults & Health Commissioning, Health & Social Care",Hestia Housing And Support,DIRECT PAYMENTS,284.83,0,Foster Carers
04/11/2019,"Adults & Health Commissioning, Health & Social Care",Hestia Housing And Support,DIRECT PAYMENTS,289.68,0,Foster Carers
04/11/2019,"Adults & Health Commissioning, Health & Social Care",Hestia Housing And Support,DIRECT PAYMENTS,381.72,0,Foster Carers
04/11/2019,"Adults & Health Commissioning, Health & Social Care",Hestia Housing And Support,DIRECT PAYMENTS,446.35,0,Foster Carers
04/11/2019,"Adults & Health Commissioning, Health & Social Care",Hestia Housing And Support,DIRECT PAYMENTS,446.35,0,Foster Carers
04/11/2019,"Adults & Health Commissioning, Health & Social Care",Hestia Housing And Support,DIRECT PAYMENTS,446.35,0,Foster Carers
04/11/2019,"Adults & Health Commissioning, Health & Social Care",Hestia Housing And Support,DIRECT PAYMENTS,306.93,0,Foster Carers
04/11/2019,"Adults & Health Commissioning, Health & Social Care",Hestia Housing And Support,DIRECT PAYMENTS,306.93,0,Foster Carers
04/11/2019,"Adults & Health Commissioning, Health & Social Care",Hestia Housing And Support,DIRECT PAYMENTS,500.07,0,Foster Carers
04/11/2019,"Adults & Health Commissioning, Health & Social Care",Hestia Housing And Support,DIRECT PAYMENTS,381.72,0,Foster Carers
04/11/2019,"Adults & Health Commissioning, Health & Social Care",Hestia Housing And Support,DIRECT PAYMENTS,284.83,0,Foster Carers
04/11/2019,"Adults & Health Commissioning, Health & Social Care",Hestia Housing And Support,DIRECT PAYMENTS,381.72,0,Foster Carers
04/11/2019,"Adults & Health Commissioning, Health & Social Care",Hestia Housing And Support,DIRECT PAYMENTS,284.83,0,Foster Carers
04/11/2019,"Adults & Health Commissioning, Health & Social Care",Hestia Housing And Support,DIRECT PAYMENTS,381.72,0,Foster Carers
04/11/2019,"Adults & Health Commissioning, Health & Social Care",Hestia Housing And Support,DIRECT PAYMENTS,"1,252.91",0,Foster Carers
04/11/2019,"Adults & Health Commissioning, Health & Social Care",Hestia Housing And Support,DIRECT PAYMENTS,500.07,0,Foster Carers
04/11/2019,"Adults & Health Commissioning, Health & Social Care",Hestia Housing And Support,DIRECT PAYMENTS,586.53,0,Foster Carers
04/11/2019,"Adults & Health Commissioning, Health & Social Care",Hestia Housing And Support,DIRECT PAYMENTS,476.45,0,Foster Carers
04/11/2019,"Adults & Health Commissioning, Health & Social Care",Hestia Housing And Support,DIRECT PAYMENTS,476.45,0,Foster Carers
04/11/2019,"Adults & Health Commissioning, Health & Social Care",Hestia Housing And Support,DIRECT PAYMENTS,476.45,0,Foster Carers
04/11/2019,"Adults & Health Commissioning, Health & Social Care",Hestia Housing And Support,DIRECT PAYMENTS,586.53,0,Foster Carers
04/11/2019,"Adults & Health Commissioning, Health & Social Care",Hestia Housing And Support,DIRECT PAYMENTS,476.45,0,Foster Carers
04/11/2019,"Adults & Health Commissioning, Health & Social Care",Hestia Housing And Support,DIRECT PAYMENTS,586.53,0,Foster Carers
04/11/2019,"Adults & Health Commissioning, Health & Social Care",Hestia Housing And Support,DIRECT PAYMENTS,"2,219.94",0,Foster Carers
04/11/2019,"Adults & Health Commissioning, Health & Social Care",Hestia Housing And Support,DIRECT PAYMENTS,586.53,0,Foster Carers
04/11/2019,"Adults & Health Commissioning, Health & Social Care",Hestia Housing And Support,DIRECT PAYMENTS,586.53,0,Foster Carers
04/11/2019,"Adults & Health Commissioning, Health & Social Care",Hestia Housing And Support,DIRECT PAYMENTS,586.53,0,Foster Carers
04/11/2019,"Adults & Health Commissioning, Health & Social Care",Hestia Housing And Support,DIRECT PAYMENTS,586.53,0,Foster Carers
04/11/2019,"Adults & Health Commissioning, Health & Social Care",Hestia Housing And Support,DIRECT PAYMENTS,511.25,0,Foster Carers
04/11/2019,"Adults & Health Commissioning, Health & Social Care",Hestia Housing And Support,DIRECT PAYMENTS,559.39,0,Foster Carers
04/11/2019,"Adults & Health Commissioning, Health & Social Care",Hestia Housing And Support,DIRECT PAYMENTS,561.63,0,Foster Carers
04/11/2019,"Adults & Health Commissioning, Health & Social Care",Hestia Housing And Support,DIRECT PAYMENTS,586.53,0,Foster Carers
04/11/2019,"Adults & Health Commissioning, Health & Social Care",Hestia Housing And Support,DIRECT PAYMENTS,586.53,0,Foster Carers
04/11/2019,"Adults & Health Commissioning, Health & Social Care",Hestia Housing And Support,DIRECT PAYMENTS,586.53,0,Foster Carers
04/11/2019,"Adults & Health Commissioning, Health & Social Care",Hestia Housing And Support,DIRECT PAYMENTS,272.32,0,Foster Carers
04/11/2019,"Adults & Health Commissioning, Health & Social Care",Hestia Housing And Support,DIRECT PAYMENTS,377.26,0,Foster Carers
04/11/2019,"Adults & Health Commissioning, Health & Social Care",Hestia Housing And Support,DIRECT PAYMENTS,542.33,0,Foster Carers
04/11/2019,"Adults & Health Commissioning, Health & Social Care",Hestia Housing And Support,DIRECT PAYMENTS,278.44,0,Foster Carers
04/11/2019,"Adults & Health Commissioning, Health & Social Care",Hestia Housing And Support,DIRECT PAYMENTS,278.44,0,Foster Carers
04/11/2019,"Adults & Health Commissioning, Health & Social Care",Hestia Housing And Support,DIRECT PAYMENTS,542.33,0,Foster Carers
04/11/2019,"Adults & Health Commissioning, Health & Social Care",Hestia Housing And Support,DIRECT PAYMENTS,278.44,0,Foster Carers
04/11/2019,"Adults & Health Commissioning, Health & Social Care",Hestia Housing And Support,DIRECT PAYMENTS,492.07,0,Foster Carers
04/11/2019,"Adults & Health Commissioning, Health & Social Care",Hestia Housing And Support,DIRECT PAYMENTS,559.39,0,Foster Carers
04/11/2019,"Adults & Health Commissioning, Health & Social Care",Hestia Housing And Support,DIRECT PAYMENTS,559.39,0,Foster Carers
04/11/2019,"Adults & Health Commissioning, Health & Social Care",Hestia Housing And Support,DIRECT PAYMENTS,258.16,0,Foster Carers
04/11/2019,"Adults & Health Commissioning, Health & Social Care",Hestia Housing And Support,DIRECT PAYMENTS,442.10,0,Foster Carers
04/11/2019,"Adults & Health Commissioning, Health & Social Care",Hestia Housing And Support,DIRECT PAYMENTS,571.08,0,Foster Carers
04/11/2019,"Adults & Health Commissioning, Health & Social Care",Hestia Housing And Support,DIRECT PAYMENTS,571.08,0,Foster Carers
04/11/2019,"Adults & Health Commissioning, Health & Social Care",Hestia Housing And Support,DIRECT PAYMENTS,571.08,0,Foster Carers
04/11/2019,"Adults & Health Commissioning, Health & Social Care",Hestia Housing And Support,DIRECT PAYMENTS,970.95,0,Foster Carers
04/11/2019,"Adults & Health Commissioning, Health & Social Care",Hestia Housing And Support,DIRECT PAYMENTS,970.95,0,Foster Carers
04/11/2019,"Adults & Health Commissioning, Health & Social Care",Hestia Housing And Support,DIRECT PAYMENTS,970.95,0,Foster Carers
04/11/2019,"Adults & Health Commissioning, Health & Social Care",Hestia Housing And Support,DIRECT PAYMENTS,561.63,0,Foster Carers
04/11/2019,"Adults & Health Commissioning, Health & Social Care",Hestia Housing And Support,DIRECT PAYMENTS,970.95,0,Foster Carers
04/11/2019,"Adults & Health Commissioning, Health & Social Care",Hestia Housing And Support,DIRECT PAYMENTS,377.26,0,Foster Carers
04/11/2019,"Adults & Health Commissioning, Health & Social Care",Hestia Housing And Support,DIRECT PAYMENTS,481.40,0,Foster Carers
04/11/2019,"Adults & Health Commissioning, Health & Social Care",Hestia Housing And Support,DIRECT PAYMENTS,377.26,0,Foster Carers
04/11/2019,"Adults & Health Commissioning, Health & Social Care",Hestia Housing And Support,DIRECT PAYMENTS,561.63,0,Foster Carers
04/11/2019,"Adults & Health Commissioning, Health & Social Care",Hestia Housing And Support,DIRECT PAYMENTS,377.26,0,Foster Carers
04/11/2019,"Adults & Health Commissioning, Health & Social Care",Hestia Housing And Support,DIRECT PAYMENTS,586.53,0,Foster Carers
04/11/2019,"Adults & Health Commissioning, Health & Social Care",Hestia Housing And Support,DIRECT PAYMENTS,586.53,0,Foster Carers
04/11/2019,"Adults & Health Commissioning, Health & Social Care",Hestia Housing And Support,DIRECT PAYMENTS,586.53,0,Foster Carers
04/11/2019,"Adults & Health Commissioning, Health & Social Care",Hestia Housing And Support,DIRECT PAYMENTS,561.63,0,Foster Carers
04/11/2019,"Adults & Health Commissioning, Health & Social Care",Hestia Housing And Support,DIRECT PAYMENTS,561.63,0,Foster Carers
04/11/2019,"Adults & Health Commissioning, Health & Social Care",Hestia Housing And Support,DIRECT PAYMENTS,561.63,0,Foster Carers
04/11/2019,"Adults & Health Commissioning, Health & Social Care",Hestia Housing And Support,DIRECT PAYMENTS,561.63,0,Foster Carers
04/11/2019,"Adults & Health Commissioning, Health & Social Care",Hestia Housing And Support,DIRECT PAYMENTS,561.63,0,Foster Carers
04/11/2019,"Adults & Health Commissioning, Health & Social Care",Hestia Housing And Support,DIRECT PAYMENTS,561.63,0,Foster Carers
04/11/2019,"Adults & Health Commissioning, Health & Social Care",Hestia Housing And Support,DIRECT PAYMENTS,561.63,0,Foster Carers
04/11/2019,"Adults & Health Commissioning, Health & Social Care",Hestia Housing And Support,DIRECT PAYMENTS,511.25,0,Foster Carers
04/11/2019,"Adults & Health Commissioning, Health & Social Care",Hestia Housing And Support,DIRECT PAYMENTS,559.39,0,Foster Carers
04/11/2019,"Adults & Health Commissioning, Health & Social Care",Hestia Housing And Support,DIRECT PAYMENTS,333.40,0,Foster Carers
04/11/2019,"Adults & Health Commissioning, Health & Social Care",Hestia Housing And Support,DIRECT PAYMENTS,326.35,0,Foster Carers
04/11/2019,"Adults & Health Commissioning, Health & Social Care",Hestia Housing And Support,DIRECT PAYMENTS,326.35,0,Foster Carers
04/11/2019,"Adults & Health Commissioning, Health & Social Care",Hestia Housing And Support,DIRECT PAYMENTS,353.43,0,Foster Carers
04/11/2019,"Adults & Health Commissioning, Health & Social Care",Hestia Housing And Support,DIRECT PAYMENTS,353.43,0,Foster Carers
04/11/2019,"Adults & Health Commissioning, Health & Social Care",Hestia Housing And Support,DIRECT PAYMENTS,353.43,0,Foster Carers
04/11/2019,"Adults & Health Commissioning, Health & Social Care",Hestia Housing And Support,DIRECT PAYMENTS,353.43,0,Foster Carers
04/11/2019,"Adults & Health Commissioning, Health & Social Care",Hestia Housing And Support,DIRECT PAYMENTS,251.51,0,Foster Carers
04/11/2019,"Adults & Health Commissioning, Health & Social Care",Hestia Housing And Support,DIRECT PAYMENTS,251.51,0,Foster Carers
04/11/2019,"Adults & Health Commissioning, Health & Social Care",Hestia Housing And Support,DIRECT PAYMENTS,251.51,0,Foster Carers
04/11/2019,"Adults & Health Commissioning, Health & Social Care",Hestia Housing And Support,DIRECT PAYMENTS,251.51,0,Foster Carers
04/11/2019,"Adults & Health Commissioning, Health & Social Care",Hestia Housing And Support,DIRECT PAYMENTS,492.07,0,Foster Carers
04/11/2019,"Adults & Health Commissioning, Health & Social Care",Hestia Housing And Support,DIRECT PAYMENTS,278.44,0,Foster Carers
04/11/2019,"Adults & Health Commissioning, Health & Social Care",Hestia Housing And Support,DIRECT PAYMENTS,333.40,0,Foster Carers
04/11/2019,"Adults & Health Commissioning, Health & Social Care",Hestia Housing And Support,DIRECT PAYMENTS,581.19,0,Foster Carers
04/11/2019,"Adults & Health Commissioning, Health & Social Care",Hestia Housing And Support,DIRECT PAYMENTS,333.40,0,Foster Carers
04/11/2019,"Adults & Health Commissioning, Health & Social Care",Hestia Housing And Support,DIRECT PAYMENTS,333.40,0,Foster Carers
04/11/2019,"Adults & Health Commissioning, Health & Social Care",Hestia Housing And Support,DIRECT PAYMENTS,386.09,0,Foster Carers
04/11/2019,"Adults & Health Commissioning, Health & Social Care",Hestia Housing And Support,DIRECT PAYMENTS,492.07,0,Foster Carers
04/11/2019,"Adults & Health Commissioning, Health & Social Care",Hestia Housing And Support,DIRECT PAYMENTS,386.09,0,Foster Carers
04/11/2019,"Adults & Health Commissioning, Health & Social Care",Hestia Housing And Support,DIRECT PAYMENTS,386.09,0,Foster Carers
04/11/2019,"Adults & Health Commissioning, Health & Social Care",Hestia Housing And Support,DIRECT PAYMENTS,386.09,0,Foster Carers
04/11/2019,"Adults & Health Commissioning, Health & Social Care",Hestia Housing And Support,DIRECT PAYMENTS,464.84,0,Foster Carers
04/11/2019,"Adults & Health Commissioning, Health & Social Care",Hestia Housing And Support,DIRECT PAYMENTS,"1,252.91",0,Foster Carers
04/11/2019,"Adults & Health Commissioning, Health & Social Care",Hestia Housing And Support,DIRECT PAYMENTS,464.84,0,Foster Carers
04/11/2019,"Adults & Health Commissioning, Health & Social Care",Hestia Housing And Support,DIRECT PAYMENTS,"1,252.91",0,Foster Carers
04/11/2019,"Adults & Health Commissioning, Health & Social Care",Hestia Housing And Support,DIRECT PAYMENTS,581.19,0,Foster Carers
04/11/2019,"Adults & Health Commissioning, Health & Social Care",Hestia Housing And Support,DIRECT PAYMENTS,534.85,0,Foster Carers
04/11/2019,"Adults & Health Commissioning, Health & Social Care",Hestia Housing And Support,DIRECT PAYMENTS,511.25,0,Foster Carers
04/11/2019,"Adults & Health Commissioning, Health & Social Care",Hestia Housing And Support,DIRECT PAYMENTS,542.33,0,Foster Carers
04/11/2019,"Adults & Health Commissioning, Health & Social Care",Hestia Housing And Support,DIRECT PAYMENTS,542.33,0,Foster Carers
04/11/2019,"Adults & Health Commissioning, Health & Social Care",Hestia Housing And Support,DIRECT PAYMENTS,511.25,0,Foster Carers
04/11/2019,"Adults & Health Commissioning, Health & Social Care",Hestia Housing And Support,DIRECT PAYMENTS,272.32,0,Foster Carers
04/11/2019,"Adults & Health Commissioning, Health & Social Care",Hestia Housing And Support,DIRECT PAYMENTS,272.32,0,Foster Carers
04/11/2019,"Adults & Health Commissioning, Health & Social Care",Hestia Housing And Support,DIRECT PAYMENTS,272.32,0,Foster Carers
04/11/2019,"Adults & Health Commissioning, Health & Social Care",Hestia Housing And Support,DIRECT PAYMENTS,346.29,0,Foster Carers
04/11/2019,"Adults & Health Commissioning, Health & Social Care",Hestia Housing And Support,DIRECT PAYMENTS,346.29,0,Foster Carers
04/11/2019,"Adults & Health Commissioning, Health & Social Care",Hestia Housing And Support,DIRECT PAYMENTS,346.29,0,Foster Carers
04/11/2019,"Adults & Health Commissioning, Health & Social Care",Hestia Housing And Support,DIRECT PAYMENTS,346.29,0,Foster Carers
04/11/2019,"Adults & Health Commissioning, Health & Social Care",Hestia Housing And Support,DIRECT PAYMENTS,326.35,0,Foster Carers
04/11/2019,"Adults & Health Commissioning, Health & Social Care",Hestia Housing And Support,DIRECT PAYMENTS,534.85,0,Foster Carers
04/11/2019,"Adults & Health Commissioning, Health & Social Care",Hestia Housing And Support,DIRECT PAYMENTS,281.71,0,Foster Carers
04/11/2019,"Adults & Health Commissioning, Health & Social Care",Hestia Housing And Support,DIRECT PAYMENTS,534.85,0,Foster Carers
04/11/2019,"Adults & Health Commissioning, Health & Social Care",Hestia Housing And Support,DIRECT PAYMENTS,534.85,0,Foster Carers
04/11/2019,"Adults & Health Commissioning, Health & Social Care",Hestia Housing And Support,DIRECT PAYMENTS,293.52,0,Foster Carers
04/11/2019,"Adults & Health Commissioning, Health & Social Care",Hestia Housing And Support,DIRECT PAYMENTS,293.52,0,Foster Carers
04/11/2019,"Adults & Health Commissioning, Health & Social Care",Hestia Housing And Support,DIRECT PAYMENTS,293.52,0,Foster Carers
04/11/2019,"Adults & Health Commissioning, Health & Social Care",Hestia Housing And Support,DIRECT PAYMENTS,293.52,0,Foster Carers
04/11/2019,"Adults & Health Commissioning, Health & Social Care",Hestia Housing And Support,DIRECT PAYMENTS,281.71,0,Foster Carers
04/11/2019,"Adults & Health Commissioning, Health & Social Care",Hestia Housing And Support,DIRECT PAYMENTS,581.19,0,Foster Carers
04/11/2019,"Adults & Health Commissioning, Health & Social Care",Hestia Housing And Support,DIRECT PAYMENTS,281.71,0,Foster Carers
04/11/2019,"Adults & Health Commissioning, Health & Social Care",Hestia Housing And Support,DIRECT PAYMENTS,281.71,0,Foster Carers
04/11/2019,"Adults & Health Commissioning, Health & Social Care",Hestia Housing And Support,DIRECT PAYMENTS,581.19,0,Foster Carers
04/11/2019,"Adults & Health Commissioning, Health & Social Care",Hestia Housing And Support,DIRECT PAYMENTS,258.16,0,Foster Carers
04/11/2019,"Adults & Health Commissioning, Health & Social Care",Hestia Housing And Support,DIRECT PAYMENTS,326.35,0,Foster Carers
04/11/2019,"Adults & Health Commissioning, Health & Social Care",Hestia Housing And Support,DIRECT PAYMENTS,333.74,0,Foster Carers
04/11/2019,"Adults & Health Commissioning, Health & Social Care",Hestia Housing And Support,DIRECT PAYMENTS,466.19,0,Foster Carers
04/11/2019,"Adults & Health Commissioning, Health & Social Care",Hestia Housing And Support,DIRECT PAYMENTS,466.19,0,Foster Carers
04/11/2019,"Adults & Health Commissioning, Health & Social Care",Hestia Housing And Support,DIRECT PAYMENTS,466.19,0,Foster Carers
04/11/2019,"Adults & Health Commissioning, Health & Social Care",Hestia Housing And Support,DIRECT PAYMENTS,626.40,0,Foster Carers
04/11/2019,"Adults & Health Commissioning, Health & Social Care",Hestia Housing And Support,DIRECT PAYMENTS,626.40,0,Foster Carers
04/11/2019,"Adults & Health Commissioning, Health & Social Care",Hestia Housing And Support,DIRECT PAYMENTS,626.40,0,Foster Carers
04/11/2019,"Adults & Health Commissioning, Health & Social Care",Hestia Housing And Support,DIRECT PAYMENTS,626.40,0,Foster Carers
04/11/2019,"Adults & Health Commissioning, Health & Social Care",Hestia Housing And Support,DIRECT PAYMENTS,280.85,0,Foster Carers
04/11/2019,"Adults & Health Commissioning, Health & Social Care",Hestia Housing And Support,DIRECT PAYMENTS,280.85,0,Foster Carers
04/11/2019,"Adults & Health Commissioning, Health & Social Care",Hestia Housing And Support,DIRECT PAYMENTS,280.85,0,Foster Carers
04/11/2019,"Adults & Health Commissioning, Health & Social Care",Hestia Housing And Support,DIRECT PAYMENTS,280.85,0,Foster Carers
04/11/2019,"Adults & Health Commissioning, Health & Social Care",Hestia Housing And Support,DIRECT PAYMENTS,333.74,0,Foster Carers
04/11/2019,"Adults & Health Commissioning, Health & Social Care",Hestia Housing And Support,DIRECT PAYMENTS,346.04,0,Foster Carers
04/11/2019,"Adults & Health Commissioning, Health & Social Care",Hestia Housing And Support,DIRECT PAYMENTS,333.74,0,Foster Carers
04/11/2019,"Adults & Health Commissioning, Health & Social Care",Hestia Housing And Support,DIRECT PAYMENTS,474.05,0,Foster Carers
04/11/2019,"Adults & Health Commissioning, Health & Social Care",Hestia Housing And Support,DIRECT PAYMENTS,329.15,0,Foster Carers
04/11/2019,"Adults & Health Commissioning, Health & Social Care",Hestia Housing And Support,DIRECT PAYMENTS,329.15,0,Foster Carers
04/11/2019,"Adults & Health Commissioning, Health & Social Care",Hestia Housing And Support,DIRECT PAYMENTS,329.15,0,Foster Carers
04/11/2019,"Adults & Health Commissioning, Health & Social Care",Hestia Housing And Support,DIRECT PAYMENTS,329.15,0,Foster Carers
04/11/2019,"Adults & Health Commissioning, Health & Social Care",Hestia Housing And Support,DIRECT PAYMENTS,254.23,0,Foster Carers
04/11/2019,"Adults & Health Commissioning, Health & Social Care",Hestia Housing And Support,DIRECT PAYMENTS,254.23,0,Foster Carers
04/11/2019,"Adults & Health Commissioning, Health & Social Care",Hestia Housing And Support,DIRECT PAYMENTS,254.23,0,Foster Carers
04/11/2019,"Adults & Health Commissioning, Health & Social Care",Hestia Housing And Support,DIRECT PAYMENTS,254.23,0,Foster Carers
04/11/2019,"Adults & Health Commissioning, Health & Social Care",Hestia Housing And Support,DIRECT PAYMENTS,346.04,0,Foster Carers
04/11/2019,"Adults & Health Commissioning, Health & Social Care",Hestia Housing And Support,DIRECT PAYMENTS,533.16,0,Foster Carers
04/11/2019,"Adults & Health Commissioning, Health & Social Care",Hestia Housing And Support,DIRECT PAYMENTS,346.04,0,Foster Carers
04/11/2019,"Adults & Health Commissioning, Health & Social Care",Hestia Housing And Support,DIRECT PAYMENTS,756.15,0,Foster Carers
04/11/2019,"Adults & Health Commissioning, Health & Social Care",Hestia Housing And Support,DIRECT PAYMENTS,333.74,0,Foster Carers
04/11/2019,"Adults & Health Commissioning, Health & Social Care",Hestia Housing And Support,DIRECT PAYMENTS,908.75,0,Foster Carers
04/11/2019,"Adults & Health Commissioning, Health & Social Care",Hestia Housing And Support,DIRECT PAYMENTS,855.90,0,Foster Carers
04/11/2019,"Adults & Health Commissioning, Health & Social Care",Hestia Housing And Support,DIRECT PAYMENTS,357.66,0,Foster Carers
04/11/2019,"Adults & Health Commissioning, Health & Social Care",Hestia Housing And Support,DIRECT PAYMENTS,"1,127.22",0,Foster Carers
04/11/2019,"Adults & Health Commissioning, Health & Social Care",Hestia Housing And Support,DIRECT PAYMENTS,357.66,0,Foster Carers
04/11/2019,"Adults & Health Commissioning, Health & Social Care",Hestia Housing And Support,DIRECT PAYMENTS,357.66,0,Foster Carers
04/11/2019,"Adults & Health Commissioning, Health & Social Care",Hestia Housing And Support,DIRECT PAYMENTS,357.66,0,Foster Carers
04/11/2019,"Adults & Health Commissioning, Health & Social Care",Hestia Housing And Support,DIRECT PAYMENTS,275.49,0,Foster Carers
04/11/2019,"Adults & Health Commissioning, Health & Social Care",Hestia Housing And Support,DIRECT PAYMENTS,275.49,0,Foster Carers
04/11/2019,"Adults & Health Commissioning, Health & Social Care",Hestia Housing And Support,DIRECT PAYMENTS,275.49,0,Foster Carers
04/11/2019,"Adults & Health Commissioning, Health & Social Care",Hestia Housing And Support,DIRECT PAYMENTS,275.49,0,Foster Carers
04/11/2019,"Adults & Health Commissioning, Health & Social Care",Hestia Housing And Support,DIRECT PAYMENTS,908.75,0,Foster Carers
04/11/2019,"Adults & Health Commissioning, Health & Social Care",Hestia Housing And Support,DIRECT PAYMENTS,698.78,0,Foster Carers
04/11/2019,"Adults & Health Commissioning, Health & Social Care",Hestia Housing And Support,DIRECT PAYMENTS,365.15,0,Foster Carers
04/11/2019,"Adults & Health Commissioning, Health & Social Care",Hestia Housing And Support,DIRECT PAYMENTS,908.75,0,Foster Carers
04/11/2019,"Adults & Health Commissioning, Health & Social Care",Hestia Housing And Support,DIRECT PAYMENTS,466.19,0,Foster Carers
04/11/2019,"Adults & Health Commissioning, Health & Social Care",Hestia Housing And Support,DIRECT PAYMENTS,487.15,0,Foster Carers
04/11/2019,"Adults & Health Commissioning, Health & Social Care",Hestia Housing And Support,DIRECT PAYMENTS,487.15,0,Foster Carers
04/11/2019,"Adults & Health Commissioning, Health & Social Care",Hestia Housing And Support,DIRECT PAYMENTS,487.15,0,Foster Carers
04/11/2019,"Adults & Health Commissioning, Health & Social Care",Hestia Housing And Support,DIRECT PAYMENTS,487.15,0,Foster Carers
04/11/2019,"Adults & Health Commissioning, Health & Social Care",Hestia Housing And Support,DIRECT PAYMENTS,908.75,0,Foster Carers
04/11/2019,"Adults & Health Commissioning, Health & Social Care",Hestia Housing And Support,DIRECT PAYMENTS,442.35,0,Foster Carers
04/11/2019,"Adults & Health Commissioning, Health & Social Care",Hestia Housing And Support,DIRECT PAYMENTS,474.05,0,Foster Carers
04/11/2019,"Adults & Health Commissioning, Health & Social Care",Hestia Housing And Support,DIRECT PAYMENTS,442.35,0,Foster Carers
04/11/2019,"Adults & Health Commissioning, Health & Social Care",Hestia Housing And Support,DIRECT PAYMENTS,474.05,0,Foster Carers
04/11/2019,"Adults & Health Commissioning, Health & Social Care",Hestia Housing And Support,DIRECT PAYMENTS,442.35,0,Foster Carers
04/11/2019,"Adults & Health Commissioning, Health & Social Care",Hestia Housing And Support,DIRECT PAYMENTS,474.05,0,Foster Carers
04/11/2019,"Adults & Health Commissioning, Health & Social Care",Hestia Housing And Support,DIRECT PAYMENTS,442.35,0,Foster Carers
04/11/2019,"Adults & Health Commissioning, Health & Social Care",Hestia Housing And Support,DIRECT PAYMENTS,272.60,0,Foster Carers
04/11/2019,"Adults & Health Commissioning, Health & Social Care",Hestia Housing And Support,DIRECT PAYMENTS,474.60,0,Foster Carers
04/11/2019,"Adults & Health Commissioning, Health & Social Care",Hestia Housing And Support,DIRECT PAYMENTS,299.40,0,Foster Carers
04/11/2019,"Adults & Health Commissioning, Health & Social Care",Hestia Housing And Support,DIRECT PAYMENTS,429.18,0,Foster Carers
04/11/2019,"Adults & Health Commissioning, Health & Social Care",Hestia Housing And Support,DIRECT PAYMENTS,429.18,0,Foster Carers
04/11/2019,"Adults & Health Commissioning, Health & Social Care",Hestia Housing And Support,DIRECT PAYMENTS,429.18,0,Foster Carers
04/11/2019,"Adults & Health Commissioning, Health & Social Care",Hestia Housing And Support,DIRECT PAYMENTS,429.18,0,Foster Carers
04/11/2019,"Adults & Health Commissioning, Health & Social Care",Hestia Housing And Support,DIRECT PAYMENTS,259.85,0,Foster Carers
04/11/2019,"Adults & Health Commissioning, Health & Social Care",Hestia Housing And Support,DIRECT PAYMENTS,259.85,0,Foster Carers
04/11/2019,"Adults & Health Commissioning, Health & Social Care",Hestia Housing And Support,DIRECT PAYMENTS,259.85,0,Foster Carers
04/11/2019,"Adults & Health Commissioning, Health & Social Care",Hestia Housing And Support,DIRECT PAYMENTS,259.85,0,Foster Carers
04/11/2019,"Adults & Health Commissioning, Health & Social Care",Hestia Housing And Support,DIRECT PAYMENTS,299.40,0,Foster Carers
04/11/2019,"Adults & Health Commissioning, Health & Social Care",Hestia Housing And Support,DIRECT PAYMENTS,299.40,0,Foster Carers
04/11/2019,"Adults & Health Commissioning, Health & Social Care",Hestia Housing And Support,DIRECT PAYMENTS,668.23,0,Foster Carers
04/11/2019,"Adults & Health Commissioning, Health & Social Care",Hestia Housing And Support,DIRECT PAYMENTS,413.61,0,Foster Carers
04/11/2019,"Adults & Health Commissioning, Health & Social Care",Hestia Housing And Support,DIRECT PAYMENTS,346.04,0,Foster Carers
04/11/2019,"Adults & Health Commissioning, Health & Social Care",Hestia Housing And Support,DIRECT PAYMENTS,413.61,0,Foster Carers
04/11/2019,"Adults & Health Commissioning, Health & Social Care",Hestia Housing And Support,DIRECT PAYMENTS,410.87,0,Foster Carers
04/11/2019,"Adults & Health Commissioning, Health & Social Care",Hestia Housing And Support,DIRECT PAYMENTS,299.40,0,Foster Carers
04/11/2019,"Adults & Health Commissioning, Health & Social Care",Hestia Housing And Support,DIRECT PAYMENTS,600.30,0,Foster Carers
04/11/2019,"Adults & Health Commissioning, Health & Social Care",Hestia Housing And Support,DIRECT PAYMENTS,520.03,0,Foster Carers
04/11/2019,"Adults & Health Commissioning, Health & Social Care",Hestia Housing And Support,DIRECT PAYMENTS,273.24,0,Foster Carers
04/11/2019,"Adults & Health Commissioning, Health & Social Care",Hestia Housing And Support,DIRECT PAYMENTS,307.40,0,Foster Carers
04/11/2019,"Adults & Health Commissioning, Health & Social Care",Hestia Housing And Support,DIRECT PAYMENTS,344.51,0,Foster Carers
04/11/2019,"Adults & Health Commissioning, Health & Social Care",Hestia Housing And Support,DIRECT PAYMENTS,829.85,0,Foster Carers
04/11/2019,"Adults & Health Commissioning, Health & Social Care",Hestia Housing And Support,DIRECT PAYMENTS,344.51,0,Foster Carers
04/11/2019,"Adults & Health Commissioning, Health & Social Care",Hestia Housing And Support,DIRECT PAYMENTS,344.51,0,Foster Carers
04/11/2019,"Adults & Health Commissioning, Health & Social Care",Hestia Housing And Support,DIRECT PAYMENTS,668.23,0,Foster Carers
04/11/2019,"Adults & Health Commissioning, Health & Social Care",Hestia Housing And Support,DIRECT PAYMENTS,721.96,0,Foster Carers
04/11/2019,"Adults & Health Commissioning, Health & Social Care",Hestia Housing And Support,DIRECT PAYMENTS,335.87,0,Foster Carers
04/11/2019,"Adults & Health Commissioning, Health & Social Care",Hestia Housing And Support,DIRECT PAYMENTS,"1,219.29",0,Foster Carers
04/11/2019,"Adults & Health Commissioning, Health & Social Care",Hestia Housing And Support,DIRECT PAYMENTS,528.05,0,Foster Carers
04/11/2019,"Adults & Health Commissioning, Health & Social Care",Hestia Housing And Support,DIRECT PAYMENTS,272.60,0,Foster Carers
04/11/2019,"Adults & Health Commissioning, Health & Social Care",Hestia Housing And Support,DIRECT PAYMENTS,272.60,0,Foster Carers
04/11/2019,"Adults & Health Commissioning, Health & Social Care",Hestia Housing And Support,DIRECT PAYMENTS,272.60,0,Foster Carers
04/11/2019,"Adults & Health Commissioning, Health & Social Care",Hestia Housing And Support,DIRECT PAYMENTS,368.81,0,Foster Carers
04/11/2019,"Adults & Health Commissioning, Health & Social Care",Hestia Housing And Support,DIRECT PAYMENTS,368.81,0,Foster Carers
04/11/2019,"Adults & Health Commissioning, Health & Social Care",Hestia Housing And Support,DIRECT PAYMENTS,368.81,0,Foster Carers
04/11/2019,"Adults & Health Commissioning, Health & Social Care",Hestia Housing And Support,DIRECT PAYMENTS,368.81,0,Foster Carers
04/11/2019,"Adults & Health Commissioning, Health & Social Care",Hestia Housing And Support,DIRECT PAYMENTS,307.40,0,Foster Carers
04/11/2019,"Adults & Health Commissioning, Health & Social Care",Hestia Housing And Support,DIRECT PAYMENTS,401.81,0,Foster Carers
04/11/2019,"Adults & Health Commissioning, Health & Social Care",Hestia Housing And Support,DIRECT PAYMENTS,390.40,0,Foster Carers
04/11/2019,"Adults & Health Commissioning, Health & Social Care",Hestia Housing And Support,DIRECT PAYMENTS,390.40,0,Foster Carers
04/11/2019,"Adults & Health Commissioning, Health & Social Care",Hestia Housing And Support,DIRECT PAYMENTS,390.40,0,Foster Carers
04/11/2019,"Adults & Health Commissioning, Health & Social Care",Hestia Housing And Support,DIRECT PAYMENTS,296.92,0,Foster Carers
04/11/2019,"Adults & Health Commissioning, Health & Social Care",Hestia Housing And Support,DIRECT PAYMENTS,528.05,0,Foster Carers
04/11/2019,"Adults & Health Commissioning, Health & Social Care",Hestia Housing And Support,DIRECT PAYMENTS,296.92,0,Foster Carers
04/11/2019,"Adults & Health Commissioning, Health & Social Care",Hestia Housing And Support,DIRECT PAYMENTS,528.05,0,Foster Carers
04/11/2019,"Adults & Health Commissioning, Health & Social Care",Hestia Housing And Support,DIRECT PAYMENTS,528.05,0,Foster Carers
04/11/2019,"Adults & Health Commissioning, Health & Social Care",Hestia Housing And Support,DIRECT PAYMENTS,"1,548.34",0,Foster Carers
04/11/2019,"Adults & Health Commissioning, Health & Social Care",Hestia Housing And Support,DIRECT PAYMENTS,"1,548.34",0,Foster Carers
04/11/2019,"Adults & Health Commissioning, Health & Social Care",Hestia Housing And Support,DIRECT PAYMENTS,"1,548.34",0,Foster Carers
04/11/2019,"Adults & Health Commissioning, Health & Social Care",Hestia Housing And Support,DIRECT PAYMENTS,"1,548.34",0,Foster Carers
04/11/2019,"Adults & Health Commissioning, Health & Social Care",Hestia Housing And Support,DIRECT PAYMENTS,280.16,0,Foster Carers
04/11/2019,"Adults & Health Commissioning, Health & Social Care",Hestia Housing And Support,DIRECT PAYMENTS,280.16,0,Foster Carers
04/11/2019,"Adults & Health Commissioning, Health & Social Care",Hestia Housing And Support,DIRECT PAYMENTS,280.16,0,Foster Carers
04/11/2019,"Adults & Health Commissioning, Health & Social Care",Hestia Housing And Support,DIRECT PAYMENTS,280.16,0,Foster Carers
04/11/2019,"Adults & Health Commissioning, Health & Social Care",Hestia Housing And Support,DIRECT PAYMENTS,296.92,0,Foster Carers
04/11/2019,"Adults & Health Commissioning, Health & Social Care",Hestia Housing And Support,DIRECT PAYMENTS,296.92,0,Foster Carers
04/11/2019,"Adults & Health Commissioning, Health & Social Care",Hestia Housing And Support,DIRECT PAYMENTS,756.15,0,Foster Carers
04/11/2019,"Adults & Health Commissioning, Health & Social Care",Hestia Housing And Support,DIRECT PAYMENTS,390.40,0,Foster Carers
04/11/2019,"Adults & Health Commissioning, Health & Social Care",Hestia Housing And Support,DIRECT PAYMENTS,829.85,0,Foster Carers
04/11/2019,"Adults & Health Commissioning, Health & Social Care",Hestia Housing And Support,DIRECT PAYMENTS,342.85,0,Foster Carers
04/11/2019,"Adults & Health Commissioning, Health & Social Care",Hestia Housing And Support,DIRECT PAYMENTS,708.00,0,Foster Carers
04/11/2019,"Adults & Health Commissioning, Health & Social Care",Hestia Housing And Support,DIRECT PAYMENTS,469.65,0,Foster Carers
04/11/2019,"Adults & Health Commissioning, Health & Social Care",Hestia Housing And Support,DIRECT PAYMENTS,313.53,0,Foster Carers
04/11/2019,"Adults & Health Commissioning, Health & Social Care",Hestia Housing And Support,DIRECT PAYMENTS,658.23,0,Foster Carers
04/11/2019,"Adults & Health Commissioning, Health & Social Care",Hestia Housing And Support,DIRECT PAYMENTS,380.88,0,Foster Carers
04/11/2019,"Adults & Health Commissioning, Health & Social Care",Hestia Housing And Support,DIRECT PAYMENTS,721.96,0,Foster Carers
04/11/2019,"Adults & Health Commissioning, Health & Social Care",Hestia Housing And Support,DIRECT PAYMENTS,"1,759.26",0,Foster Carers
04/11/2019,"Adults & Health Commissioning, Health & Social Care",Hestia Housing And Support,DIRECT PAYMENTS,259.98,0,Foster Carers
04/11/2019,"Adults & Health Commissioning, Health & Social Care",Hestia Housing And Support,DIRECT PAYMENTS,259.98,0,Foster Carers
04/11/2019,"Adults & Health Commissioning, Health & Social Care",Hestia Housing And Support,DIRECT PAYMENTS,855.90,0,Foster Carers
04/11/2019,"Adults & Health Commissioning, Health & Social Care",Hestia Housing And Support,DIRECT PAYMENTS,285.00,0,Foster Carers
04/11/2019,"Adults & Health Commissioning, Health & Social Care",Hestia Housing And Support,DIRECT PAYMENTS,290.00,0,Foster Carers
04/11/2019,"Adults & Health Commissioning, Health & Social Care",Hestia Housing And Support,DIRECT PAYMENTS,"1,358.17",0,Foster Carers
04/11/2019,"Adults & Health Commissioning, Health & Social Care",Hestia Housing And Support,DIRECT PAYMENTS,377.54,0,Foster Carers
04/11/2019,"Adults & Health Commissioning, Health & Social Care",Hestia Housing And Support,DIRECT PAYMENTS,260.59,0,Foster Carers
04/11/2019,"Adults & Health Commissioning, Health & Social Care",Hestia Housing And Support,DIRECT PAYMENTS,325.93,0,Foster Carers
04/11/2019,"Adults & Health Commissioning, Health & Social Care",Hestia Housing And Support,DIRECT PAYMENTS,314.75,0,Foster Carers
04/11/2019,"Adults & Health Commissioning, Health & Social Care",Hestia Housing And Support,DIRECT PAYMENTS,314.75,0,Foster Carers
04/11/2019,"Adults & Health Commissioning, Health & Social Care",Hestia Housing And Support,DIRECT PAYMENTS,314.75,0,Foster Carers
04/11/2019,"Adults & Health Commissioning, Health & Social Care",Hestia Housing And Support,DIRECT PAYMENTS,314.75,0,Foster Carers
04/11/2019,"Adults & Health Commissioning, Health & Social Care",Hestia Housing And Support,DIRECT PAYMENTS,285.32,0,Foster Carers
04/11/2019,"Adults & Health Commissioning, Health & Social Care",Hestia Housing And Support,DIRECT PAYMENTS,285.32,0,Foster Carers
04/11/2019,"Adults & Health Commissioning, Health & Social Care",Hestia Housing And Support,DIRECT PAYMENTS,285.32,0,Foster Carers
04/11/2019,"Adults & Health Commissioning, Health & Social Care",Hestia Housing And Support,DIRECT PAYMENTS,285.32,0,Foster Carers
04/11/2019,"Adults & Health Commissioning, Health & Social Care",Hestia Housing And Support,DIRECT PAYMENTS,290.00,0,Foster Carers
04/11/2019,"Adults & Health Commissioning, Health & Social Care",Hestia Housing And Support,DIRECT PAYMENTS,756.15,0,Foster Carers
04/11/2019,"Adults & Health Commissioning, Health & Social Care",Hestia Housing And Support,DIRECT PAYMENTS,"1,219.29",0,Foster Carers
04/11/2019,"Adults & Health Commissioning, Health & Social Care",Hestia Housing And Support,DIRECT PAYMENTS,"2,397.50",0,Foster Carers
04/11/2019,"Adults & Health Commissioning, Health & Social Care",Hestia Housing And Support,DIRECT PAYMENTS,658.23,0,Foster Carers
04/11/2019,"Adults & Health Commissioning, Health & Social Care",Hestia Housing And Support,DIRECT PAYMENTS,533.16,0,Foster Carers
04/11/2019,"Adults & Health Commissioning, Health & Social Care",Hestia Housing And Support,DIRECT PAYMENTS,600.30,0,Foster Carers
04/11/2019,"Adults & Health Commissioning, Health & Social Care",Hestia Housing And Support,DIRECT PAYMENTS,"1,127.22",0,Foster Carers
04/11/2019,"Adults & Health Commissioning, Health & Social Care",Hestia Housing And Support,DIRECT PAYMENTS,292.12,0,Foster Carers
04/11/2019,"Adults & Health Commissioning, Health & Social Care",Hestia Housing And Support,DIRECT PAYMENTS,413.61,0,Foster Carers
04/11/2019,"Adults & Health Commissioning, Health & Social Care",Hestia Housing And Support,DIRECT PAYMENTS,299.54,0,Foster Carers
04/11/2019,"Adults & Health Commissioning, Health & Social Care",Hestia Housing And Support,DIRECT PAYMENTS,377.54,0,Foster Carers
04/11/2019,"Adults & Health Commissioning, Health & Social Care",Hestia Housing And Support,DIRECT PAYMENTS,600.30,0,Foster Carers
04/11/2019,"Adults & Health Commissioning, Health & Social Care",Hestia Housing And Support,DIRECT PAYMENTS,342.85,0,Foster Carers
04/11/2019,"Adults & Health Commissioning, Health & Social Care",Hestia Housing And Support,DIRECT PAYMENTS,663.24,0,Foster Carers
04/11/2019,"Adults & Health Commissioning, Health & Social Care",Hestia Housing And Support,DIRECT PAYMENTS,765.62,0,Foster Carers
04/11/2019,"Adults & Health Commissioning, Health & Social Care",Hestia Housing And Support,DIRECT PAYMENTS,765.62,0,Foster Carers
04/11/2019,"Adults & Health Commissioning, Health & Social Care",Hestia Housing And Support,DIRECT PAYMENTS,308.85,0,Foster Carers
04/11/2019,"Adults & Health Commissioning, Health & Social Care",Hestia Housing And Support,DIRECT PAYMENTS,721.96,0,Foster Carers
04/11/2019,"Adults & Health Commissioning, Health & Social Care",Hestia Housing And Support,DIRECT PAYMENTS,325.93,0,Foster Carers
04/11/2019,"Adults & Health Commissioning, Health & Social Care",Hestia Housing And Support,DIRECT PAYMENTS,"1,759.26",0,Foster Carers
04/11/2019,"Adults & Health Commissioning, Health & Social Care",Hestia Housing And Support,DIRECT PAYMENTS,380.88,0,Foster Carers
04/11/2019,"Adults & Health Commissioning, Health & Social Care",Hestia Housing And Support,DIRECT PAYMENTS,335.87,0,Foster Carers
04/11/2019,"Adults & Health Commissioning, Health & Social Care",Hestia Housing And Support,DIRECT PAYMENTS,"2,397.50",0,Foster Carers
04/11/2019,"Adults & Health Commissioning, Health & Social Care",Hestia Housing And Support,DIRECT PAYMENTS,410.87,0,Foster Carers
04/11/2019,"Adults & Health Commissioning, Health & Social Care",Hestia Housing And Support,DIRECT PAYMENTS,606.81,0,Foster Carers
04/11/2019,"Adults & Health Commissioning, Health & Social Care",Hestia Housing And Support,DIRECT PAYMENTS,299.54,0,Foster Carers
04/11/2019,"Adults & Health Commissioning, Health & Social Care",Hestia Housing And Support,DIRECT PAYMENTS,"1,358.17",0,Foster Carers
04/11/2019,"Adults & Health Commissioning, Health & Social Care",Hestia Housing And Support,DIRECT PAYMENTS,698.78,0,Foster Carers
04/11/2019,"Adults & Health Commissioning, Health & Social Care",Hestia Housing And Support,DIRECT PAYMENTS,380.88,0,Foster Carers
04/11/2019,"Adults & Health Commissioning, Health & Social Care",Hestia Housing And Support,DIRECT PAYMENTS,663.24,0,Foster Carers
04/11/2019,"Adults & Health Commissioning, Health & Social Care",Hestia Housing And Support,DIRECT PAYMENTS,290.00,0,Foster Carers
04/11/2019,"Adults & Health Commissioning, Health & Social Care",Hestia Housing And Support,DIRECT PAYMENTS,313.53,0,Foster Carers
04/11/2019,"Adults & Health Commissioning, Health & Social Care",Hestia Housing And Support,DIRECT PAYMENTS,604.85,0,Foster Carers
04/11/2019,"Adults & Health Commissioning, Health & Social Care",Hestia Housing And Support,DIRECT PAYMENTS,673.55,0,Foster Carers
04/11/2019,"Adults & Health Commissioning, Health & Social Care",Hestia Housing And Support,DIRECT PAYMENTS,673.55,0,Foster Carers
04/11/2019,"Adults & Health Commissioning, Health & Social Care",Hestia Housing And Support,DIRECT PAYMENTS,453.35,0,Foster Carers
04/11/2019,"Adults & Health Commissioning, Health & Social Care",Hestia Housing And Support,DIRECT PAYMENTS,453.35,0,Foster Carers
04/11/2019,"Adults & Health Commissioning, Health & Social Care",Hestia Housing And Support,DIRECT PAYMENTS,453.35,0,Foster Carers
04/11/2019,"Adults & Health Commissioning, Health & Social Care",Hestia Housing And Support,DIRECT PAYMENTS,453.35,0,Foster Carers
04/11/2019,"Adults & Health Commissioning, Health & Social Care",Hestia Housing And Support,DIRECT PAYMENTS,329.15,0,Foster Carers
04/11/2019,"Adults & Health Commissioning, Health & Social Care",Hestia Housing And Support,DIRECT PAYMENTS,329.15,0,Foster Carers
04/11/2019,"Adults & Health Commissioning, Health & Social Care",Hestia Housing And Support,DIRECT PAYMENTS,329.15,0,Foster Carers
04/11/2019,"Adults & Health Commissioning, Health & Social Care",Hestia Housing And Support,DIRECT PAYMENTS,329.15,0,Foster Carers
04/11/2019,"Adults & Health Commissioning, Health & Social Care",Hestia Housing And Support,DIRECT PAYMENTS,785.35,0,Foster Carers
04/11/2019,"Adults & Health Commissioning, Health & Social Care",Hestia Housing And Support,DIRECT PAYMENTS,785.35,0,Foster Carers
04/11/2019,"Adults & Health Commissioning, Health & Social Care",Hestia Housing And Support,DIRECT PAYMENTS,290.00,0,Foster Carers
04/11/2019,"Adults & Health Commissioning, Health & Social Care",Hestia Housing And Support,DIRECT PAYMENTS,785.35,0,Foster Carers
04/11/2019,"Adults & Health Commissioning, Health & Social Care",Hestia Housing And Support,DIRECT PAYMENTS,265.00,0,Foster Carers
04/11/2019,"Adults & Health Commissioning, Health & Social Care",Hestia Housing And Support,DIRECT PAYMENTS,604.85,0,Foster Carers
04/11/2019,"Adults & Health Commissioning, Health & Social Care",Hestia Housing And Support,DIRECT PAYMENTS,604.85,0,Foster Carers
04/11/2019,"Adults & Health Commissioning, Health & Social Care",Hestia Housing And Support,DIRECT PAYMENTS,604.85,0,Foster Carers
04/11/2019,"Adults & Health Commissioning, Health & Social Care",Hestia Housing And Support,DIRECT PAYMENTS,453.12,0,Foster Carers
04/11/2019,"Adults & Health Commissioning, Health & Social Care",Hestia Housing And Support,DIRECT PAYMENTS,453.12,0,Foster Carers
04/11/2019,"Adults & Health Commissioning, Health & Social Care",Hestia Housing And Support,DIRECT PAYMENTS,453.12,0,Foster Carers
04/11/2019,"Adults & Health Commissioning, Health & Social Care",Hestia Housing And Support,DIRECT PAYMENTS,453.12,0,Foster Carers
04/11/2019,"Adults & Health Commissioning, Health & Social Care",Hestia Housing And Support,DIRECT PAYMENTS,548.47,0,Foster Carers
04/11/2019,"Adults & Health Commissioning, Health & Social Care",Hestia Housing And Support,DIRECT PAYMENTS,548.47,0,Foster Carers
04/11/2019,"Adults & Health Commissioning, Health & Social Care",Hestia Housing And Support,DIRECT PAYMENTS,548.47,0,Foster Carers
04/11/2019,"Adults & Health Commissioning, Health & Social Care",Hestia Housing And Support,DIRECT PAYMENTS,548.47,0,Foster Carers
04/11/2019,"Adults & Health Commissioning, Health & Social Care",Hestia Housing And Support,DIRECT PAYMENTS,756.15,0,Foster Carers
04/11/2019,"Adults & Health Commissioning, Health & Social Care",Hestia Housing And Support,DIRECT PAYMENTS,785.35,0,Foster Carers
04/11/2019,"Adults & Health Commissioning, Health & Social Care",Hestia Housing And Support,DIRECT PAYMENTS,845.09,0,Foster Carers
04/11/2019,"Adults & Health Commissioning, Health & Social Care",Hestia Housing And Support,DIRECT PAYMENTS,325.93,0,Foster Carers
04/11/2019,"Adults & Health Commissioning, Health & Social Care",Hestia Housing And Support,DIRECT PAYMENTS,606.81,0,Foster Carers
04/11/2019,"Adults & Health Commissioning, Health & Social Care",Hestia Housing And Support,DIRECT PAYMENTS,468.20,0,Foster Carers
04/11/2019,"Adults & Health Commissioning, Health & Social Care",Hestia Housing And Support,DIRECT PAYMENTS,468.20,0,Foster Carers
04/11/2019,"Adults & Health Commissioning, Health & Social Care",Hestia Housing And Support,DIRECT PAYMENTS,468.20,0,Foster Carers
04/11/2019,"Adults & Health Commissioning, Health & Social Care",Hestia Housing And Support,DIRECT PAYMENTS,468.20,0,Foster Carers
04/11/2019,"Adults & Health Commissioning, Health & Social Care",Hestia Housing And Support,DIRECT PAYMENTS,267.52,0,Foster Carers
04/11/2019,"Adults & Health Commissioning, Health & Social Care",Hestia Housing And Support,DIRECT PAYMENTS,273.24,0,Foster Carers
04/11/2019,"Adults & Health Commissioning, Health & Social Care",Hestia Housing And Support,DIRECT PAYMENTS,365.15,0,Foster Carers
04/11/2019,"Adults & Health Commissioning, Health & Social Care",Hestia Housing And Support,DIRECT PAYMENTS,401.81,0,Foster Carers
04/11/2019,"Adults & Health Commissioning, Health & Social Care",Hestia Housing And Support,DIRECT PAYMENTS,365.15,0,Foster Carers
04/11/2019,"Adults & Health Commissioning, Health & Social Care",Hestia Housing And Support,DIRECT PAYMENTS,365.15,0,Foster Carers
04/11/2019,"Adults & Health Commissioning, Health & Social Care",Hestia Housing And Support,DIRECT PAYMENTS,673.55,0,Foster Carers
04/11/2019,"Adults & Health Commissioning, Health & Social Care",Hestia Housing And Support,DIRECT PAYMENTS,267.52,0,Foster Carers
04/11/2019,"Adults & Health Commissioning, Health & Social Care",Hestia Housing And Support,DIRECT PAYMENTS,673.55,0,Foster Carers
04/11/2019,"Adults & Health Commissioning, Health & Social Care",Hestia Housing And Support,DIRECT PAYMENTS,845.09,0,Foster Carers
04/11/2019,"Adults & Health Commissioning, Health & Social Care",Hestia Housing And Support,DIRECT PAYMENTS,845.09,0,Foster Carers
04/11/2019,"Adults & Health Commissioning, Health & Social Care",Hestia Housing And Support,DIRECT PAYMENTS,845.09,0,Foster Carers
04/11/2019,"Adults & Health Commissioning, Health & Social Care",Hestia Housing And Support,DIRECT PAYMENTS,521.17,0,Foster Carers
04/11/2019,"Adults & Health Commissioning, Health & Social Care",Hestia Housing And Support,DIRECT PAYMENTS,417.45,0,Foster Carers
04/11/2019,"Adults & Health Commissioning, Health & Social Care",Hestia Housing And Support,DIRECT PAYMENTS,417.45,0,Foster Carers
04/11/2019,"Adults & Health Commissioning, Health & Social Care",Hestia Housing And Support,DIRECT PAYMENTS,417.45,0,Foster Carers
04/11/2019,"Adults & Health Commissioning, Health & Social Care",Hestia Housing And Support,DIRECT PAYMENTS,417.45,0,Foster Carers
04/11/2019,"Adults & Health Commissioning, Health & Social Care",Hestia Housing And Support,DIRECT PAYMENTS,380.43,0,Foster Carers
04/11/2019,"Adults & Health Commissioning, Health & Social Care",Hestia Housing And Support,DIRECT PAYMENTS,380.43,0,Foster Carers
04/11/2019,"Adults & Health Commissioning, Health & Social Care",Hestia Housing And Support,DIRECT PAYMENTS,380.43,0,Foster Carers
04/11/2019,"Adults & Health Commissioning, Health & Social Care",Hestia Housing And Support,DIRECT PAYMENTS,380.43,0,Foster Carers
04/11/2019,"Adults & Health Commissioning, Health & Social Care",Hestia Housing And Support,DIRECT PAYMENTS,344.51,0,Foster Carers
04/11/2019,"Adults & Health Commissioning, Health & Social Care",Hestia Housing And Support,DIRECT PAYMENTS,267.52,0,Foster Carers
04/11/2019,"Adults & Health Commissioning, Health & Social Care",Hestia Housing And Support,DIRECT PAYMENTS,417.45,0,Foster Carers
04/11/2019,"Adults & Health Commissioning, Health & Social Care",Hestia Housing And Support,DIRECT PAYMENTS,855.90,0,Foster Carers
04/11/2019,"Adults & Health Commissioning, Health & Social Care",Hestia Housing And Support,DIRECT PAYMENTS,417.45,0,Foster Carers
04/11/2019,"Adults & Health Commissioning, Health & Social Care",Hestia Housing And Support,DIRECT PAYMENTS,410.87,0,Foster Carers
04/11/2019,"Adults & Health Commissioning, Health & Social Care",Hestia Housing And Support,DIRECT PAYMENTS,417.45,0,Foster Carers
04/11/2019,"Adults & Health Commissioning, Health & Social Care",Hestia Housing And Support,DIRECT PAYMENTS,252.73,0,Foster Carers
04/11/2019,"Adults & Health Commissioning, Health & Social Care",Hestia Housing And Support,DIRECT PAYMENTS,252.73,0,Foster Carers
04/11/2019,"Adults & Health Commissioning, Health & Social Care",Hestia Housing And Support,DIRECT PAYMENTS,252.73,0,Foster Carers
04/11/2019,"Adults & Health Commissioning, Health & Social Care",Hestia Housing And Support,DIRECT PAYMENTS,252.73,0,Foster Carers
04/11/2019,"Adults & Health Commissioning, Health & Social Care",Hestia Housing And Support,DIRECT PAYMENTS,886.07,0,Foster Carers
04/11/2019,"Adults & Health Commissioning, Health & Social Care",Hestia Housing And Support,DIRECT PAYMENTS,362.89,0,Foster Carers
04/11/2019,"Adults & Health Commissioning, Health & Social Care",Hestia Housing And Support,DIRECT PAYMENTS,292.12,0,Foster Carers
04/11/2019,"Adults & Health Commissioning, Health & Social Care",Hestia Housing And Support,DIRECT PAYMENTS,708.00,0,Foster Carers
04/11/2019,"Adults & Health Commissioning, Health & Social Care",Hestia Housing And Support,DIRECT PAYMENTS,708.00,0,Foster Carers
04/11/2019,"Adults & Health Commissioning, Health & Social Care",Hestia Housing And Support,DIRECT PAYMENTS,469.65,0,Foster Carers
04/11/2019,"Adults & Health Commissioning, Health & Social Care",Hestia Housing And Support,DIRECT PAYMENTS,606.81,0,Foster Carers
04/11/2019,"Adults & Health Commissioning, Health & Social Care",Hestia Housing And Support,DIRECT PAYMENTS,401.81,0,Foster Carers
04/11/2019,"Adults & Health Commissioning, Health & Social Care",Hestia Housing And Support,DIRECT PAYMENTS,"1,759.26",0,Foster Carers
04/11/2019,"Adults & Health Commissioning, Health & Social Care",Hestia Housing And Support,DIRECT PAYMENTS,"1,759.26",0,Foster Carers
04/11/2019,"Adults & Health Commissioning, Health & Social Care",Hestia Housing And Support,DIRECT PAYMENTS,520.03,0,Foster Carers
04/11/2019,"Adults & Health Commissioning, Health & Social Care",Hestia Housing And Support,DIRECT PAYMENTS,285.00,0,Foster Carers
04/11/2019,"Adults & Health Commissioning, Health & Social Care",Hestia Housing And Support,DIRECT PAYMENTS,698.78,0,Foster Carers
04/11/2019,"Adults & Health Commissioning, Health & Social Care",Hestia Housing And Support,DIRECT PAYMENTS,606.81,0,Foster Carers
04/11/2019,"Adults & Health Commissioning, Health & Social Care",Hestia Housing And Support,DIRECT PAYMENTS,292.12,0,Foster Carers
04/11/2019,"Adults & Health Commissioning, Health & Social Care",Hestia Housing And Support,DIRECT PAYMENTS,260.59,0,Foster Carers
04/11/2019,"Adults & Health Commissioning, Health & Social Care",Hestia Housing And Support,DIRECT PAYMENTS,342.85,0,Foster Carers
04/11/2019,"Adults & Health Commissioning, Health & Social Care",Hestia Housing And Support,DIRECT PAYMENTS,"2,397.50",0,Foster Carers
04/11/2019,"Adults & Health Commissioning, Health & Social Care",Hestia Housing And Support,DIRECT PAYMENTS,259.98,0,Foster Carers
04/11/2019,"Adults & Health Commissioning, Health & Social Care",Hestia Housing And Support,DIRECT PAYMENTS,380.88,0,Foster Carers
04/11/2019,"Adults & Health Commissioning, Health & Social Care",Hestia Housing And Support,DIRECT PAYMENTS,663.24,0,Foster Carers
04/11/2019,"Adults & Health Commissioning, Health & Social Care",Hestia Housing And Support,DIRECT PAYMENTS,600.30,0,Foster Carers
04/11/2019,"Adults & Health Commissioning, Health & Social Care",Hestia Housing And Support,DIRECT PAYMENTS,469.65,0,Foster Carers
04/11/2019,"Adults & Health Commissioning, Health & Social Care",Hestia Housing And Support,DIRECT PAYMENTS,765.62,0,Foster Carers
04/11/2019,"Adults & Health Commissioning, Health & Social Care",Hestia Housing And Support,DIRECT PAYMENTS,413.61,0,Foster Carers
04/11/2019,"Adults & Health Commissioning, Health & Social Care",Hestia Housing And Support,DIRECT PAYMENTS,"2,397.50",0,Foster Carers
04/11/2019,"Adults & Health Commissioning, Health & Social Care",Hestia Housing And Support,DIRECT PAYMENTS,335.87,0,Foster Carers
04/11/2019,"Adults & Health Commissioning, Health & Social Care",Hestia Housing And Support,DIRECT PAYMENTS,299.54,0,Foster Carers
04/11/2019,"Adults & Health Commissioning, Health & Social Care",Hestia Housing And Support,DIRECT PAYMENTS,"1,230.82",0,Foster Carers
04/11/2019,"Adults & Health Commissioning, Health & Social Care",Hestia Housing And Support,DIRECT PAYMENTS,520.03,0,Foster Carers
04/11/2019,"Adults & Health Commissioning, Health & Social Care",Hestia Housing And Support,DIRECT PAYMENTS,"1,347.89",0,Foster Carers
04/11/2019,"Adults & Health Commissioning, Health & Social Care",Hestia Housing And Support,DIRECT PAYMENTS,417.35,0,Foster Carers
04/11/2019,"Adults & Health Commissioning, Health & Social Care",Hestia Housing And Support,DIRECT PAYMENTS,417.35,0,Foster Carers
04/11/2019,"Adults & Health Commissioning, Health & Social Care",Hestia Housing And Support,DIRECT PAYMENTS,"1,490.03",0,Foster Carers
04/11/2019,"Adults & Health Commissioning, Health & Social Care",Hestia Housing And Support,DIRECT PAYMENTS,565.85,0,Foster Carers
04/11/2019,"Adults & Health Commissioning, Health & Social Care",Hestia Housing And Support,DIRECT PAYMENTS,565.85,0,Foster Carers
04/11/2019,"Adults & Health Commissioning, Health & Social Care",Hestia Housing And Support,DIRECT PAYMENTS,565.85,0,Foster Carers
04/11/2019,"Adults & Health Commissioning, Health & Social Care",Hestia Housing And Support,DIRECT PAYMENTS,565.85,0,Foster Carers
04/11/2019,"Adults & Health Commissioning, Health & Social Care",Hestia Housing And Support,DIRECT PAYMENTS,"1,347.89",0,Foster Carers
04/11/2019,"Adults & Health Commissioning, Health & Social Care",Hestia Housing And Support,DIRECT PAYMENTS,"1,347.89",0,Foster Carers
04/11/2019,"Adults & Health Commissioning, Health & Social Care",Hestia Housing And Support,DIRECT PAYMENTS,294.65,0,Foster Carers
04/11/2019,"Adults & Health Commissioning, Health & Social Care",Hestia Housing And Support,DIRECT PAYMENTS,408.05,0,Foster Carers
04/11/2019,"Adults & Health Commissioning, Health & Social Care",Hestia Housing And Support,DIRECT PAYMENTS,408.05,0,Foster Carers
04/11/2019,"Adults & Health Commissioning, Health & Social Care",Hestia Housing And Support,DIRECT PAYMENTS,408.05,0,Foster Carers
04/11/2019,"Adults & Health Commissioning, Health & Social Care",Hestia Housing And Support,DIRECT PAYMENTS,408.05,0,Foster Carers
04/11/2019,"Adults & Health Commissioning, Health & Social Care",Hestia Housing And Support,DIRECT PAYMENTS,474.60,0,Foster Carers
04/11/2019,"Adults & Health Commissioning, Health & Social Care",Hestia Housing And Support,DIRECT PAYMENTS,"1,347.89",0,Foster Carers
04/11/2019,"Adults & Health Commissioning, Health & Social Care",Hestia Housing And Support,DIRECT PAYMENTS,258.11,0,Foster Carers
